{"text_format":"1","workbook":"xlsx","n_sheets":21,"sheets":["1. Info and Instructions","Table of Contents","S. Summary","S1. Integrity Checks","A. Data Input Sheet","B. Tax Rates & Exemptions","H0 PILs,Tax Provision Hist","H1 Sch 1 Taxable Income Hist","H4 Sch 4 Loss Cfwd Hist","H8 Sch 8 CCA Hist","H13 Sch 13 Reserves Hist","B0 PILs,Tax Provision Bridge","B1 Sch 1 Taxable Income Bridge","B4 Sch 4 Loss Cfwd Bridge","B8 Sch 8 CCA Bridge","B13 Sch 13 Reserves Bridge","T0 PILs,Tax Provision Test","T1 Sch 1 Taxable Income Test","T4 Sch 4 Loss Cfwd Test","T8 Sch 8 CCA Test","T13 Sch 13 Reserves Test"],"not_rendered":{"charts":0,"images":3,"macros":1,"external_links":0,"defined_names":53,"comments":2,"pivot_tables":0},"unopened":[],"bounds":{"document_bytes":16777216,"sheet_cells":100000,"rows_first":2000,"rows_last":500,"rows_between":2000,"halvings":0,"cell_chars":16384,"cell_head_chars":4096},"cells_cut":0,"cells_raw":0,"read":"whole","date_system":"1900"}

{"sheet":"1. Info and Instructions","index":0,"n_rows":71,"n_cols":28,"rows_kept":71,"cut":false,"hidden":false,"merged":[[21,3,21,4],[17,3,17,4],[13,3,13,4]]}
[null,null,null,null,null,null,null,null,null,null,null,null,null,null,null,null,null,null,null,null,null,null,null,null,null,null,null,"Alectra Utilities Corporation-Brampton Rate Zone"]
[null,null,null,null,null,null,null,null,null,null,null,null,null,null,null,null,null,null,null,null,null,null,null,null,null,null,null,"Alectra Utilities Corporation-Enersource Rate Zone"]
[null,null,null,null,null,null,null,null,null,null,null,null,null,null,null,null,null,null,null,null,null,null,null,null,null,null,null,"Alectra Utilities Corporation-Horizon Utilities Rate Zone"]
[null,null,null,null,null,null,null,null,null,null,null,null,null,null,null,null,null,null,null,null,null,null,null,null,null,null,null,"Alectra Utilities Corporation-PowerStream Rate Zone"]
[null,null,null,null,null,null,null,null,null,null,null,null,null,null,null,null,null,null,null,null,null,null,null,null,null,null,null,"Alectra Utilities Corporation-Guelph Rate Zone"]
[null,null,null,null,null,null,null,null,null,null,null,null,null,null,null,null,null,null,null,null,null,null,null,null,null,null,null,"Algoma Power Inc."]
[null,null,null,null,null,null,null,null,null,null,null,null,null,null,null,null,null,null,null,null,null,null,null,null,null,null,null,"Atikokan Hydro Inc."]
[null,null,null,null,null,null,null,null,null,null,null,null,null,null,null,null,null,null,null,null,null,null,null,null,null,null,null,"Bluewater Power Distribution Corporation"]
[null,null,null,null,null,null,null,null,null,null,null,null,null,null,null,null,null,null,null,null,null,null,null,null,null,null,null,"Burlington Hydro Inc."]
[null,null,null,null,null,null,null,null,null,null,null,null,null,null,null,null,null,null,null,null,null,null,null,null,null,null,null,"Canadian Niagara Power Inc."]
[null,null,null,null,null,null,null,null,null,null,null,null,null,null,null,null,null,null,null,null,null,null,null,null,null,null,null,"Centre Wellington Hydro Ltd."]
[null,null,null,null,null,"Version",1,null,null,null,null,null,null,null,null,null,null,null,null,null,null,null,null,null,null,null,null,"Chapleau Public Utilities Corporation"]
[null,null,null,"Alectra Utilities Corporation",null,null,null,null,null,null,null,null,null,null,null,null,null,null,null,null,null,null,null,null,null,null,null,"Cooperative Hydro Embrun Inc."]
[null,null,"Utility Name   ",null,null,null,null,null,null,null,null,null,null,null,null,null,null,null,null,null,null,null,null,null,null,null,null,"E.L.K. Energy Inc."]
[null,null,null,null,null,null,null,null,null,null,null,null,null,null,null,null,null,null,null,null,null,null,null,null,null,null,null,"Elexicon Energy Inc.-Whitby Rate Zone"]
[null,null,"Assigned EB Number","EB-2025-0252",null,null,null,null,null,null,null,null,null,null,null,null,null,null,null,null,null,null,null,null,null,null,null,"Elexicon Energy Inc.-Veridian Rate Zone"]
[null,null,null,null,null,null,null,null,null,null,null,null,null,null,null,null,null,null,null,null,null,null,null,null,null,null,null,"Enova Power Corp.-Kitchener-Wilmot Hydro Rate Zone"]
[null,null,"Name and Title",null,null,null,null,null,null,null,null,null,null,null,null,null,null,null,null,null,null,null,null,null,null,null,null,"Enova Power Corp.-Waterloo North Rate Zone"]
[null,null,null,null,null,null,null,null,null,null,null,null,null,null,null,null,null,null,null,null,null,null,null,null,null,null,null,"Entegrus Powerlines Inc.-For Entegrus-Main Rate Zone"]
[null,null,"Phone Number",null,null,null,null,null,null,null,null,null,null,null,null,null,null,null,null,null,null,null,null,null,null,null,null,"Entegrus Powerlines Inc.-For Former St. Thomas Energy Rate Zone"]
[null,null,null,null,null,null,null,null,null,null,null,null,null,null,null,null,null,null,null,null,null,null,null,null,null,null,null,"ENWIN Utilities Ltd."]
[null,null,"Email Address",null,null,null,null,null,null,null,null,null,null,null,null,null,null,null,null,null,null,null,null,null,null,null,null,"EPCOR Electricity Distribution Ontario Inc."]
[null,null,null,null,null,null,null,null,null,null,null,null,null,null,null,null,null,null,null,null,null,null,null,null,null,null,null,"ERTH Power Corporation - ERTH Power Main Rate Zone"]
[null,null,"Date",null,null,null,null,null,null,null,null,null,null,null,null,null,null,null,null,null,null,null,null,null,null,null,null,"ERTH POWER CORPORATION – GODERICH RATE ZONE"]
[null,null,null,null,null,null,null,null,null,null,null,null,null,null,null,null,null,null,null,null,null,null,null,null,null,null,null,"Essex Powerlines Corporation"]
[null,null,"Last COS Re-based Year",null,null,null,null,null,null,null,null,null,null,null,null,null,null,null,null,null,null,null,null,null,null,null,null,"Festival Hydro Inc."]
[null,null,null,null,null,null,null,null,null,null,null,null,null,null,null,null,null,null,null,null,null,null,null,null,null,null,null,"Fort Frances Power Corporation"]
[null,null,null,null,null,null,null,null,null,null,null,null,null,null,null,null,null,null,null,null,null,null,null,null,null,null,null,"GrandBridge Energy Inc.-Brantford Power Rate Zone "]
["Note:  Drop-down lists are shaded blue; Input cells are shaded green.",null,null,null,null,null,null,null,null,null,null,null,null,null,null,null,null,null,null,null,null,null,null,null,null,null,null,"GrandBridge Energy Inc.-Energy+ Rate Zone "]
[null,null,null,null,null,null,null,null,null,null,null,null,null,null,null,null,null,null,null,null,null,null,null,null,null,null,null,"Greater Sudbury Hydro Inc."]
[null,null,null,null,null,null,null,null,null,null,null,null,null,null,null,null,null,null,null,null,null,null,null,null,null,null,null,"Grimsby Power Incorporated"]
[null,null,null,null,null,null,null,null,null,null,null,null,null,null,null,null,null,null,null,null,null,null,null,null,null,null,null,"Halton Hills Hydro Inc."]
[null,null,null,null,null,null,null,null,null,null,null,null,null,null,null,null,null,null,null,null,null,null,null,null,null,null,null,"Hearst Power Distribution Co. Ltd."]
[null,null,null,null,null,null,null,null,null,null,null,null,null,null,null,null,null,null,null,null,null,null,null,null,null,null,null,"Hydro 2000 Inc."]
[null,null,null,null,null,null,null,null,null,null,null,null,null,null,null,null,null,null,null,null,null,null,null,null,null,null,null,"Hydro Hawkesbury Inc."]
[null,null,null,null,null,null,null,null,null,null,null,null,null,null,null,null,null,null,null,null,null,null,null,null,null,null,null,"Hydro One Networks Inc."]
[null,null,null,null,null,null,null,null,null,null,null,null,null,null,null,null,null,null,null,null,null,null,null,null,null,null,null,"Hydro One Networks Inc.-Former Orillia Power Distribution Corporation Service Area"]
[null,null,null,null,null,null,null,null,null,null,null,null,null,null,null,null,null,null,null,null,null,null,null,null,null,null,null,"Hydro One Networks Inc.-Former Peterborough Distribution Inc. Service Area"]
[null,null,null,null,null,null,null,null,null,null,null,null,null,null,null,null,null,null,null,null,null,null,null,null,null,null,null,"Hydro One Networks Inc.-Former Haldimand County Hydro Inc. Service Area"]
[null,null,null,null,null,null,null,null,null,null,null,null,null,null,null,null,null,null,null,null,null,null,null,null,null,null,null,"Hydro One Networks Inc.-Former Norfolk Power Distribution Inc. Service Area"]
[null,null,null,null,null,null,null,null,null,null,null,null,null,null,null,null,null,null,null,null,null,null,null,null,null,null,null,"Hydro One Networks Inc.-Former Woodstock Hydro Services Inc. Service Area"]
[null,null,null,null,null,null,null,null,null,null,null,null,null,null,null,null,null,null,null,null,null,null,null,null,null,null,null,"Hydro One Remote Communites Inc."]
[null,null,null,null,null,null,null,null,null,null,null,null,null,null,null,null,null,null,null,null,null,null,null,null,null,null,null,"Hydro Ottawa Limited"]
[null,null,null,null,null,null,null,null,null,null,null,null,null,null,null,null,null,null,null,null,null,null,null,null,null,null,null,"InnPower Corporation"]
[null,null,null,null,null,null,null,null,null,null,null,null,null,null,null,null,null,null,null,null,null,null,null,null,null,null,null,"Kingston Hydro Corporation"]
[null,null,null,null,null,null,null,null,null,null,null,null,null,null,null,null,null,null,null,null,null,null,null,null,null,null,null,"Lakefront Utilities Inc."]
[null,null,null,null,null,null,null,null,null,null,null,null,null,null,null,null,null,null,null,null,null,null,null,null,null,null,null,"Lakeland Power Distribution Ltd."]
[null,null,null,null,null,null,null,null,null,null,null,null,null,null,null,null,null,null,null,null,null,null,null,null,null,null,null,"London Hydro Inc."]
[null,null,null,null,null,null,null,null,null,null,null,null,null,null,null,null,null,null,null,null,null,null,null,null,null,null,null,"Milton Hydro Distribution Inc."]
[null,null,null,null,null,null,null,null,null,null,null,null,null,null,null,null,null,null,null,null,null,null,null,null,null,null,null,"Newmarket-Tay Power Distribution Ltd.-For Former Midland Power Utility Rate Zone"]
[null,null,null,null,null,null,null,null,null,null,null,null,null,null,null,null,null,null,null,null,null,null,null,null,null,null,null,"Newmarket-Tay Power Distribution Ltd.-For Newmarket-Tay Power Main Rate Zone"]
[null,null,null,null,null,null,null,null,null,null,null,null,null,null,null,null,null,null,null,null,null,null,null,null,null,null,null,"Niagara Peninsula Energy Inc."]
[null,null,null,null,null,null,null,null,null,null,null,null,null,null,null,null,null,null,null,null,null,null,null,null,null,null,null,"Niagara-on-the-Lake Hydro Inc."]
[null,null,null,null,null,null,null,null,null,null,null,null,null,null,null,null,null,null,null,null,null,null,null,null,null,null,null,"North Bay Hydro Distribution Limited"]
[null,null,null,null,null,null,null,null,null,null,null,null,null,null,null,null,null,null,null,null,null,null,null,null,null,null,null,"Northern Ontario Wires Inc."]
[null,null,null,null,null,null,null,null,null,null,null,null,null,null,null,null,null,null,null,null,null,null,null,null,null,null,null,"Oakville Hydro Electricity Distribution Inc."]
[null,null,null,null,null,null,null,null,null,null,null,null,null,null,null,null,null,null,null,null,null,null,null,null,null,null,null,"Orangeville Hydro Limited"]
[null,null,null,null,null,null,null,null,null,null,null,null,null,null,null,null,null,null,null,null,null,null,null,null,null,null,null,"Oshawa PUC Networks Inc."]
[null,null,null,null,null,null,null,null,null,null,null,null,null,null,null,null,null,null,null,null,null,null,null,null,null,null,null,"Ottawa River Power Corporation"]
[null,null,null,null,null,null,null,null,null,null,null,null,null,null,null,null,null,null,null,null,null,null,null,null,null,null,null,"PUC Distribution Inc."]
[null,null,null,null,null,null,null,null,null,null,null,null,null,null,null,null,null,null,null,null,null,null,null,null,null,null,null,"Renfrew Hydro Inc."]
[null,null,null,null,null,null,null,null,null,null,null,null,null,null,null,null,null,null,null,null,null,null,null,null,null,null,null,"Rideau St. Lawrence Distribution Inc."]
[null,null,null,null,null,null,null,null,null,null,null,null,null,null,null,null,null,null,null,null,null,null,null,null,null,null,null,"Sioux Lookout Hydro Inc."]
[null,null,null,null,null,null,null,null,null,null,null,null,null,null,null,null,null,null,null,null,null,null,null,null,null,null,null,"Synergy North Corporation-Kenora Rate Zone"]
[null,null,null,null,null,null,null,null,null,null,null,null,null,null,null,null,null,null,null,null,null,null,null,null,null,null,null,"Synergy North Corporation-Thunder Bay Rate Zone "]
[null,null,null,null,null,null,null,null,null,null,null,null,null,null,null,null,null,null,null,null,null,null,null,null,null,null,null,"Tillsonburg Hydro Inc."]
[null,null,null,null,null,null,null,null,null,null,null,null,null,null,null,null,null,null,null,null,null,null,null,null,null,null,null,"Toronto Hydro-Electric System Limited"]
[null,null,null,null,null,null,null,null,null,null,null,null,null,null,null,null,null,null,null,null,null,null,null,null,null,null,null,"Wasaga Distribution Inc."]
[null,null,null,null,null,null,null,null,null,null,null,null,null,null,null,null,null,null,null,null,null,null,null,null,null,null,null,"Welland Hydro-Electric System Corp."]
[null,null,null,null,null,null,null,null,null,null,null,null,null,null,null,null,null,null,null,null,null,null,null,null,null,null,null,"Wellington North Power Inc."]
[null,null,null,null,null,null,null,null,null,null,null,null,null,null,null,null,null,null,null,null,null,null,null,null,null,null,null,"Westario Power Inc."]

{"sheet":"Table of Contents","index":1,"n_rows":32,"n_cols":27,"rows_kept":32,"cut":false,"hidden":false,"merged":[[81,0,88,6],[0,2,0,4],[1,3,1,6],[3,3,3,4],[8,2,8,4]]}
[null,null,null,null,null,null,null,null,null,null,null,null,null,null,null,null,null,null,null,null,null,null,null,null,null,null,1]
[null,null,null,null,null,null,null,null,null,null,null,null,null,null,null,null,null,null,null,null,null,null,null,null,null,null,2012]
[null,null,null,null,null,null,null,null,null,null,null,null,null,null,null,null,null,null,null,null,null,null,null,null,null,null,2013]
[null,null,null,null,null,null,null,null,null,null,null,null,null,null,null,null,null,null,null,null,null,null,null,null,null,null,2014]
[null,null,null,null,null,null,null,null,null,null,null,null,null,null,null,null,null,null,null,null,null,null,null,null,null,null,2015]
[null,null,null,null,null,null,null,null,null,null,null,null,null,null,null,null,null,null,null,null,null,null,null,null,null,null,2016]
[]
[]
[]
[null,null,null,"1. Info"]
[null,null,null,"S. Summary"]
[null,null,null,"A. Data Input Sheet"]
[null,null,null,"B. Tax Rates & Exemptions"]
[]
[]
[null,null,"Historical Year","H0 - PILs, Tax Provision Historical Year"]
[null,null,null,"H1 - Adj. Taxable Income Historical Year"]
[null,null,null,"H4 - Schedule 4 Loss Carry Forward Historical Year"]
[null,null,null,"H8 - Schedule 8 Historical"]
[null,null,null,"H13 - Schedule 13 Tax Reserves Historical"]
[]
[null,null,"Bridge Year","B0 - PILs,Tax Provision Bridge Year"]
[null,null,null,"B1 - Adj. Taxable Income Bridge Year"]
[null,null,null,"B4 - Schedule 4 Loss Carry Forward Bridge Year"]
[null,null,null,"B8 - Schedule 8 CCA Bridge Year"]
[null,null,null,"B13 - Schedule 13 Tax Reserves Bridge Year"]
[]
[null,null,"Test Year","T0 PILs, Tax Provision Test Year"]
[null,null,null,"T1 Taxable Income Test Year"]
[null,null,null,"T4 Schedule 4 Loss Carry Forward Test Year"]
[null,null,null,"T8 Schedule 8 CCA Test Year"]
[null,null,null,"T13 Schedule 13 Reserve Test Year"]

{"sheet":"S. Summary","index":2,"n_rows":25,"n_cols":13,"rows_kept":25,"cut":false,"hidden":false,"merged":[[0,2,0,6],[1,2,1,10],[2,2,2,10],[3,2,3,10]]}
[]
[]
[]
[]
[]
[]
[null,"No inputs required on this worksheet."]
[]
[null,null,null,"Inputs on Service Revenue Requirement Worksheet"]
[null,null,null,"The Service Revenue Requirement is in the 'Revenue Requirement Workform' - Tab 3."]
[]
[null,null,null,"Item",null,null,"Working Paper Reference","Summary - Test 2027",null,"Summary - Test 2028","Summary - Test 2029","Summary - Test 2030","Summary - Test 2031"]
[]
[null,null,null,"Adjustments required to arrive at taxable income",null,null,"as below",{"$f":"+H25","v":-112098666.70028844},null,{"$f":"+J25","v":-115866192.13231546},{"$f":"+K25","v":-151118626.89922896},{"$f":"+L25","v":-102178667.36651337},{"$f":"+M25","v":-116986514.37462965}]
[null,null,null,"Test Year - Payments in Lieu of Taxes (PILs)",null,null,"T0",{"$f":"+'T0 PILs,Tax Provision Test'!J25+'T0 PILs,Tax Provision Test'!J31","v":12606924.063639404},null,{"$f":"+'T0 PILs,Tax Provision Test'!O25+'T0 PILs,Tax Provision Test'!O31","v":14221020.140259638},{"$f":"+'T0 PILs,Tax Provision Test'!P25+'T0 PILs,Tax Provision Test'!P31","v":7967642.4729419304},{"$f":"+'T0 PILs,Tax Provision Test'!Q25+'T0 PILs,Tax Provision Test'!Q31","v":24648465.351162177},{"$f":"+'T0 PILs,Tax Provision Test'!R25+'T0 PILs,Tax Provision Test'!R31","v":24538492.929184891}]
[null,null,null,"Test Year - Grossed-up PILs",null,null,"T0",{"$f":"+'T0 PILs,Tax Provision Test'!J33","v":17152277.637604635},null,{"$f":"+'T0 PILs,Tax Provision Test'!O33","v":19348326.721441686},{"$f":"+'T0 PILs,Tax Provision Test'!P33","v":10840329.89515909},{"$f":"+'T0 PILs,Tax Provision Test'!Q33","v":33535327.008383915},{"$f":"+'T0 PILs,Tax Provision Test'!R33","v":33385704.665557675}]
[null,null,null,"Effective Federal Tax Rate",null,null,"T0",{"$f":"+'T0 PILs,Tax Provision Test'!G14","v":0.15},null,{"$f":"+$H$17","v":0.15},{"$f":"+$H$17","v":0.15},{"$f":"+$H$17","v":0.15},{"$f":"+$H$17","v":0.15}]
[null,null,null,"Effective Ontario Tax Rate",null,null,"T0",{"$f":"+'T0 PILs,Tax Provision Test'!G13","v":0.115},null,{"$f":"+$H$18","v":0.115},{"$f":"+$H$18","v":0.115},{"$f":"+$H$18","v":0.115},{"$f":"+$H$18","v":0.115}]
[]
[]
[]
[null,null,null,"Calculation of Adjustments required to arrive at Taxable Income"]
[null,null,null,"Regulatory Income (before income taxes)",null,null,"T1",{"$f":"'T1 Sch 1 Taxable Income Test'!F12","v":159671965.05364469},null,{"$f":"'T1 Sch 1 Taxable Income Test'!I12","v":169530419.07669145},{"$f":"'T1 Sch 1 Taxable Income Test'!J12","v":181185202.26882115},{"$f":"'T1 Sch 1 Taxable Income Test'!K12","v":195191744.16335177},{"$f":"'T1 Sch 1 Taxable Income Test'!L12","v":209584600.89985564}]
[null,null,null,"Taxable Income",null,null,"T1",{"$f":"'T1 Sch 1 Taxable Income Test'!F123","v":47573298.353356242},null,{"$f":"'T1 Sch 1 Taxable Income Test'!I123","v":53664226.944375992},{"$f":"'T1 Sch 1 Taxable Income Test'!J123","v":30066575.36959219},{"$f":"'T1 Sch 1 Taxable Income Test'!K123","v":93013076.796838403},{"$f":"'T1 Sch 1 Taxable Income Test'!L123","v":92598086.525225997}]
[null,null,null,"Difference ",null,null,"calculated",{"$f":"+H24-H23","v":-112098666.70028844},"as above",{"$f":"+J24-J23","v":-115866192.13231546},{"$f":"+K24-K23","v":-151118626.89922896},{"$f":"+L24-L23","v":-102178667.36651337},{"$f":"+M24-M23","v":-116986514.37462965}]

{"sheet":"S1. Integrity Checks","index":3,"n_rows":24,"n_cols":4,"rows_kept":24,"cut":false,"hidden":false,"merged":[[12,0,12,3]]}
[]
[]
[]
[]
[]
[]
[]
[]
[]
[]
["Integrity Checks"]
[]
["The applicant must ensure the following integrity checks have been completed and confirm this is the case in the table below, or provide an explanation if this is not the case:"]
[]
[null,"Item","Utility Confirmation (Y/N)","Notes"]
[1,"The depreciation and amortization added back in the application’s PILs model agree with the numbers disclosed in the rate base section of the application","Y"]
[2,"The capital additions and deductions in the CCA Schedule 8 agree with the rate base section for historical, bridge and test years","Y","Fixed asset accounting additions are adjusted for capitallized interest and pension contributions to arrive to tax additions."]
[3,"Schedule 8 of the most recent federal T2 tax return filed with the application has a closing December 31 historical year UCC that agrees with the opening (January 1) bridge year UCC. If the amounts do not agree, then the applicant must provide a reconciliation with explanations. Distributors must segregate non-distribution tax amounts on Schedule 8.","N","The 2026 Bridge Year opening UCC balance is based on a 2025 forecasted closing UCC balance. The amounts will be updated when the 2025 tax return is filed in June 2026."]
[4,"The CCA deductions in the application’s PILs tax model for historical, bridge and test years (as applicable) agree with the numbers in the CCA Schedule 8 for the same years filed in the application","Y"]
[5,"Loss carry-forwards, if any, from prior year tax returns' Schedule 4 agree with those disclosed in the application","N","Alectra Utilities does not have any non-capital or capital loss carry-forwards at the end of December 2024 and does not expect to have any loss carry-forwards at the end of December 2031."]
[6,"A discussion is included in the application as to when the loss carry-forwards, if any, will be fully utilized","N","Alectra Utilities does not have any non-capital or capital loss carry-forwards at the end of December 2024 and does not expect to have any loss carry-forwards at the end of December 2031."]
[7,"CCA is maximized even if there are tax loss carry-forwards","N","Alectra Utilities does not have any non-capital or capital loss carry-forwards at the end of December 2024 and does not expect to have any loss carry-forwards at the end of December 2031."]
[8,"Other post-employment benefits and pension expenses that are added back on Schedule 1 to reconcile accounting income to net income for tax purposes agree with the OM&A analysis for compensation. The amounts deducted are reasonable when compared with the notes to the audited financial statements, Financial Services Commission of Ontario reports, and actuarial valuations.","Y"]
[9,"The income tax rate used to calculate the tax expense is consistent with the utility’s actual tax facts and evidence filed in the application","Y"]

{"sheet":"A. Data Input Sheet","index":4,"n_rows":41,"n_cols":19,"rows_kept":41,"cut":false,"hidden":false,"merged":[[25,2,25,4],[27,2,27,4],[0,2,0,4],[1,2,1,8],[2,2,2,8],[3,2,3,8],[37,2,37,4],[40,2,40,4],[29,2,29,4],[31,2,31,4],[33,2,33,4],[35,2,35,4]]}
[]
[]
[]
[]
[]
[]
[null,null,null,null,"Summary",null,"Test Year - 2027","Bridge Year",null,null,null,null,"Test Year - 2028",null,"Test Year - 2029",null,"Test Year - 2030",null,"Test Year - 2031"]
[]
[null,null,"Rate Base",null,null,"S",4435332362.6012411,4312539734.5481682,null,null,null,null,4709178307.685874,null,5032922285.2450323,null,5421992893.4264383,null,5821794469.4404345]
[]
[null,null,"Return on Ratebase"]
[null,null,"Deemed ShortTerm Debt %",null,0.04,"T",{"$f":"G9*E12","v":177413294.50404966},"W = S * T",null,null,null,0.04,{"$f":"M9*L12","v":188367132.30743498},0.04,{"$f":"O9*N12","v":201316891.4098013},0.04,{"$f":"Q9*P12","v":216879715.73705754},0.04,{"$f":"S9*R12","v":232871778.77761739}]
[null,null,"Deemed Long Term Debt %",null,0.56000000000000005,"U",{"$f":"G9*E13","v":2483786123.0566955},"X = S * U",null,null,null,0.56000000000000005,{"$f":"M9*L13","v":2637139852.3040895},0.56000000000000005,{"$f":"O9*N13","v":2818436479.7372184},0.56000000000000005,{"$f":"Q9*P13","v":3036316020.3188057},0.56000000000000005,{"$f":"S9*R13","v":3260204902.8866434}]
[null,null,"Deemed Equity %",null,0.4,"V",{"$f":"G9*E14","v":1774132945.0404966},"Y = S * V",null,null,null,0.4,{"$f":"M9*L14","v":1883671323.0743496},0.4,{"$f":"O9*N14","v":2013168914.0980129},0.4,{"$f":"Q9*P14","v":2168797157.3705754},0.4,{"$f":"S9*R14","v":2328717787.7761741}]
[]
[null,null,"Short Term Interest Rate",null,3.9100000000000003E-2,"Z",{"$f":"G12*E16","v":6936859.8151083421},"AC = W * Z",null,null,null,{"$f":"+E16","v":3.9100000000000003E-2},{"$f":"M12*L16","v":7365154.8732207082},{"$f":"+L16","v":3.9100000000000003E-2},{"$f":"O12*N16","v":7871490.4541232316},{"$f":"+N16","v":3.9100000000000003E-2},{"$f":"Q12*P16","v":8479996.8853189498},{"$f":"+P16","v":3.9100000000000003E-2},{"$f":"S12*R16","v":9105286.5502048414}]
[null,null,"Long Term Interest",null,4.1901078905358317E-2,"AA",{"$f":"G13*E17","v":104073318.32623263},"AD = X * AA",null,null,null,4.3450779868118503E-2,{"$f":"M13*L17","v":114585783.20390753},4.3623927603760007E-2,{"$f":"O13*N17","v":122951268.94785263},4.3732878137337519E-2,{"$f":"Q13*P17","v":132786838.50304796},4.5148379971194183E-2,{"$f":"S13*R17","v":147192969.73947641}]
[null,null,"Return on Equity (Regulatory Income)",null,0.09,"AB",{"$f":"G14*E18","v":159671965.05364469},"AE = Y * AB","T1",null,null,{"$f":"+E18","v":0.09},{"$f":"M14*L18","v":169530419.07669145},{"$f":"+L18","v":0.09},{"$f":"O14*N18","v":181185202.26882115},{"$f":"+N18","v":0.09},{"$f":"Q14*P18","v":195191744.16335177},{"$f":"+P18","v":0.09},{"$f":"S14*R18","v":209584600.89985564}]
[null,null,"Return on Rate Base",null,null,null,{"$f":"SUM(G16:G18)","v":270682143.19498563},"AF = AC + AD + AE",null,null,null,null,{"$f":"SUM(M16:M18)","v":291481357.15381968},null,{"$f":"SUM(O16:O18)","v":312007961.67079699},null,{"$f":"SUM(Q16:Q18)","v":336458579.55171871},null,{"$f":"SUM(S16:S18)","v":365882857.18953693}]
[null,null,null,null,null,null,{"$f":"+E12*E16+E13*E17+E14*E18","v":6.1028604187000658E-2},null,null,null,null,null,{"$f":"+L12*L16+L13*L17+L14*L18","v":6.1896436726146364E-2},null,{"$f":"+N12*N16+N13*N17+N14*N18","v":6.19933994581056E-2},null,{"$f":"+P12*P16+P13*P17+P14*P18","v":6.2054411756909011E-2},null,{"$f":"+R12*R16+R13*R17+R14*R18","v":6.2847092783868741E-2}]
[]
[]
[]
[null,null,"Questions that must be answered",null,null,null,"Historical Year","Bridge Year","Test Year"]
[]
[null,null,"1.   Does the applicant have any Investment Tax Credits (ITC)?",null,null,null,"Yes","Yes","Yes",null,null,null,"Yes",null,"Yes",null,"Yes",null,"Yes"]
[null,null,"   "]
[null,null,"2.   Does the applicant have any SRED Expenditures?",null,null,null,"Yes","Yes","Yes",null,null,null,"Yes",null,"Yes",null,"Yes",null,"Yes"]
[null,null,"   "]
[null,null,"3.   Does the applicant have any Capital Gains or Losses for tax purposes?",null,null,null,"No","No","No",null,null,null,"No",null,"No",null,"No",null,"No"]
[null,null,"   "]
[null,null,"4.   Does the applicant have any Capital Leases?",null,null,null,"Yes","Yes","Yes",null,null,null,"Yes",null,"Yes",null,"Yes",null,"Yes"]
[null,null,"   "]
[null,null,"5.   Does the applicant have any Loss Carry-Forwards (non-capital or net capital)?",null,null,null,"No","No","No",null,null,null,"No",null,"No",null,"No",null,"No"]
[null,null,"   "]
[null,null,"6.   Since 1999, has the applicant acquired another regulated applicant's assets?  ",null,null,null,"Yes","Yes","Yes",null,null,null,"Yes",null,"Yes",null,"Yes",null,"Yes"]
[]
[null,null,"7.   Did the applicant pay dividends?",null,null,null,"Yes","Yes","Yes",null,null,null,"Yes",null,"Yes",null,"Yes",null,"Yes"]
[null,null,"      If Yes, please describe the tax treatment in the manager's summary.  "]
[]
[null,null,"8.   Did the applicant elect to capitalize interest incurred on CWIP for tax purposes?",null,null,null,"No","No","No",null,null,null,"No",null,"No",null,"No",null,"No"]

{"sheet":"B. Tax Rates & Exemptions","index":5,"n_rows":39,"n_cols":12,"rows_kept":39,"cut":false,"hidden":false,"merged":[[0,2,0,3],[1,2,1,3],[2,2,2,3],[3,2,3,3]]}
[]
[]
[]
[]
[]
[]
[]
[]
[null,null,"Tax Rates"]
[null,null,"Federal & Provincial",null,"Effective","Effective","Effective","Effective","Effective","Effective","Effective","Effective"]
[null,null,"As of MMM XX, 2019",null,"2020-01-01",{"$f":"DATE(YEAR(E11) + 1, MONTH(E11), DAY(E11))","v":"2021-01-01"},{"$f":"DATE(YEAR(F11) + 1, MONTH(F11), DAY(F11))","v":"2022-01-01"},"2023-01-01","2024-01-01","2025-01-01","2026-01-01","2027-01-01"]
[]
[null,null,"Federal income tax"]
[null,null,"General Corporate Rate",null,0.38,0.38,0.38,0.38,0.38,0.38,0.38,0.38]
[null,null,"Federal Tax Abatement",null,-0.1,-0.1,-0.1,-0.1,-0.1,-0.1,-0.1,-0.1]
[null,null,"  Adjusted Federal Rate",null,{"$f":"SUM(E14:E15)","v":0.28000000000000003},0.28000000000000003,0.28000000000000003,0.28000000000000003,0.28000000000000003,{"$f":"SUM(J14:J15)","v":0.28000000000000003},0.28000000000000003,{"$f":"SUM(L14:L15)","v":0.28000000000000003}]
[]
[null,null,"Rate Reduction",null,-0.13,-0.13,-0.13,-0.13,-0.13,-0.13,-0.13,-0.13]
[null,null,"Federal Income Tax",null,{"$f":"E16+E18","v":0.15000000000000002},0.15000000000000002,0.15000000000000002,0.15000000000000002,0.15000000000000002,{"$f":"J16+J18","v":0.15000000000000002},0.15000000000000002,{"$f":"L16+L18","v":0.15000000000000002}]
[]
[null,null,"Ontario Income Tax ",null,0.115,0.115,0.115,0.115,0.115,0.115,0.115,0.115]
[]
[null,null,"Combined Federal and Ontario ",null,{"$f":"E19+E21","v":0.26500000000000001},0.26500000000000001,0.26500000000000001,{"$f":"H19+H21","v":0.26500000000000001},0.26500000000000001,{"$f":"J19+J21","v":0.26500000000000001},0.26500000000000001,{"$f":"L19+L21","v":0.26500000000000001}]
[]
[null,null,"Federal & Ontario Small Business"]
[null,null,"Federal Small Business Limit",null,500000,500000,500000,500000,500000,500000,500000,500000]
[null,null,"Ontario Small Business Limit",null,500000,500000,500000,500000,500000,500000,500000,500000]
[]
[null,null,"Federal Small Business Rate",null,0.11,0.105,0.105,0.1,0.09,0.09,0.09,0.09]
[]
[null,null,"Ontario Small Business Rate",null,4.4999999999999998E-2,4.4999999999999998E-2,3.5000000000000003E-2,3.5000000000000003E-2,3.2000000000000001E-2,3.2000000000000001E-2,3.2000000000000001E-2,3.2000000000000001E-2]
[]
[]
[null,null,"Notes"]
[null,null,"1.  The Ontario Energy Board's proxy for taxable capital is rate base."]
[null,null,"2.  The appropriate Federal and Ontario small business rates are calculated in the Income/PILs Workform. The Federal and Ontario small business deduction:"]
[null,null,"     a. is applicable if taxable capital is below $10 million."]
[null,null,"     b. is phased out with taxable capital of more than $10 million. "]
[null,null,"     c. is completely eliminated when the taxable capital is $15 million or more. Effective for the 2022 taxation year, the Federal small business deduction is revised to be completely eliminated when the taxable capital is $50 million or more. "]

{"sheet":"H0 PILs,Tax Provision Hist","index":6,"n_rows":34,"n_cols":10,"rows_kept":34,"cut":false,"hidden":false,"merged":[[42,2,42,5],[0,2,0,6],[1,2,1,11],[2,2,2,11],[3,2,3,11],[38,2,38,5],[7,2,7,5]]}
[]
[]
[]
[]
[]
[null,null,"PILs Tax Provision - Historical Year"]
[]
[null,null,"Note: Input the actual information from the tax returns for the historical year. ",null,null,null,null,null,"Wires Only"]
[null,null,"INFORMATION NOT AVAILABLE. THIS SCHEDULE WILL BE UPDATED ONCE 2025 TAX RETURN IS FILED IN JUNE 2026"]
[null,null,"Regulatory Taxable Income",null,null,null,null,"H1",{"$f":"'H1 Sch 1 Taxable Income Hist'!G116","v":0},"A"]
[]
[null,null,"Ontario Income Taxes"]
[null,null,"Income tax payable","Ontario Income Tax",null,"B",null,"C = A * B"]
[]
[null,null,"Small business credit","Ontario Small Business Threshold",{"$f":"IF(I10>'B. Tax Rates & Exemptions'!E27,'B. Tax Rates & Exemptions'!E27,0)","v":0},"D"]
[null,null,null,"Rate reduction (negative)",null,"E",null,"F = D * E"]
[]
[]
[]
[null,null,"Ontario Income tax",null,null,null,null,null,{"$f":"SUM(G13:G19)","v":0}," J = C + F"]
[]
[]
[null,null,"Combined Tax Rate and PILs","Ontario Tax Rate (Maximum 11.5%)",null,null,null,"B"]
[null,null,null,"Federal tax rate (Maximum 15%)",null,null,null,"C"]
[null,null,null,"Combined tax rate (Maximum 26.5%)",null,null,null,null,{"$f":"SUM(G23:G24)","v":0},"D = B+C"]
[]
[]
[null,null,"Total Income Taxes",null,null,null,null,null,{"$f":"I10*I25","v":0},"E = A * D"]
[]
[null,null,"Investment Tax Credits",null,null,null,null,null,null,"F"]
[null,null,"Miscellaneous Tax Credits",null,null,null,null,null,null,"G"]
[null,null," Total Tax Credits",null,null,null,null,null,{"$f":"SUM(I30:I31)","v":0},"H = F + G"]
[]
[null,null,"Corporate PILs/Income Tax Provision for Historical Year",null,null,null,null,null,{"$f":"IF(I28-I32<0,0,I28-I32)","v":0},"I = E - H"]

{"sheet":"H1 Sch 1 Taxable Income Hist","index":7,"n_rows":116,"n_cols":8,"rows_kept":116,"cut":false,"hidden":false,"merged":[[47,2,47,6],[108,2,108,6],[0,2,0,4],[1,2,1,8],[2,2,2,8],[3,2,3,8],[12,2,12,6],[84,2,84,6],[71,2,71,6]]}
[]
[]
[]
[]
[]
[]
[]
[null,null,"Adjusted Taxable Income - Historical Year"]
[null,null,"INFORMATION NOT AVAILABLE. THIS SCHEDULE WILL BE UPDATED ONCE 2025 TAX RETURN IS FILED IN JUNE 2026"]
[]
[null,null,null,"T2S1 line #","Total for Legal Entity","Non-Distribution Eliminations   ","Historic \nWires Only"]
[null,null,"Income before PILs/Taxes","(A + 101 + 102)",null,null,{"$f":"+E12-F12","v":0}]
[null,null,"Additions:"]
[null,null,"Interest and penalties on taxes",103,null,null,{"$f":"+E14-F14","v":0}]
[null,null,"Amortization of tangible assets",104,null,null,0]
[null,null,"Amortization of intangible assets",106,null,null,0]
[null,null,"Recapture of capital cost allowance from Schedule 8",107,null,null,0]
[null,null,"Income inclusion under subparagraph 13(38)(d)(iii) from Schedule 10",108,null,null,0]
[null,null,"Income or loss for tax purposes- joint ventures or partnerships",109]
[null,null,"Loss in equity of subsidiaries and affiliates",110,null,null,0]
[null,null,"Loss on disposal of assets ",111,null,null,0]
[null,null,"Charitable donations and gifts from Schedule 2",112,null,null,0]
[null,null,"Taxable capital gains from Schedule 6",113,null,null,0]
[null,null,"Political contributions",114,null,null,0]
[null,null,"Deferred and prepaid expenses",116,null,null,0]
[null,null,"Scientific research expenditures deducted on financial statements",118,null,null,0]
[null,null,"Capitalized interest",119,null,null,0]
[null,null,"Non-deductible club dues and fees",120,null,null,0]
[null,null,"Non-deductible meals and entertainment expense",121,null,null,0]
[null,null,"Non-deductible automobile expenses",122,null,null,0]
[null,null,"Non-deductible life insurance premiums",123,null,null,0]
[null,null,"Non-deductible company pension plans",124,null,null,0]
[null,null,"Tax reserves deducted in prior year",125,null,null,0]
[null,null,"Reserves from financial statements – balance at the end of the year",126,null,null,0]
[null,null,"Soft costs on construction and renovation of buildings",127,null,null,0]
[null,null,"Capital items expensed",206,null,null,0]
[null,null,"Debt issue expense",208,null,null,0]
[null,null,"Development expenses claimed in current year",212,null,null,0]
[null,null,"Financing fees deducted in books",216,null,null,0]
[null,null,"Gain on settlement of debt",220,null,null,0]
[null,null,"Non-deductible advertising",226,null,null,0]
[null,null,"Non-deductible interest",227,null,null,0]
[null,null,"Non-deductible legal and accounting fees",228,null,null,0]
[null,null,"Recapture of SR&ED expenditures",231,null,null,0]
[null,null,"Share issue expense",235,null,null,0]
[null,null,"Write down of capital property",236,null,null,0]
[null,null,"Amounts received in respect of qualifying environment trust per paragraphs 12(1)(z.1) and 12(1)(z.2)",237,null,null,0]
[null,null,"Other additions"]
[null,null,"Interest Expensed on Capital Leases",295,null,null,0]
[null,null,"Realized Income from Deferred Credit Accounts",295,null,null,0]
[null,null,"Pensions",295,null,null,0]
[null,null,"Non-deductible penalties",295,null,null,0]
[null,null,null,295,null,null,0]
[null,null,null,295,null,null,{"$f":"+E54-F54","v":0}]
[null,null,"ARO Accretion expense",null,null,null,0]
[null,null,"Capital Contributions Received (ITA 12(1)(x))",null,null,null,0]
[null,null,"Lease Inducements Received (ITA 12(1)(x))",null,null,null,0]
[null,null,"Deferred Revenue (ITA 12(1)(a))",null,null,null,0]
[null,null,"Prior Year Investment Tax Credits received",null,null,null,0]
[null,null,null,null,null,null,0]
[null,null,null,null,null,null,0]
[null,null,null,null,null,null,0]
[null,null,null,null,null,null,0]
[null,null,null,null,null,null,0]
[null,null,null,null,null,null,0]
[null,null,null,null,null,null,0]
[null,null,null,null,null,null,0]
[null,null,null,null,null,null,0]
[null,null,null,null,null,null,0]
[null,null,"Total Additions",null,{"$f":"SUM(E13:E69)","v":0},{"$f":"SUM(F13:F69)","v":0},{"$f":"SUM(G13:G69)","v":0}]
[]
[null,null,"Deductions:"]
[null,null,"Gain on disposal of assets per financial statements",401,null,null,{"$f":"+E73-F73","v":0}]
[null,null,"Non-taxable dividends under section 83",402,null,null,0]
[null,null,"Capital cost allowance from Schedule 8",403,null,null,0]
[null,null,"Terminal loss from Schedule 8",404,null,null,0]
[null,null,"Allowable business investment loss",406,null,null,0]
[null,null,"Deferred and prepaid expenses",409,null,null,0]
[null,null,"Scientific research expenses claimed in year",411,null,null,0]
[null,null,"Tax reserves claimed in current year",413,null,null,0]
[null,null,"Reserves from financial statements - balance at beginning of year",414,null,null,0]
[null,null,"Contributions to deferred income plans",416,null,null,0]
[null,null,"Book income of joint venture or partnership",305,null,null,0]
[null,null,"Equity in income from subsidiary or affiliates",306,null,null,0]
[null,null,"Other deductions"]
[null,null,"Interest capitalized for accounting deducted for tax",395,null,null,0]
[null,null,"Capital Lease Payments",395,null,null,0]
[null,null,"Non-taxable imputed interest income on deferral and variance accounts ",395,null,null,0]
[null,null,null,395,null,null,0]
[null,null,null,395,null,null,0]
[null,null,"ARO Payments - Deductible for Tax when Paid",null,null,null,0]
[null,null,"ITA 13(7.4) Election - Capital Contributions Received",null,null,null,0]
[null,null,"ITA 13(7.4) Election - Apply Lease Inducement to cost of Leaseholds",null,null,null,0]
[null,null,"Deferred Revenue - ITA 20(1)(m) reserve",null,null,null,0]
[null,null,"Principal portion of lease payments",null,null,null,0]
[null,null,"Lease Inducement Book Amortization credit to income",null,null,null,0]
[null,null,"Financing fees for tax ITA 20(1)(e) and (e.1)",null,null,null,0]
[null,null,null,null,null,null,0]
[null,null,null,null,null,null,0]
[null,null,null,null,null,null,0]
[null,null,null,null,null,null,0]
[null,null,null,null,null,null,0]
[null,null,null,null,null,null,0]
[null,null,null,null,null,null,0]
[null,null,null,null,null,null,0]
[null,null,"Total Deductions",null,{"$f":"SUM(E73:E105)","v":0},{"$f":"SUM(F73:F105)","v":0},{"$f":"SUM(G73:G105)","v":0}]
[]
[null,null,"Net Income for Tax Purposes",null,{"$f":"+E12+E70-E106","v":0},{"$f":"+F12+F70-F106","v":0},{"$f":"+G12+G70-G106","v":0}]
[]
[null,null,"Charitable donations from Schedule 2",311,null,null,{"$f":"+E110-F110","v":0}]
[null,null,"Taxable dividends received under section 112 or 113",320,null,null,{"$f":"+E111-F111","v":0}]
[null,null,"Non-capital losses of previous tax years from Schedule 4",331,null,null,{"$f":"+E112-F112","v":0}]
[null,null,"Net capital losses of previous tax years from Schedule 4",332,null,null,{"$f":"+E113-F113","v":0}]
[null,null,"Limited partnership losses of previous tax years from Schedule 4",335,null,null,{"$f":"+E114-F114","v":0}]
[]
[null,null,"TAXABLE INCOME",null,{"$f":"+E108-SUM(E110:E114)","v":0},{"$f":"+F108-SUM(F110:F114)","v":0},{"$f":"+G108-SUM(G110:G114)","v":0},"H0"]

{"sheet":"H4 Sch 4 Loss Cfwd Hist","index":8,"n_rows":17,"n_cols":9,"rows_kept":17,"cut":false,"hidden":false,"merged":[[15,2,15,4],[16,2,16,4],[12,2,12,4],[13,2,13,4],[0,2,0,4],[1,2,1,8],[2,2,2,8],[3,2,3,8]]}
[]
[]
[]
[]
[]
[]
[]
[]
[null,null,"Schedule 4 Loss Carry Forward - Historical"]
[null,null,"BELOW ARE FORECASTED AMOUNTS. THIS SCHEDULE WILL BE UPDATED ONCE 2025 TAX RETURN IS FILED IN JUNE 2026."]
[null,null,"Corporation Loss Continuity and Application"]
[]
[null,null,"Non-Capital Loss Carry Forward Deduction",null,null,"Total","Non-Distribution Portion","Utility Balance"]
[null,null,"Actual Historical",null,null,null,null,{"$f":"F14-G14","v":0},"B4"]
[]
[null,null,"Net Capital Loss Carry Forward Deduction",null,null,"Total","Non-Distribution Portion","Utility Balance"]
[null,null,"Actual Historical",null,null,null,null,{"$f":"F17-G17","v":0},"B4"]

{"sheet":"H8 Sch 8 CCA Hist","index":9,"n_rows":45,"n_cols":8,"rows_kept":45,"cut":false,"hidden":false,"merged":[[46,2,46,6],[9,2,9,6],[0,2,0,4],[1,2,1,8],[2,2,2,8],[3,2,3,8]]}
[]
[]
[]
[]
[]
[null,null,"Schedule 8 - Historical Year"]
[]
[null,null,"BELOW ARE FORECASTED AMOUNTS. THIS SCHEDULE WILL BE UPDATED ONCE 2025 TAX RETURN IS FILED IN JUNE 2026."]
[]
[]
[null,null,"Class","Class Description","UCC End of Year Historical per tax returns","Less: Non-Distribution Portion","UCC Regulated Historical Year","Working Paper Reference"]
[null,null,1,"Buildings, Distribution System (acq'd post 1987)",647084894.40263271,1762158,{"$f":"+E12-F12","v":645322736.40263271},"B8"]
[null,null,"1b","Non-Residential Buildings [Reg. 1100(1)(a.1) election]",66868728.8354,4448,{"$f":"+E13-F13","v":66864280.8354},"B8"]
[null,null,2,"Distribution System (acq'd pre 1988)",59926756.043332309,0,{"$f":"+E14-F14","v":59926756.043332309},"B8"]
[null,null,3,"Buildings (acq'd pre 1988)",2078155.3927892391,168366.8769892389,1909788.5158000002,"B8"]
[null,null,6,"Certain Buildings; Fences",3680,0,{"$f":"+E16-F16","v":3680},"B8"]
[null,null,8,"General Office Equipment, Furniture, Fixtures",13728110.782236194,1199138.4907361954,12528972.291499998,"B8"]
[null,null,10,"Motor Vehicles, Fleet",11278814.500203205,216159.48960320838,11062655.010599997,"B8"]
[null,null,10.1,"Certain Automobiles",289.06479999999976,0,289.06479999999976,"B8"]
[null,null,12,"Computer Application Software (Non-Systems)",null,0,0,"B8"]
[null,null,"13 1","Lease # 1",510051,null,510051,"B8"]
[null,null,"13 2","Lease # 2",138300,null,138300,"B8"]
[null,null,"13 3","Lease # 3",0.29999999998835847,null,0.29999999998835847,"B8"]
[null,null,"13 4","Lease # 4",22661,null,22661,"B8"]
[null,null,14,"Limited Period Patents, Franchises, Concessions or Licences",34535763.453943342,0,34535763.453943342,"B8"]
[null,null,14.1,"Eligible Capital Property (acq'd pre 2017)",13768461.657410294,1285976,{"$f":"+E26-F26","v":12482485.657410294},"B8"]
[null,null,14.1,"Eligible Capital Property (acq'd post 2016)",94064374.359400004,88774607.773424655,{"$f":"+E27-F27","v":5289766.5859753489},"B8"]
[null,null,17,"Elec. Generation Equip. (Non-Bldng, acq'd post Feb 27/00); Roads, Lots, Storage",2094450.1686,1614112,480338.16859999998,"B8"]
[null,null,42,"Fibre Optic Cable",55,0,{"$f":"+E29-F29","v":55},"B8"]
[null,null,43.1,"Certain Clean Energy/Energy-Efficient Generation Equipment",2946,0,2946,"B8"]
[null,null,43.2,"Certain Clean Energy/Energy-Efficient Generation Equipment",89352.350000002189,56585.900000002235,32766.449999999953,"B8"]
[null,null,45,"Computers & System Software (acq'd post Mar 22/04 and pre Mar 19/07)",2712.366399999999,0,2712.366399999999,"B8"]
[null,null,46,"Data Network Infrastructure Equipment (acq'd post Mar 22/04)",0,0,0,"B8"]
[null,null,47,"Distribution System (acq'd post Feb 22/05)",2070355650.3891585,37612286.974058002,2032743363.4151006,"B8"]
[null,null,50,"General Purpose Computer Hardware & Software (acq'd post Mar 18/07)",1552522.5377658601,344.78956586075947,1552177.7481999993,"B8"]
[null,null,95,"CWIP",70858303.346017018,63962.320000000858,70794341.02601701,"B8"]
[null,null,54,"Zero-emission vehicles",302004,0,302004]
[null,null,null,null,null,null,0]
[null,null,null,null,null,null,0]
[null,null,null,null,null,null,0]
[null,null,null,null,null,null,0]
[null,null,null,null,null,null,0]
[null,null,null,null,null,null,0]
[null,null,null,null,null,null,0]
[null,null,null,"SUB-TOTAL - UCC",{"$f":"SUM(E12:E44)","v":3089267036.950089},{"$f":"SUM(F12:F44)","v":132758146.61437717},{"$f":"SUM(G12:G44)","v":2956508890.3357115}]

{"sheet":"H13 Sch 13 Reserves Hist","index":10,"n_rows":51,"n_cols":7,"rows_kept":51,"cut":false,"hidden":false,"merged":[[15,2,15,5],[28,2,28,5],[0,2,0,4],[1,2,1,8],[2,2,2,8],[3,2,3,8]]}
[]
[]
[]
[]
[]
[]
[]
[null,null,"Schedule 13 Tax Reserves - Historical"]
[]
[null,null,"Continuity of Reserves"]
[null,null,"BELOW ARE FORECASTED AMOUNTS. THIS SCHEDULE WILL BE UPDATED ONCE 2025 TAX RETURN IS FILED IN JUNE 2026."]
[]
[null,null,"Description","Historical Balance as per tax returns","Non-Distribution Eliminations","Utility Only"]
[]
[null,null,"Capital gains reserves ss.40(1)",null,null,{"$f":"D15-E15","v":0},"B13"]
[null,null,"Tax reserves not deducted for accounting purposes"]
[null,null,"Reserve for doubtful accounts ss. 20(1)(l)",null,null,{"$f":"D17-E17","v":0},"B13"]
[null,null,"Reserve for undelivered goods and services not rendered ss. 20(1)(m)",null,null,0,"B13"]
[null,null,"Reserve for unpaid amounts ss. 20(1)(n)",null,null,0,"B13"]
[null,null,"Debt & share issue expenses ss. 20(1)(e)",null,null,0,"B13"]
[null,null,"Other tax reserves",null,null,0,"B13"]
[null,null,null,null,null,0]
[null,null,null,null,null,0]
[null,null,null,null,null,0]
[null,null,null,null,null,0]
[null,null,null,null,null,0]
[null,null,"Total",{"$f":"SUM(D17:D26)","v":0},{"$f":"SUM(E17:E26)","v":0},{"$f":"SUM(F17:F26)","v":0}]
[]
[null,null,"Financial Statement Reserves (not deductible for Tax Purposes)"]
[null,null,"General reserve for inventory obsolescence (non-specific)",null,null,{"$f":"D30-E30","v":0},"B13"]
[null,null,"General reserve for bad debts",2183193.2200000002,null,2183193.2200000002,"B13"]
[null,null,"Accrued Employee Future Benefits:",null,null,0,"B13"]
[null,null,"- Medical and Life Insurance",null,null,0,"B13"]
[null,null,"-Short & Long-term Disability",null,null,0,"B13"]
[null,null," -Accmulated Sick Leave",null,null,0,"B13"]
[null,null,"- Termination Cost",null,null,0,"B13"]
[null,null,"- Other Post-Employment Benefits",75170005,null,75170005,"B13"]
[null,null,"Provision for Environmental Costs",855607,null,855607,"B13"]
[null,null,"Restructuring Costs",null,null,0,"B13"]
[null,null,"Accrued Contingent Litigation Costs",null,null,0,"B13"]
[null,null,"Accrued Self-Insurance Costs",null,null,0,"B13"]
[null,null,"Other Contingent Liabilities",null,null,0,"B13"]
[null,null,"Bonuses Accrued and Not Paid Within 180 Days of Year-End ss. 78(4)",null,null,0,"B13"]
[null,null,"Unpaid Amounts to Related Person and Not Paid Within 3 Taxation Years ss. 78(1)",null,null,0,"B13"]
[null,null,"Other",null,null,0,"B13"]
[]
[]
[]
[null,null,null,null,null,0]
[null,null,null,null,null,0]
[null,null,"Total ",{"$f":"SUM(D30:D50)","v":78208805.219999999},{"$f":"SUM(E30:E50)","v":0},{"$f":"SUM(F30:F50)","v":78208805.219999999}]

{"sheet":"B0 PILs,Tax Provision Bridge","index":11,"n_rows":38,"n_cols":11,"rows_kept":38,"cut":false,"hidden":false,"merged":[[41,2,41,5],[0,2,0,6],[1,2,1,12],[2,2,2,12],[3,2,3,12],[37,2,37,5]]}
[]
[]
[]
[]
[]
[null,"PILS Tax Provision - Bridge Year"]
[]
[null,null,null,null,null,null,null,null,null,"Wires Only"]
[null,null,null,null,null,null,null,null,"Reference"]
[null,null,"Regulatory Taxable Income",null,null,null,null,null,"B1",{"$f":"'B1 Sch 1 Taxable Income Bridge'!F111","v":40855721.116984606},"A"]
[]
[null,null,null,"Tax Rate","Small Business Rate (If Applicable)","Taxes Payable","Effective Tax Rate"]
[null,null,"Ontario (Max 11.5%)",0.115,{"$f":"IF('A. Data Input Sheet'!H9<=10000000, ontario_SB, IF('A. Data Input Sheet'!H9>=50000000, ontariotax, IF(AND('A. Data Input Sheet'!H9>10000000, 'A. Data Input Sheet'!H9<50000000), ontario_SB+ ('A. Data Input Sheet'!H9 - 10000000)*(ontariotax - ontario_SB)/(50000000-10000000))))","v":0.115},{"$f":"IF(J10<500000,J10,500000)*E13+IF(J10>500000,J10-500000,0)*D13","v":4698407.9284532303},{"$f":"IF(F13=0,0,+F13/J10)","v":0.11500000000000002},"B"]
[null,null,"Federal (Max 15%)",0.15,{"$f":"IF('A. Data Input Sheet'!H9<=10000000, Fed_SB_Bridge, IF('A. Data Input Sheet'!H9>=50000000, FedTax, IF(AND('A. Data Input Sheet'!H9>10000000, 'A. Data Input Sheet'!H9<50000000), Fed_SB_Bridge+ ('A. Data Input Sheet'!H9 - 10000000)*(FedTax -Fed_SB_Bridge)/(50000000-10000000))))","v":0.15000000000000002},{"$f":"E14*IF(J10<500000,J10,500000)+IF(J10>500000,J10-500000,0)*D14","v":6128358.1675476907},{"$f":"IF(F14=0,0,+F14/J10)","v":0.15},"C"]
[]
[null,null,"Combined effective tax rate (Max 26.5%)",null,null,null,null,null,null,{"$f":"SUM(G13:G14)","v":0.26500000000000001},"D = B + C"]
[]
[]
[null,null,"Total Income Taxes",null,null,null,null,null,null,{"$f":"IF(J10*J16<0,0,J10*J16)","v":10826766.096000921},"E = A * D"]
[]
[null,null,"Investment Tax Credits",null,null,null,null,null,null,565000,"F"]
[null,null,"Miscellaneous Tax Credits",null,null,null,null,null,null,350000,"G"]
[null,null," Total Tax Credits",null,null,null,null,null,null,{"$f":"SUM(J21:J22)","v":915000},"H = F + G"]
[]
[null,null,"Corporate PILs/Income Tax Provision for Bridge Year",null,null,null,null,null,null,{"$f":"IF(J19-J23<0,0,J19-J23)","v":9911766.096000921},"I = E - H"]
[]
[null,null,"Corporate PILs/Income Tax Provision Gross Up",null,null,null,null,{"$f":"(1-J16)","v":0.73499999999999999},"J = 1-D",{"$f":"J25/H27-J25","v":3573629.9529799242},"K = I/J-I"]
[]
[]
[null,null,"Income Tax (grossed-up) before tax credits reclass to Other Revenue",null,null,null,null,null,null,{"$f":"J25+J27","v":13485396.048980845},"L = K + I"]
[null,null,"Tax credits reclass to Other Revenue",null,null,null,null,null,null,{"$f":"+J23","v":915000},"M"]
[null,null,"Tax credits reclass to Other Revenue - gross up",null,null,null,null,{"$f":"(1-J16)","v":0.73499999999999999},"J = 1-D",{"$f":"J31/H32-J31","v":329897.95918367361},"N"]
[null,null,"Income Tax (grossed-up) after tax credits reclass to Other Revenue",null,null,null,null,null,null,{"$f":"+J30+J31+J32","v":14730294.008164519},"O = L + M + N"]
[]
[]
[]
[null,null,"Note:"]
[null,null,"1. This is for the derivation of Bridge year PILs income tax expense and should not be used for Test year revenue requirement calculations."]

{"sheet":"B1 Sch 1 Taxable Income Bridge","index":12,"n_rows":111,"n_cols":6,"rows_kept":111,"cut":false,"hidden":false,"merged":[[67,2,67,5],[44,2,44,5],[109,2,109,5],[8,2,8,5],[0,2,0,5],[1,2,1,9],[2,2,2,9],[3,2,3,9],[9,2,9,5]]}
[]
[]
[]
[]
[null,"Adjusted Taxable Income - Bridge Year"]
[]
[null,null,null,"T2S1 line #","Working Paper Reference","Total for Regulated Utility"]
[null,null,"Income before PILs/Taxes","(A + 101 + 102)",null,154377136.37735629]
[]
[null,null,"Additions:"]
[null,null,"Interest and penalties on taxes",103]
[null,null,"Amortization of tangible assets",104,null,165165623]
[null,null,"Amortization of intangible assets",106]
[null,null,"Recapture of capital cost allowance from Schedule 8",107,"B8",{"$f":"'B8 Sch 8 CCA Bridge'!Y43","v":0}]
[null,null,"Income inclusion under subparagraph 13(38)(d)(iii)",108]
[null,null,"Income or loss for tax purposes- joint ventures or partnerships",109]
[null,null,"Loss in equity of subsidiaries and affiliates",110]
[null,null,"Loss on disposal of assets ",111,null,6435213]
[null,null,"Charitable donations and gifts from Schedule 2",112]
[null,null,"Taxable capital gains",113]
[null,null,"Political contributions",114]
[null,null,"Deferred and prepaid expenses",116]
[null,null,"Scientific research expenditures deducted on financial statements",118]
[null,null,"Capitalized interest",119]
[null,null,"Non-deductible club dues and fees",120]
[null,null,"Non-deductible meals and entertainment expense",121,null,270000]
[null,null,"Non-deductible automobile expenses",122]
[null,null,"Non-deductible life insurance premiums",123]
[null,null,"Non-deductible company pension plans",124]
[null,null,"Tax reserves deducted in prior year",125,"B13",{"$f":"'B13 Sch 13 Reserves Bridge'!G22","v":0}]
[null,null,"Reserves from financial statements- balance at end of year",126,"B13",{"$f":"'B13 Sch 13 Reserves Bridge'!K43","v":78928310.219999999}]
[null,null,"Soft costs on construction and renovation of buildings",127]
[null,null,"Capital items expensed",206]
[null,null,"Debt issue expense",208]
[null,null,"Development expenses claimed in current year",212]
[null,null,"Financing fees deducted in books",216]
[null,null,"Gain on settlement of debt",220]
[null,null,"Non-deductible advertising",226]
[null,null,"Non-deductible interest",227]
[null,null,"Non-deductible legal and accounting fees",228]
[null,null,"Recapture of SR&ED expenditures",231]
[null,null,"Share issue expense",235]
[null,null,"Write down of capital property",236]
[null,null,"Amounts received in respect of qualifying environment trust per paragraphs 12(1)(z.1) and 12(1)(z.2)",237]
[null,null,"Other Additions"]
[null,null,"Interest Expensed on Capital Leases",295,null,681266]
[null,null,"Realized Income from Deferred Credit Accounts",295]
[null,null,"Pensions",295]
[null,null,"Non-deductible penalties",295]
[null,null,null,295]
[null,null,null,295]
[null,null,"ARO Accretion expense"]
[null,null,"Capital Contributions Received (ITA 12(1)(x))",null,null,171447352]
[null,null,"Lease Inducements Received (ITA 12(1)(x))"]
[null,null,"Deferred Revenue (ITA 12(1)(a))"]
[null,null,"Prior Year Investment Tax Credits received",null,null,915000]
[null,null,"Depreication expense reclassed to OM&A",null,null,5882628]
[]
[]
[]
[]
[]
[]
[]
[]
[]
[null,null,"Total Additions",null,null,{"$f":"SUM(F10:F66)","v":429725392.22000003}]
[null,null,"Deductions:"]
[null,null,"Gain on disposal of assets per financial statements",401]
[null,null,"Dividends not taxable under section 83",402]
[null,null,"Capital cost allowance from Schedule 8",403,"B8",{"$f":"'B8 Sch 8 CCA Bridge'!AA43","v":280798128.26037169}]
[null,null,"Terminal loss from Schedule 8",404,"B8",{"$f":"'B8 Sch 8 CCA Bridge'!Z43","v":0}]
[null,null,"Allowable business investment loss",406]
[null,null,"Deferred and prepaid expenses",409]
[null,null,"Scientific research expenses claimed in year",411]
[null,null,"Tax reserves claimed in current year",413,"B13",{"$f":"'B13 Sch 13 Reserves Bridge'!K22","v":0}]
[null,null,"Reserves from financial statements - balance at beginning of year",414,"B13",{"$f":"'B13 Sch 13 Reserves Bridge'!G43","v":78208805.219999999}]
[null,null,"Contributions to deferred income plans",416]
[null,null,"Book income of joint venture or partnership",305]
[null,null,"Equity in income from subsidiary or affiliates",306]
[null,null,"Other deductions"]
[null,null,"Interest capitalized for accounting deducted for tax",395,null,3382506]
[null,null,"Capital Lease Payments",395,null,1536873]
[null,null,"Non-taxable imputed interest income on deferral and variance accounts ",395]
[null,null,null,395]
[null,null,null,395]
[null,null,"ARO Payments - Deductible for Tax when Paid"]
[null,null,"ITA 13(7.4) Election - Capital Contributions Received",null,null,{"$f":"+F53","v":171447352}]
[null,null,"ITA 13(7.4) Election - Apply Lease Inducement to cost of Leaseholds"]
[null,null,"Deferred Revenue - ITA 20(1)(m) reserve"]
[null,null,"Principal portion of lease payments"]
[null,null,"Lease Inducement Book Amortization credit to income"]
[null,null,"Financing fees for tax ITA 20(1)(e) and (e.1)"]
[null,null,"Pension costs capitalized for accounting, deducted for tax",null,null,6958143]
[null,null,"Current year ITCs accrued for accounting",null,null,{"$f":"F56","v":915000}]
[]
[]
[]
[]
[]
[]
[null,null,"Total Deductions",null,"calculated",{"$f":"SUM(F69:F101)","v":543246807.48037171}]
[]
[null,null,"Net Income for Tax Purposes",null,"calculated",{"$f":"+F8+F67-F102","v":40855721.116984606}]
[null,null,"Charitable donations",311]
[null,null,"Taxable dividends received under section 112 or 113",320]
[null,null,"Non-capital losses of previous tax years from Schedule 4",331,"B4",{"$f":"'B4 Sch 4 Loss Cfwd Bridge'!G13*-1","v":0}]
[null,null,"Net capital losses of previous tax years from Schedule 4",332,"B4",{"$f":"'B4 Sch 4 Loss Cfwd Bridge'!G20*-1","v":0}]
[null,null,"Limited partnership losses of previous tax years from Schedule 4",335]
[]
[null,null,"TAXABLE INCOME",null,"calculated",{"$f":"SUM(F104:F109)","v":40855721.116984606}]

{"sheet":"B4 Sch 4 Loss Cfwd Bridge","index":13,"n_rows":23,"n_cols":8,"rows_kept":23,"cut":false,"hidden":false,"merged":[[21,2,21,4],[14,2,14,4],[20,2,20,4],[18,2,18,4],[0,2,0,4],[13,2,13,4],[17,2,17,4],[10,2,10,4],[11,2,11,4],[1,2,1,9],[2,2,2,9],[3,2,3,9],[11,9,11,11],[13,9,13,11]]}
[]
[]
[]
[]
[]
[]
[null,null,"Corporation Loss Continuity and Application"]
[]
[null,null,"Schedule 4 Loss Carry Forward - Bridge Year"]
[]
[null,null,"Non-Capital Loss Carry Forward Deduction",null,null,null,"Total"]
[null,null,"Actual Historical",null,null,"H4",{"$f":"'H4 Sch 4 Loss Cfwd Hist'!H14","v":0}]
[null,null,"Amount to be used in Bridge Year ",null,null,"B1",{"$f":"IF('B1 Sch 1 Taxable Income Bridge'!F104<0,0,IF('B1 Sch 1 Taxable Income Bridge'!F104>G12,G12,'B1 Sch 1 Taxable Income Bridge'!F104))","v":0}]
[null,null,"Loss Carry Forward Generated in Bridge Year (if any)",null,null,"B1",{"$f":"IF('B1 Sch 1 Taxable Income Bridge'!F104<0, 'B1 Sch 1 Taxable Income Bridge'!F104*-1, 0)","v":0}]
[null,null,"Other Adjustments"]
[null,null,"Balance available for use post Bridge Year",null,null,"calculated",{"$f":"G12-G13+G14+G15","v":0},"T4"]
[]
[null,null,"Net Capital Loss Carry Forward Deduction",null,null,null,"Total"]
[null,null,"Actual Historical",null,null,"H4",{"$f":"'H4 Sch 4 Loss Cfwd Hist'!H17","v":0}]
[null,null,"Amount to be used in Bridge Year "]
[null,null,"Loss Carry Forward Generated in Bridge Year (if any)",null,null,"B1"]
[null,null,"Other Adjustments"]
[null,null,"Balance available for use post Bridge Year",null,null,"calculated",{"$f":"G19-G20+G21+G22","v":0},"T4"]

{"sheet":"B8 Sch 8 CCA Bridge","index":14,"n_rows":51,"n_cols":29,"rows_kept":51,"cut":false,"hidden":false,"merged":[[47,2,47,28],[48,2,48,28],[44,1,44,28],[45,1,45,28],[0,1,0,4],[1,1,1,16],[2,1,2,16],[3,1,3,16],[46,2,46,28]]}
[]
[]
[]
[]
[]
[]
[null,"Schedule 8 CCA - Bridge Year"]
[]
[null,"(1)\nClass","Class Description","Working Paper Reference","(2)\nUndepreciated capital\ncost (UCC) at the\nbeginning of the bridge year","(3)\nCost of acquisitions during\nthe year (new property must\nbe available for use, except CWIP)","(4)\nCost of acquisitions from column 3 that are designated immediate expensing property (DIEP)","(5)\nAdjustments and transfers (enter amounts that will reduce the UCC as negatives)","(6)\nAmount from column 5 that is assistance received or receivable during the year for a property, subsequent to its disposition","(7)\nAmount from column 5 that is repaid during the year for a property, subsequent to its disposition","(8)\nProceeds of dispositions","(9)\nProceeds of dispositions of the DIEP (enter amount from column 8 that relates to the DIEP reported in column 4)","(10)\nUCC (column 2 plus column 3 plus or minus column 5 minus column 8)","(11)\nUCC of the DIEP (enter the UCC amount that relates to the DIEP reported in column 4)","(12)\nImmediate expensing ","(13)\nCost of acquisitions on remainder of Class (column 3 minus\ncolumn 4 plus\ncolumn 11 minus\ncolumn 12)","(14)\nCost of acquisitions from column 13 that are accelerated investment incentive properties (AIIP) or properties included in Classes 54 to 56","(15)\nRemaining UCC (column 10 minus\ncolumn 12)\n(if negative, enter \"0\")","(16)\nProceeds of disposition available to reduce the UCC of AIIP and property included in Classes 54 to 56 (column 8 minus column 9\nplus column 6 minus column 13\nplus column 14 minus column 7) (if negative, enter \"0\")","(17) \nNet capital cost additions of AIIP and property included in Classes 54 to 56 acquired during the year (column 14 minus column 16) (if negative, enter \"0\")","Relevant factor1","(18)\nUCC adjustment for AIIP and property included in Classes 54 to 56 acquired during the year (column 17 multiplied by the relevant factor)"," (19)\nUCC adjustment for non-AIIP and property included in Classes 54 to 56 (0.5 multiplied by the result of column 13 minus column 14 minus\ncolumn 6 plus column 7 minus\ncolumn 8 plus column 9) (if negative, enter \"0\")","(20)\nCCA Rate %","(21)\nRecapture of CCA","(22)\nTerminal Loss","(23)\nCCA (for declining balance method, the result of column 15 plus column  18 minus column 19, multiplied by column  20  or a lower amount, plus column 12))","(24)\nUCC at the end of the test year (column 10 minus column  23)","Working Paper Reference"]
[null,{"$f":"IF(ISBLANK('H8 Sch 8 CCA Hist'!C12), \"\", 'H8 Sch 8 CCA Hist'!C12)","v":1},{"$f":"IF(ISBLANK('H8 Sch 8 CCA Hist'!D12), \"\", 'H8 Sch 8 CCA Hist'!D12)","v":"Buildings, Distribution System (acq'd post 1987)"},"H8",{"$f":"IF(ISBLANK('H8 Sch 8 CCA Hist'!E12),0, 'H8 Sch 8 CCA Hist'!G12)","v":645322736.40263271},1238435,null,null,null,null,null,null,{"$f":"IFERROR(E10+F10+H10-K10,0)","v":646561171.40263271},null,null,{"$f":"+F10-G10+N10-O10","v":1238435},{"$f":"+P10","v":1238435},{"$f":"IF((M10-O10)<0,0,M10-O10)","v":646561171.40263271},{"$f":"IF((K10-L10+I10-P10+Q10-J10)<0,0,(K10-L10+I10-P10+Q10-J10))","v":0},{"$f":"IF((Q10-S10)<0,0,(Q10-S10))","v":1238435},0.5,{"$f":"T10*U10","v":619217.5},{"$f":"IF((0.5*(P10-Q10-I10+J10-K10+L10))<0,0,(0.5*(P10-Q10-I10+J10-K10+L10)))","v":0},0.04,null,null,{"$f":"IF(OR(R10<=0,Z10>0),0,(R10+V10-W10)*X10)","v":25887215.556105308},{"$f":"IF(M10<0,0,M10-Z10-AA10)","v":620673955.84652746},"T8"]
[null,{"$f":"IF(ISBLANK('H8 Sch 8 CCA Hist'!C13), \"\", 'H8 Sch 8 CCA Hist'!C13)","v":"1b"},{"$f":"IF(ISBLANK('H8 Sch 8 CCA Hist'!D13), \"\", 'H8 Sch 8 CCA Hist'!D13)","v":"Non-Residential Buildings [Reg. 1100(1)(a.1) election]"},"H8",{"$f":"IF(ISBLANK('H8 Sch 8 CCA Hist'!E13),0, 'H8 Sch 8 CCA Hist'!G13)","v":66864280.8354},null,null,null,null,null,null,null,66864280.8354,null,null,0,null,{"$f":"IF((M11-O11)<0,0,M11-O11)","v":66864280.8354},{"$f":"IF((K11-L11+I11-P11+Q11-J11)<0,0,(K11-L11+I11-P11+Q11-J11))","v":0},{"$f":"IF((Q11-S11)<0,0,(Q11-S11))","v":0},0.5,{"$f":"T11*U11","v":0},{"$f":"IF((0.5*(P11-Q11-I11+J11-K11+L11))<0,0,(0.5*(P11-Q11-I11+J11-K11+L11)))","v":0},0.06,null,null,{"$f":"IF(OR(R11<=0,Z11>0),0,(R11+V11-W11)*X11)","v":4011856.8501239996},{"$f":"IF(M11<0,0,M11-Z11-AA11)","v":62852423.985275999},"T8"]
[null,{"$f":"IF(ISBLANK('H8 Sch 8 CCA Hist'!C14), \"\", 'H8 Sch 8 CCA Hist'!C14)","v":2},{"$f":"IF(ISBLANK('H8 Sch 8 CCA Hist'!D14), \"\", 'H8 Sch 8 CCA Hist'!D14)","v":"Distribution System (acq'd pre 1988)"},"H8",{"$f":"IF(ISBLANK('H8 Sch 8 CCA Hist'!E14),0, 'H8 Sch 8 CCA Hist'!G14)","v":59926756.043332309},null,null,null,null,null,null,null,59926756.043332309,null,null,0,null,59926756.043332309,0,0,null,0,0,0.06,null,null,3595605.3625999382,56331150.680732369,"T8"]
[null,{"$f":"IF(ISBLANK('H8 Sch 8 CCA Hist'!C15), \"\", 'H8 Sch 8 CCA Hist'!C15)","v":3},{"$f":"IF(ISBLANK('H8 Sch 8 CCA Hist'!D15), \"\", 'H8 Sch 8 CCA Hist'!D15)","v":"Buildings (acq'd pre 1988)"},"H8",{"$f":"IF(ISBLANK('H8 Sch 8 CCA Hist'!E15),0, 'H8 Sch 8 CCA Hist'!G15)","v":1909788.5158000002},null,null,null,null,null,null,null,1909788.5158000002,null,null,0,null,1909788.5158000002,0,0,null,0,0,0.05,null,null,95489.425790000008,1814299.0900100002,"T8"]
[null,{"$f":"IF(ISBLANK('H8 Sch 8 CCA Hist'!C16), \"\", 'H8 Sch 8 CCA Hist'!C16)","v":6},{"$f":"IF(ISBLANK('H8 Sch 8 CCA Hist'!D16), \"\", 'H8 Sch 8 CCA Hist'!D16)","v":"Certain Buildings; Fences"},"H8",{"$f":"IF(ISBLANK('H8 Sch 8 CCA Hist'!E16),0, 'H8 Sch 8 CCA Hist'!G16)","v":3680},null,null,null,null,null,null,null,3680,null,null,0,null,3680,0,0,0.5,0,0,0.1,null,null,368,3312,"T8"]
[null,{"$f":"IF(ISBLANK('H8 Sch 8 CCA Hist'!C17), \"\", 'H8 Sch 8 CCA Hist'!C17)","v":8},{"$f":"IF(ISBLANK('H8 Sch 8 CCA Hist'!D17), \"\", 'H8 Sch 8 CCA Hist'!D17)","v":"General Office Equipment, Furniture, Fixtures"},"H8",{"$f":"IF(ISBLANK('H8 Sch 8 CCA Hist'!E17),0, 'H8 Sch 8 CCA Hist'!G17)","v":12528972.291499998},2420280,null,null,null,null,null,null,14949252.291499998,null,null,2420280,{"$f":"+P15","v":2420280},14949252.291499998,0,2420280,0.5,1210140,0,0.2,null,null,3231878.4583000001,11717373.833199998,"T8"]
[null,{"$f":"IF(ISBLANK('H8 Sch 8 CCA Hist'!C18), \"\", 'H8 Sch 8 CCA Hist'!C18)","v":10},{"$f":"IF(ISBLANK('H8 Sch 8 CCA Hist'!D18), \"\", 'H8 Sch 8 CCA Hist'!D18)","v":"Motor Vehicles, Fleet"},"H8",{"$f":"IF(ISBLANK('H8 Sch 8 CCA Hist'!E18),0, 'H8 Sch 8 CCA Hist'!G18)","v":11062655.010599997},12033312,null,null,null,null,676790,null,22419177.010599997,null,null,12033312,{"$f":"+P16","v":12033312},22419177.010599997,676790,11356522,0.5,5678261,0,0.3,null,null,{"$f":"IF(OR(R16<=0,Z16>0),0,(R16+V16-W16)*X16)","v":8429231.4031799994},13989945.607419997,"T8"]
[null,{"$f":"IF(ISBLANK('H8 Sch 8 CCA Hist'!C19), \"\", 'H8 Sch 8 CCA Hist'!C19)","v":10.1},{"$f":"IF(ISBLANK('H8 Sch 8 CCA Hist'!D19), \"\", 'H8 Sch 8 CCA Hist'!D19)","v":"Certain Automobiles"},"H8",{"$f":"IF(ISBLANK('H8 Sch 8 CCA Hist'!E19),0, 'H8 Sch 8 CCA Hist'!G19)","v":289.06479999999976},null,null,null,null,null,null,null,289.06479999999976,null,null,0,null,289.06479999999976,0,0,0.5,0,0,0.3,null,null,86.719439999999921,202.34535999999986,"T8"]
[null,{"$f":"IF(ISBLANK('H8 Sch 8 CCA Hist'!C20), \"\", 'H8 Sch 8 CCA Hist'!C20)","v":12},{"$f":"IF(ISBLANK('H8 Sch 8 CCA Hist'!D20), \"\", 'H8 Sch 8 CCA Hist'!D20)","v":"Computer Application Software (Non-Systems)"},"H8",{"$f":"IF(ISBLANK('H8 Sch 8 CCA Hist'!E20),0, 'H8 Sch 8 CCA Hist'!G20)","v":0},30583036,null,null,null,null,null,null,30583036,null,null,30583036,{"$f":"+P18","v":30583036},30583036,0,30583036,null,0,0,1,null,null,30583036,0,"T8"]
[null,"13 1",{"$f":"IF(ISBLANK('H8 Sch 8 CCA Hist'!D21), \"\", 'H8 Sch 8 CCA Hist'!D21)","v":"Lease # 1"},"H8",{"$f":"IF(ISBLANK('H8 Sch 8 CCA Hist'!E21),0, 'H8 Sch 8 CCA Hist'!G21)","v":510051},null,null,null,null,null,null,null,510051,null,null,0,null,510051,0,0,0.5,0,0,"NA",null,null,36882,473169,"T8"]
[null,"13 2",{"$f":"IF(ISBLANK('H8 Sch 8 CCA Hist'!D22), \"\", 'H8 Sch 8 CCA Hist'!D22)","v":"Lease # 2"},"H8",{"$f":"IF(ISBLANK('H8 Sch 8 CCA Hist'!E22),0, 'H8 Sch 8 CCA Hist'!G22)","v":138300},null,null,null,null,null,null,null,138300,null,null,0,null,138300,0,0,0.5,0,0,"NA",null,null,32143,106157,"T8"]
[null,"13 3",{"$f":"IF(ISBLANK('H8 Sch 8 CCA Hist'!D23), \"\", 'H8 Sch 8 CCA Hist'!D23)","v":"Lease # 3"},"H8",{"$f":"IF(ISBLANK('H8 Sch 8 CCA Hist'!E23),0, 'H8 Sch 8 CCA Hist'!G23)","v":0.29999999998835847},null,null,null,null,null,null,null,0.29999999998835847,null,null,0,null,0.29999999998835847,0,0,0.5,0,0,"NA",null,null,0,0.29999999998835847,"T8"]
[null,"13 4",{"$f":"IF(ISBLANK('H8 Sch 8 CCA Hist'!D24), \"\", 'H8 Sch 8 CCA Hist'!D24)","v":"Lease # 4"},"H8",{"$f":"IF(ISBLANK('H8 Sch 8 CCA Hist'!E24),0, 'H8 Sch 8 CCA Hist'!G24)","v":22661},null,null,null,null,null,null,null,22661,null,null,0,null,22661,0,0,0.5,0,0,"NA",null,null,15110,7551,"T8"]
[null,{"$f":"IF(ISBLANK('H8 Sch 8 CCA Hist'!C25), \"\", 'H8 Sch 8 CCA Hist'!C25)","v":14},{"$f":"IF(ISBLANK('H8 Sch 8 CCA Hist'!D25), \"\", 'H8 Sch 8 CCA Hist'!D25)","v":"Limited Period Patents, Franchises, Concessions or Licences"},"H8",{"$f":"IF(ISBLANK('H8 Sch 8 CCA Hist'!E25),0, 'H8 Sch 8 CCA Hist'!G25)","v":34535763.453943342},7894473,null,null,null,null,null,null,42430236.453943342,null,null,7894473,{"$f":"+P23","v":7894473},42430236.453943342,0,7894473,0.5,3947236.5,0,"NA",null,null,4222626.5577255096,38207609.89621783,"T8"]
[null,14.1,"Eligible Capital Property (acq'd pre Jan 1, 2017)","H8",{"$f":"IF(ISBLANK('H8 Sch 8 CCA Hist'!E26),0, 'H8 Sch 8 CCA Hist'!G26)","v":12482485.657410294},null,null,null,null,null,null,null,12482485.657410294,null,null,0,null,{"$f":"IF((M24-O24)<0,0,M24-O24)","v":12482485.657410294},{"$f":"IF((K24-L24+I24-P24+Q24-J24)<0,0,(K24-L24+I24-P24+Q24-J24))","v":0},0,null,0,0,7.0000000000000007E-2,null,null,873773.99601872067,11608711.661391573,"T8"]
[null,14.1,"Eligible Capital Property (acq'd post Jan 1, 2017)","H8",{"$f":"IF(ISBLANK('H8 Sch 8 CCA Hist'!E27),0, 'H8 Sch 8 CCA Hist'!G27)","v":5289766.5859753489},138132,null,null,null,null,null,null,5427898.5859753489,null,null,138132,{"$f":"+P25","v":138132},5427898.5859753489,0,138132,0.5,69066,0,0.05,null,null,274848.22929876746,5153050.3566765813,"T8"]
[null,{"$f":"IF(ISBLANK('H8 Sch 8 CCA Hist'!C28), \"\", 'H8 Sch 8 CCA Hist'!C28)","v":17},{"$f":"IF(ISBLANK('H8 Sch 8 CCA Hist'!D28), \"\", 'H8 Sch 8 CCA Hist'!D28)","v":"Elec. Generation Equip. (Non-Bldng, acq'd post Feb 27/00); Roads, Lots, Storage"},"H8",{"$f":"IF(ISBLANK('H8 Sch 8 CCA Hist'!E28),0, 'H8 Sch 8 CCA Hist'!G28)","v":480338.16859999998},null,null,null,null,null,null,null,480338.16859999998,null,null,0,{"$f":"+P26","v":0},480338.16859999998,0,0,0.5,0,0,0.08,null,null,38427.053487999998,441911.11511199997,"T8"]
[null,{"$f":"IF(ISBLANK('H8 Sch 8 CCA Hist'!C29), \"\", 'H8 Sch 8 CCA Hist'!C29)","v":42},{"$f":"IF(ISBLANK('H8 Sch 8 CCA Hist'!D29), \"\", 'H8 Sch 8 CCA Hist'!D29)","v":"Fibre Optic Cable"},"H8",{"$f":"IF(ISBLANK('H8 Sch 8 CCA Hist'!E29),0, 'H8 Sch 8 CCA Hist'!G29)","v":55},null,null,null,null,null,null,null,55,null,null,0,null,55,0,0,0.5,0,0,0.12,null,null,6.6,48.4,"T8"]
[null,{"$f":"IF(ISBLANK('H8 Sch 8 CCA Hist'!C30), \"\", 'H8 Sch 8 CCA Hist'!C30)","v":43.1},{"$f":"IF(ISBLANK('H8 Sch 8 CCA Hist'!D30), \"\", 'H8 Sch 8 CCA Hist'!D30)","v":"Certain Clean Energy/Energy-Efficient Generation Equipment"},"H8",{"$f":"IF(ISBLANK('H8 Sch 8 CCA Hist'!E30),0, 'H8 Sch 8 CCA Hist'!G30)","v":2946},null,null,null,null,null,null,null,2946,null,null,0,null,2946,0,0,1.5,0,0,0.3,null,null,883.8,2062.1999999999998,"T8"]
[null,{"$f":"IF(ISBLANK('H8 Sch 8 CCA Hist'!C31), \"\", 'H8 Sch 8 CCA Hist'!C31)","v":43.2},{"$f":"IF(ISBLANK('H8 Sch 8 CCA Hist'!D31), \"\", 'H8 Sch 8 CCA Hist'!D31)","v":"Certain Clean Energy/Energy-Efficient Generation Equipment"},"H8",{"$f":"IF(ISBLANK('H8 Sch 8 CCA Hist'!E31),0, 'H8 Sch 8 CCA Hist'!G31)","v":32766.449999999953},null,null,null,null,null,null,null,32766.449999999953,null,null,0,null,32766.449999999953,0,0,0.5,0,0,0.5,null,null,16383.224999999977,16383.224999999977,"T8"]
[null,{"$f":"IF(ISBLANK('H8 Sch 8 CCA Hist'!C32), \"\", 'H8 Sch 8 CCA Hist'!C32)","v":45},{"$f":"IF(ISBLANK('H8 Sch 8 CCA Hist'!D32), \"\", 'H8 Sch 8 CCA Hist'!D32)","v":"Computers & System Software (acq'd post Mar 22/04 and pre Mar 19/07)"},"H8",{"$f":"IF(ISBLANK('H8 Sch 8 CCA Hist'!E32),0, 'H8 Sch 8 CCA Hist'!G32)","v":2712.366399999999},null,null,null,null,null,null,null,2712.366399999999,null,null,0,null,2712.366399999999,0,0,null,0,0,0.45,null,null,1220.5648799999997,1491.8015199999993,"T8"]
[null,{"$f":"IF(ISBLANK('H8 Sch 8 CCA Hist'!C33), \"\", 'H8 Sch 8 CCA Hist'!C33)","v":46},{"$f":"IF(ISBLANK('H8 Sch 8 CCA Hist'!D33), \"\", 'H8 Sch 8 CCA Hist'!D33)","v":"Data Network Infrastructure Equipment (acq'd post Mar 22/04)"},"H8",{"$f":"IF(ISBLANK('H8 Sch 8 CCA Hist'!E33),0, 'H8 Sch 8 CCA Hist'!G33)","v":0},null,null,null,null,null,null,null,0,null,null,0,null,0,0,0,0.5,0,0,0.3,null,null,0,0,"T8"]
[null,{"$f":"IF(ISBLANK('H8 Sch 8 CCA Hist'!C34), \"\", 'H8 Sch 8 CCA Hist'!C34)","v":47},{"$f":"IF(ISBLANK('H8 Sch 8 CCA Hist'!D34), \"\", 'H8 Sch 8 CCA Hist'!D34)","v":"Distribution System (acq'd post Feb 22/05)"},"H8",{"$f":"IF(ISBLANK('H8 Sch 8 CCA Hist'!E34),0, 'H8 Sch 8 CCA Hist'!G34)","v":2032743363.4151006},267397329.12032604,null,null,null,null,16878,null,2300123814.5354266,null,null,267397329.12032604,{"$f":"+P32","v":267397329.12032604},2300123814.5354266,16878,267380451.12032604,0.5,133690225.56016302,0,0.08,null,null,194705123.20764717,2105418691.3277795,"T8"]
[null,{"$f":"IF(ISBLANK('H8 Sch 8 CCA Hist'!C35), \"\", 'H8 Sch 8 CCA Hist'!C35)","v":50},{"$f":"IF(ISBLANK('H8 Sch 8 CCA Hist'!D35), \"\", 'H8 Sch 8 CCA Hist'!D35)","v":"General Purpose Computer Hardware & Software (acq'd post Mar 18/07)"},"H8",{"$f":"IF(ISBLANK('H8 Sch 8 CCA Hist'!E35),0, 'H8 Sch 8 CCA Hist'!G35)","v":1552177.7481999993},3801635,null,null,null,null,null,null,5353812.7481999993,null,null,3801635,3801635,5353812.7481999993,0,3801635,0.81818100000000005,3110425.5259350003,0,0.55000000000000004,null,null,4655331.0507742502,698481.69742574915,"T8"]
[null,{"$f":"IF(ISBLANK('H8 Sch 8 CCA Hist'!C36), \"\", 'H8 Sch 8 CCA Hist'!C36)","v":95},{"$f":"IF(ISBLANK('H8 Sch 8 CCA Hist'!D36), \"\", 'H8 Sch 8 CCA Hist'!D36)","v":"CWIP"},"H8",{"$f":"IF(ISBLANK('H8 Sch 8 CCA Hist'!E36),0, 'H8 Sch 8 CCA Hist'!G36)","v":70794341.02601701},null,null,22111356.848183993,null,null,null,null,92905697.874201,null,null,0,0,92905697.874201,0,0,0.5,0,0,0,null,null,0,92905697.874201,"T8"]
[null,{"$f":"IF(ISBLANK('H8 Sch 8 CCA Hist'!C37), \"\", 'H8 Sch 8 CCA Hist'!C37)","v":54},{"$f":"IF(ISBLANK('H8 Sch 8 CCA Hist'!D37), \"\", 'H8 Sch 8 CCA Hist'!D37)","v":"Zero-emission vehicles"},"H8",{"$f":"IF(ISBLANK('H8 Sch 8 CCA Hist'!E37),0, 'H8 Sch 8 CCA Hist'!G37)","v":302004},null,null,null,null,null,null,null,302004,null,null,0,null,302004,0,0,null,0,0,0.3,null,null,90601.2,211402.8,"T8"]
[null,{"$f":"IF(ISBLANK('H8 Sch 8 CCA Hist'!C38), \"\", 'H8 Sch 8 CCA Hist'!C38)","v":""},{"$f":"IF(ISBLANK('H8 Sch 8 CCA Hist'!D38), \"\", 'H8 Sch 8 CCA Hist'!D38)","v":""},"H8",{"$f":"IF(ISBLANK('H8 Sch 8 CCA Hist'!E38),0, 'H8 Sch 8 CCA Hist'!G38)","v":0},null,null,null,null,null,null,null,0,null,null,0,null,0,0,0,null,0,0,null,null,null,0,0,"T8"]
[null,{"$f":"IF(ISBLANK('H8 Sch 8 CCA Hist'!C39), \"\", 'H8 Sch 8 CCA Hist'!C39)","v":""},{"$f":"IF(ISBLANK('H8 Sch 8 CCA Hist'!D39), \"\", 'H8 Sch 8 CCA Hist'!D39)","v":""},"H8",{"$f":"IF(ISBLANK('H8 Sch 8 CCA Hist'!E39),0, 'H8 Sch 8 CCA Hist'!G39)","v":0},null,null,null,null,null,null,null,{"$f":"IFERROR(E37+F37+H37-K37,0)","v":0},null,null,{"$f":"+F37-G37+N37-O37","v":0},null,0,0,0,null,0,0,null,null,null,0,0,"T8"]
[null,{"$f":"IF(ISBLANK('H8 Sch 8 CCA Hist'!C40), \"\", 'H8 Sch 8 CCA Hist'!C40)","v":""},{"$f":"IF(ISBLANK('H8 Sch 8 CCA Hist'!D40), \"\", 'H8 Sch 8 CCA Hist'!D40)","v":""},"H8",{"$f":"IF(ISBLANK('H8 Sch 8 CCA Hist'!E40),0, 'H8 Sch 8 CCA Hist'!G40)","v":0},null,null,null,null,null,null,null,0,null,null,0,null,0,0,0,null,0,0,null,null,null,0,0,"T8"]
[null,{"$f":"IF(ISBLANK('H8 Sch 8 CCA Hist'!C41), \"\", 'H8 Sch 8 CCA Hist'!C41)","v":""},{"$f":"IF(ISBLANK('H8 Sch 8 CCA Hist'!D41), \"\", 'H8 Sch 8 CCA Hist'!D41)","v":""},"H8",{"$f":"IF(ISBLANK('H8 Sch 8 CCA Hist'!E41),0, 'H8 Sch 8 CCA Hist'!G41)","v":0},null,null,null,null,null,null,null,0,null,null,0,null,0,0,0,null,0,0,null,null,null,0,0,"T8"]
[null,{"$f":"IF(ISBLANK('H8 Sch 8 CCA Hist'!C42), \"\", 'H8 Sch 8 CCA Hist'!C42)","v":""},{"$f":"IF(ISBLANK('H8 Sch 8 CCA Hist'!D42), \"\", 'H8 Sch 8 CCA Hist'!D42)","v":""},"H8",{"$f":"IF(ISBLANK('H8 Sch 8 CCA Hist'!E42),0, 'H8 Sch 8 CCA Hist'!G42)","v":0},null,null,null,null,null,null,null,0,null,null,0,null,0,0,0,null,0,0,null,null,null,0,0,"T8"]
[null,{"$f":"IF(ISBLANK('H8 Sch 8 CCA Hist'!C43), \"\", 'H8 Sch 8 CCA Hist'!C43)","v":""},{"$f":"IF(ISBLANK('H8 Sch 8 CCA Hist'!D43), \"\", 'H8 Sch 8 CCA Hist'!D43)","v":""},"H8",{"$f":"IF(ISBLANK('H8 Sch 8 CCA Hist'!E43),0, 'H8 Sch 8 CCA Hist'!G43)","v":0},null,null,null,null,null,null,null,0,null,null,0,null,0,0,0,null,0,0,null,null,null,0,{"$f":"IF(M41<0,0,M41-Z41-AA41)","v":0},"T8"]
[null,{"$f":"IF(ISBLANK('H8 Sch 8 CCA Hist'!C44), \"\", 'H8 Sch 8 CCA Hist'!C44)","v":""},{"$f":"IF(ISBLANK('H8 Sch 8 CCA Hist'!D44), \"\", 'H8 Sch 8 CCA Hist'!D44)","v":""},"H8",{"$f":"IF(ISBLANK('H8 Sch 8 CCA Hist'!E44),0, 'H8 Sch 8 CCA Hist'!G44)","v":0},null,null,null,null,null,null,null,0,null,null,0,null,0,0,0,null,0,0,null,null,null,0,0,"T8"]
[null,null,"TOTALS",null,{"$f":"SUM(E10:E42)","v":2956508890.3357115},{"$f":"SUM(F10:F42)","v":325506632.12032604},{"$f":"SUM(G10:G42)","v":0},{"$f":"SUM(H10:H42)","v":22111356.848183993},0,0,693668,{"$f":"SUM(L10:L42)","v":0},{"$f":"SUM(M10:M42)","v":3303433211.3042212},{"$f":"SUM(N10:N42)","v":0},null,325506632.12032604,325506632.12032604,null,{"$f":"SUM(S10:S42)","v":693668},{"$f":"SUM(T10:T42)","v":324812964.12032604},null,{"$f":"SUM(V10:V42)","v":148324572.08609802},{"$f":"SUM(W10:W42)","v":0},null,{"$f":"SUM(Y10:Y42)","v":0},0,280798128.26037169,3022635083.0438499,"B1"]
[]
[null,"For additional details and guidance on calculating amounts in Schedule 8, refer to the notes to the Canada Revenue Agency published Schedule 8 - Capital Cost Allowance (CCA) (2018 and later tax years):"]
[null,"https://www.canada.ca/content/dam/cra-arc/formspubs/pbg/t2sch8/t2sch8-19e.pdf"]
[]
[]
[]
[null,"1. Please note that Subsection 1100(2) of the Income Tax Regulations provide undepreciated capital cost adjustment factors of eligible zero-emission vehicles and equipment under Class 53, Class 54, Class 55 and Class 56, "]
[null,"    please assess the applicability of these adjustments and incorporate them in the PILs model as applicable."]

{"sheet":"B13 Sch 13 Reserves Bridge","index":15,"n_rows":44,"n_cols":14,"rows_kept":44,"cut":false,"hidden":false,"merged":[[23,2,23,13],[9,8,9,9],[1,2,1,10],[2,2,2,10],[3,2,3,10],[13,2,13,13]]}
[]
[]
[]
[]
[]
[]
[null,null,"Schedule 13 Tax Reserves - Bridge Year"]
[]
[null,null,"Continuity of Reserves"]
[null,null,null,null,null,null,null,null,"Bridge Year Adjustments"]
[null,null,"Description","Reference","Historical Utility Only","Eliminate Amounts Not Relevant for Bridge Year","Adjusted Utility Balance",null,"Additions","Disposals"," Balance for Bridge Year",null,"Change During the Year","Disallowed Expenses"]
[]
[null,null,"Capital gains reserves ss.40(1)","H13",{"$f":"'H13 Sch 13 Reserves Hist'!F15","v":0},null,{"$f":"SUM(E13:F13)","v":0},null,null,null,{"$f":"G13+I13-J13","v":0},"T13",{"$f":"+K13-G13","v":0}]
[null,null,"Tax Reserves Not Deducted for Accounting Purposes"]
[null,null,"Reserve for doubtful accounts ss. 20(1)(l)","H13",{"$f":"'H13 Sch 13 Reserves Hist'!F17","v":0},null,{"$f":"SUM(E15:F15)","v":0},null,null,null,{"$f":"G15+I15-J15","v":0},"T13",{"$f":"+K15-G15","v":0}]
[null,null,"Reserve for goods and services not delivered ss. 20(1)(m)","H13",{"$f":"'H13 Sch 13 Reserves Hist'!F18","v":0},null,0,null,null,null,0,"T13",0]
[null,null,"Reserve for unpaid amounts ss. 20(1)(n)","H13",{"$f":"'H13 Sch 13 Reserves Hist'!F19","v":0},null,0,null,null,null,0,"T13",0]
[null,null,"Debt & share issue expenses ss. 20(1)(e)","H13",{"$f":"'H13 Sch 13 Reserves Hist'!F20","v":0},null,0,null,null,null,0,"T13",0]
[null,null,"Other tax reserves","H13",{"$f":"'H13 Sch 13 Reserves Hist'!F21","v":0},null,0,null,null,null,0,"T13",0]
[null,null,null,null,{"$f":"'H13 Sch 13 Reserves Hist'!F25","v":0},null,0,null,null,null,0,null,0]
[null,null,null,null,{"$f":"'H13 Sch 13 Reserves Hist'!F26","v":0},null,0,null,null,null,0,null,0]
[null,null,"Total",null,{"$f":"SUM(E15:E21)","v":0},0,0,"B1",0,0,0,"B1",0,0]
[null,null,null,null,0]
[null,null,"Financial statement reserves (not deductible for tax purposes)"]
[null,null,"General Reserve for Inventory Obsolescence (non-specific)","H13",{"$f":"'H13 Sch 13 Reserves Hist'!F30","v":0},null,{"$f":"SUM(E25:F25)","v":0},null,null,null,{"$f":"G25+I25-J25","v":0},"T13",{"$f":"+K25-G25","v":0}]
[null,null,"General Reserve for Bad Debts","H13",{"$f":"'H13 Sch 13 Reserves Hist'!F31","v":2183193.2200000002},null,2183193.2200000002,null,null,null,2183193.2200000002,"T13",0]
[null,null,"Accrued Employee Future Benefits:","H13",{"$f":"'H13 Sch 13 Reserves Hist'!F32","v":0},null,0,null,null,null,0,"T13",0]
[null,null,"- Medical and Life Insurance","H13",{"$f":"'H13 Sch 13 Reserves Hist'!F33","v":0},null,0,null,null,null,0,"T13",0]
[null,null,"- Short & Long-term Disability","H13",{"$f":"'H13 Sch 13 Reserves Hist'!F34","v":0},null,0,null,null,null,0,"T13",0]
[null,null,"- Accumulated Sick Leave","H13",{"$f":"'H13 Sch 13 Reserves Hist'!F35","v":0},null,0,null,null,null,0,"T13",0]
[null,null,"- Termination Cost","H13",{"$f":"'H13 Sch 13 Reserves Hist'!F36","v":0},null,0,null,null,null,0,"T13",0]
[null,null,"- Other Post-Employment Benefits","H13",{"$f":"'H13 Sch 13 Reserves Hist'!F37","v":75170005},null,75170005,null,661568,null,75831573,"T13",661568]
[null,null,"Provision for Environmental Costs","H13",{"$f":"'H13 Sch 13 Reserves Hist'!F38","v":855607},null,855607,null,57937,null,913544,"T13",57937]
[null,null,"Restructuring Costs","H13",{"$f":"'H13 Sch 13 Reserves Hist'!F39","v":0},null,0,null,null,null,0,"T13",0]
[null,null,"Accrued Contingent Litigation Costs","H13",{"$f":"'H13 Sch 13 Reserves Hist'!F40","v":0},null,0,null,null,null,0,"T13",0]
[null,null,"Accrued Self-Insurance Costs","H13",{"$f":"'H13 Sch 13 Reserves Hist'!F41","v":0},null,0,null,null,null,0,"T13",0]
[null,null,"Other Contingent Liabilities","H13",{"$f":"'H13 Sch 13 Reserves Hist'!F42","v":0},null,0,null,null,null,0,"T13",0]
[null,null,"Bonuses Accrued and Not Paid Within 180 Days of Year-End ss. 78(4)","H13",{"$f":"'H13 Sch 13 Reserves Hist'!F43","v":0},null,0,null,null,null,0,"T13",0]
[null,null,"Unpaid Amounts to Related Person and Not Paid Within 3 Taxation Years ss. 78(1)","H13",{"$f":"'H13 Sch 13 Reserves Hist'!F44","v":0},null,0,null,null,null,0,"T13",0]
[null,null,"Other","H13",{"$f":"'H13 Sch 13 Reserves Hist'!F45","v":0},null,0,null,null,null,0,"T13",0]
[null,null,null,null,{"$f":"'H13 Sch 13 Reserves Hist'!F49","v":0},null,{"$f":"SUM(E41:F41)","v":0},null,null,null,0,null,{"$f":"+K41-G41","v":0}]
[null,null,null,null,{"$f":"'H13 Sch 13 Reserves Hist'!F50","v":0},null,{"$f":"SUM(E42:F42)","v":0},null,null,null,0,null,{"$f":"+K42-G42","v":0}]
[null,null,"Total ",null,{"$f":"SUM(E25:E42)","v":78208805.219999999},{"$f":"SUM(F25:F42)","v":0},78208805.219999999,"B1",719505,0,78928310.219999999,"B1",719505,0]
[null,null,null,null,0]

{"sheet":"T0 PILs,Tax Provision Test","index":16,"n_rows":47,"n_cols":21,"rows_kept":47,"cut":false,"hidden":false,"merged":[[36,2,36,6],[0,2,0,7],[1,2,1,12],[2,2,2,12],[3,2,3,12]]}
[null,null,null,null,null,null,null,null,null,null,null,null,null,null,null,null,null,null,null,"Rate Base","Federal Tax Rate"]
[null,null,null,null,null,null,null,null,null,null,null,null,null,null,null,null,null,null,null,500000,0.11]
[null,null,null,null,null,null,null,null,null,null,null,null,null,null,null,null,null,null,null,10000000,0.11]
[null,null,null,null,null,null,null,null,null,null,null,null,null,null,null,null,null,null,null,{"$f":"T3+100000","v":10100000},0.11]
[null,null,null,null,null,null,null,null,null,null,null,null,null,null,null,null,null,null,null,{"$f":"T4+100000","v":10200000},0.11]
[null,"PILs Tax Provision - Test Year",null,null,null,null,null,null,null,null,null,null,null,null,null,null,null,null,null,10300000,0.11]
[null,null,null,null,null,null,null,null,null,2027,null,null,null,null,2028,2029,2030,2031,null,10400000,0.11]
[null,null,null,null,null,null,null,null,null,"Wires Only",null,null,null,null,null,null,null,null,null,10500000,0.11]
[null,null,null,null,null,null,null,null,null,null,null,null,null,null,null,null,null,null,null,10600000,0.11]
[null,null,"Regulatory Taxable Income",null,null,null,null,null,"T1",{"$f":"'T1 Sch 1 Taxable Income Test'!F123","v":47573298.353356242},"A",null,null,null,{"$f":"+'T1 Sch 1 Taxable Income Test'!I123","v":53664226.944375992},{"$f":"+'T1 Sch 1 Taxable Income Test'!J123","v":30066575.36959219},{"$f":"+'T1 Sch 1 Taxable Income Test'!K123","v":93013076.796838403},{"$f":"+'T1 Sch 1 Taxable Income Test'!L123","v":92598086.525225997},null,10700000,0.11]
[null,null,null,null,null,null,null,null,null,null,null,null,null,null,null,null,null,null,null,10800000,0.11]
[null,null,null,"Tax Rate","Small Business Rate (If Applicable)","Taxes Payable","Effective Tax Rate"]
[null,null,"Ontario (Max 11.5%)",0.115,{"$f":"IF(ratebase<=10000000, ontario_SB, IF(ratebase>=50000000, ontariotax, IF(AND(ratebase>10000000, ratebase<50000000), ontario_SB+ (ratebase - 10000000)*(ontariotax - ontario_SB)/(50000000-10000000))))","v":0.115},{"$f":"IF(J10<500000,J10,500000)*E13+IF(J10>500000,J10-500000,0)*D13","v":5470929.3106359681},{"$f":"IF(F13=0,0,+F13/J10)","v":0.115},"B"]
[null,null,"Federal (Max 15%)",0.15,{"$f":"IF(ratebase<=10000000, Fed_SB_Test, IF(ratebase>=50000000, FedTax, IF(AND(ratebase>10000000, ratebase<50000000), Fed_SB_Test+ (ratebase - 10000000)*(FedTax -Fed_SB_Test)/(50000000-10000000))))","v":0.15000000000000002},{"$f":"E14*IF(J10<500000,J10,500000)+IF(J10>500000,J10-500000,0)*D14","v":7135994.7530034361},{"$f":"IF(F14=0,0,+F14/J10)","v":0.15},"C"]
[]
[null,null,"Combined effective tax rate (Max 26.5%)",null,null,null,null,null,null,{"$f":"SUM(G13:G14)","v":0.26500000000000001},"D = B + C",null,null,null,{"$f":"+J16","v":0.26500000000000001},{"$f":"+O16","v":0.26500000000000001},{"$f":"+P16","v":0.26500000000000001},{"$f":"+Q16","v":0.26500000000000001},null,{"$f":"#REF!+100000","v":{"$error":"#REF!"}},{"$f":"#REF!+0.112%","v":{"$error":"#REF!"}}]
[null,null,null,null,null,null,null,null,null,null,null,null,null,null,null,null,null,null,null,{"$error":"#REF!"},{"$f":"U16+0.112%","v":{"$error":"#REF!"}}]
[null,null,null,null,null,null,null,null,null,null,null,null,null,null,null,null,null,null,null,{"$error":"#REF!"},{"$error":"#REF!"}]
[null,null,"Total Income Taxes",null,null,null,null,null,null,{"$f":"J10*J16","v":12606924.063639404},"E = A * D",null,null,null,{"$f":"O10*O16","v":14221020.140259638},{"$f":"P10*P16","v":7967642.4729419304},{"$f":"Q10*Q16","v":24648465.351162177},{"$f":"R10*R16","v":24538492.929184891},null,{"$error":"#REF!"},{"$error":"#REF!"}]
[null,null,null,null,null,null,null,null,null,null,null,null,null,null,null,null,null,null,null,{"$error":"#REF!"},{"$f":"U19+0.102%","v":{"$error":"#REF!"}}]
[null,null,"Investment Tax Credits",null,null,null,null,null,null,565000,"F",null,null,null,565000,565000,565000,565000,null,{"$error":"#REF!"},{"$f":"U20+0.102%","v":{"$error":"#REF!"}}]
[null,null,"Miscellaneous Tax Credits",null,null,null,null,null,null,350000,"G",null,null,null,350000,350000,350000,350000,null,{"$error":"#REF!"},{"$f":"U21+0.102%","v":{"$error":"#REF!"}}]
[null,null," Total Tax Credits",null,null,null,null,null,null,{"$f":"SUM(J21:J22)","v":915000},"H = F + G",null,null,null,{"$f":"SUM(O21:O22)","v":915000},{"$f":"SUM(P21:P22)","v":915000},{"$f":"SUM(Q21:Q22)","v":915000},{"$f":"SUM(R21:R22)","v":915000},null,{"$error":"#REF!"},{"$f":"U22+0.102%","v":{"$error":"#REF!"}}]
[null,null,null,null,null,null,null,null,null,null,null,null,null,null,null,null,null,null,null,{"$error":"#REF!"},{"$f":"U23+0.102%","v":{"$error":"#REF!"}}]
[null,null,"Corporate PILs/Income Tax Provision for Test Year",null,null,null,null,null,null,{"$f":"IF(J19-J23<0,0,J19-J23)","v":11691924.063639404},"I = E - H","S. Summary",null,null,{"$f":"IF(O19-O23<0,0,O19-O23)","v":13306020.140259638},{"$f":"IF(P19-P23<0,0,P19-P23)","v":7052642.4729419304},{"$f":"IF(Q19-Q23<0,0,Q19-Q23)","v":23733465.351162177},{"$f":"IF(R19-R23<0,0,R19-R23)","v":23623492.929184891},null,{"$error":"#REF!"},{"$f":"U24+0.096%","v":{"$error":"#REF!"}}]
[null,null,null,null,null,null,null,null,null,null,null,null,null,null,null,null,null,null,null,{"$error":"#REF!"},{"$f":"U25+0.096%","v":{"$error":"#REF!"}}]
[null,null,"Corporate PILs/Income Tax Provision Gross Up 1",null,null,null,null,{"$f":"(1-J16)","v":0.73499999999999999},"J = 1-D",{"$f":"J25/H27-J25","v":4215455.6147815548},"K = I/J-I",null,null,null,{"$f":"O25/$H$27-O25","v":4797408.6219983734},{"$f":"P25/$H$27-P25","v":2542789.4630334852},{"$f":"Q25/$H$27-Q25","v":8556963.6980380639},{"$f":"R25/$H$27-R25","v":8517313.7771891095},null,{"$error":"#REF!"},{"$f":"U26+0.096%","v":{"$error":"#REF!"}}]
[null,null,null,null,null,null,null,null,null,null,null,null,null,null,null,null,null,null,null,{"$error":"#REF!"},{"$f":"U27+0.096%","v":{"$error":"#REF!"}}]
[null,null,null,null,null,null,null,null,null,null,null,null,null,null,null,null,null,null,null,{"$error":"#REF!"},{"$f":"U28+0.096%","v":{"$error":"#REF!"}}]
[null,null,"Income Tax (grossed-up)",null,null,null,null,null,null,{"$f":"J25+J27","v":15907379.678420959},"L = K + I","S. Summary",null,null,{"$f":"O25+O27","v":18103428.762258012},{"$f":"P25+P27","v":9595431.9359754156},{"$f":"Q25+Q27","v":32290429.049200241},{"$f":"R25+R27","v":32140806.706374001},null,{"$error":"#REF!"},{"$f":"U29+0.088%","v":{"$error":"#REF!"}}]
[null,null,"Tax credits reclass to Other Revenue",null,null,null,null,null,null,{"$f":"+J23","v":915000},"M",null,null,null,{"$f":"+O23","v":915000},{"$f":"+P23","v":915000},{"$f":"+Q23","v":915000},{"$f":"+R23","v":915000},null,{"$error":"#REF!"},{"$f":"U30+0.088%","v":{"$error":"#REF!"}}]
[null,null,"Tax credits reclass to Other Revenue - gross up",null,null,null,null,{"$f":"(1-J16)","v":0.73499999999999999},"J = 1-D",{"$f":"J31/$H$32-J31","v":329897.95918367361},"N",null,null,null,{"$f":"O31/$H$32-O31","v":329897.95918367361},{"$f":"P31/$H$32-P31","v":329897.95918367361},{"$f":"Q31/$H$32-Q31","v":329897.95918367361},{"$f":"R31/$H$32-R31","v":329897.95918367361},null,{"$error":"#REF!"},{"$f":"U31+0.088%","v":{"$error":"#REF!"}}]
[null,null,"Income Tax (grossed-up) after tax credits reclass to Other Revenue",null,null,null,null,null,null,{"$f":"+J30+J31+J32","v":17152277.637604635},"O = L + M + N",null,null,null,{"$f":"+O30+O31+O32","v":19348326.721441686},{"$f":"+P30+P31+P32","v":10840329.89515909},{"$f":"+Q30+Q31+Q32","v":33535327.008383915},{"$f":"+R30+R31+R32","v":33385704.665557675}]
[]
[]
[null,null,"Note:",null,null,null,null,null,null,null,null,null,null,null,null,null,null,null,null,{"$f":"T32+100000","v":{"$error":"#REF!"}},{"$f":"U32+0.088%","v":{"$error":"#REF!"}}]
[null,null,"1. This is for the derivation of revenue requirement and should not be used for sufficiency/deficiency calculations.",null,null,null,null,null,null,null,null,null,null,null,null,null,null,null,null,{"$error":"#REF!"},{"$f":"U36+0.088%","v":{"$error":"#REF!"}}]
[null,null,null,null,null,null,null,null,null,null,null,null,null,null,null,null,null,null,null,{"$error":"#REF!"},{"$f":"U37+0.082%","v":{"$error":"#REF!"}}]
[null,null,null,null,null,null,null,null,null,null,null,null,null,null,null,null,null,null,null,{"$error":"#REF!"},{"$f":"U38+0.082%","v":{"$error":"#REF!"}}]
[null,null,null,null,null,null,null,null,null,null,null,null,null,null,null,null,null,null,null,{"$error":"#REF!"},{"$f":"U39+0.082%","v":{"$error":"#REF!"}}]
[null,null,null,null,null,null,null,null,null,null,null,null,null,null,null,null,null,null,null,{"$error":"#REF!"},{"$f":"U40+0.082%","v":{"$error":"#REF!"}}]
[null,null,null,null,null,null,null,null,null,null,null,null,null,null,null,null,null,null,null,{"$error":"#REF!"},{"$f":"U41+0.082%","v":{"$error":"#REF!"}}]
[null,null,null,null,null,null,null,null,null,null,null,null,null,null,null,null,null,null,null,{"$error":"#REF!"},{"$f":"U42+0.076%","v":{"$error":"#REF!"}}]
[null,null,null,null,null,null,null,null,null,null,null,null,null,null,null,null,null,null,null,{"$error":"#REF!"},{"$f":"U43+0.076%","v":{"$error":"#REF!"}}]
[null,null,null,null,null,null,null,null,null,null,null,null,null,null,null,null,null,null,null,{"$error":"#REF!"},{"$f":"U44+0.076%","v":{"$error":"#REF!"}}]
[null,null,null,null,null,null,null,null,null,null,null,null,null,null,null,null,null,null,null,{"$error":"#REF!"},{"$f":"U45+0.076%","v":{"$error":"#REF!"}}]
[null,null,null,null,null,null,null,null,null,null,null,null,null,null,null,null,null,null,null,{"$error":"#REF!"},0.15]

{"sheet":"T1 Sch 1 Taxable Income Test","index":17,"n_rows":132,"n_cols":12,"rows_kept":132,"cut":false,"hidden":false,"merged":[[0,2,0,5],[1,2,1,9],[2,2,2,9],[3,2,3,9]]}
[]
[]
[]
[]
[]
[]
[]
[]
[]
[null,null,"Taxable Income - Test Year",null,null,2027,null,null,2028,2029,2030,2031]
[null,null,null,null,"Working Paper Reference","Test Year                         Taxable Income",null,null,"Test Year                         Taxable Income","Test Year                         Taxable Income","Test Year                         Taxable Income","Test Year                         Taxable Income"]
[null,null,"Net Income Before Taxes",null,"A.",{"$f":"'A. Data Input Sheet'!G18","v":159671965.05364469},null,null,{"$f":"+'A. Data Input Sheet'!M18","v":169530419.07669145},{"$f":"+'A. Data Input Sheet'!O18","v":181185202.26882115},{"$f":"+'A. Data Input Sheet'!Q18","v":195191744.16335177},{"$f":"+'A. Data Input Sheet'!S18","v":209584600.89985564}]
[]
[null,null,null,"T2 S1 line #"]
[null,null,"Additions:"]
[null,null,"Interest and penalties on taxes",103]
[null,null,"Amortization of tangible assets\n2-4 ADJUSTED ACCOUNTING DATA P489",104,null,195649452,null,null,199398811,214066647,230805830,242204086]
[null,null,"Amortization of intangible assets\n2-4 ADJUSTED ACCOUNTING DATA P490",106]
[null,null,"Recapture of capital cost allowance from Schedule 8",107,"T8",{"$f":"'T8 Sch 8 CCA Test'!Y43","v":0}]
[null,null,"Income inclusion under subparagraph 13(38)(d)(iii) from Schedule 10",108]
[null,null,"Income or loss for tax purposes- joint ventures or partnerships",109]
[null,null,"Loss in equity of subsidiaries and affiliates",110]
[null,null,"Loss on disposal of assets ",111,null,6009074,null,null,5978636,5978636,5978636,5978636]
[null,null,"Charitable donations",112]
[null,null,"Taxable Capital Gains",113]
[null,null,"Political Donations",114]
[null,null,"Deferred and prepaid expenses",116]
[null,null,"Scientific research expenditures deducted on financial statements",118]
[null,null,"Capitalized interest",119]
[null,null,"Non-deductible club dues and fees",120]
[null,null,"Non-deductible meals and entertainment expense",121,null,270000,null,null,270000,270000,270000,270000]
[null,null,"Non-deductible automobile expenses",122]
[null,null,"Non-deductible life insurance premiums",123]
[null,null,"Non-deductible company pension plans",124]
[null,null,"Tax reserves beginning of year",125,"T13",{"$f":"'T13 Sch 13 Reserves Test'!G22","v":0}]
[null,null,"Reserves from financial statements- balance at end of year",126,"T13",{"$f":"'T13 Sch 13 Reserves Test'!K43","v":79591097.219999999},null,null,{"$f":"+'T13 Sch 13 Reserves Test'!X43","v":80196162.219999999},{"$f":"+'T13 Sch 13 Reserves Test'!AK43","v":80848299.219999999},{"$f":"+'T13 Sch 13 Reserves Test'!AX43","v":81342355.219999999},{"$f":"+'T13 Sch 13 Reserves Test'!BK43","v":81776645.219999999}]
[null,null,"Soft costs on construction and renovation of buildings",127]
[null,null,"Book loss on joint ventures or partnerships",205]
[null,null,"Capital items expensed",206]
[null,null,"Debt issue expense",208]
[null,null,"Development expenses claimed in current year",212]
[null,null,"Financing fees deducted in books",216]
[null,null,"Gain on settlement of debt",220]
[null,null,"Non-deductible advertising",226]
[null,null,"Non-deductible interest",227]
[null,null,"Non-deductible legal and accounting fees",228]
[null,null,"Recapture of SR&ED expenditures",231]
[null,null,"Share issue expense",235]
[null,null,"Write down of capital property",236]
[null,null,"Amounts received in respect of qualifying environment trust per paragraphs 12(1)(z.1) and 12(1)(z.2)",237]
[null,null,"Other Additions"]
[null,null,"Interest Expensed on Capital Leases",295,null,623329,null,null,561468,495418,421750,339293]
[null,null,"Realized Income from Deferred Credit Accounts",295]
[null,null,"Pensions",295]
[null,null,"Non-deductible penalties",295]
[null,null,null,295]
[null,null,null,295]
[null,null,null,295]
[null,null,null,295]
[null,null,"ARO Accretion expense"]
[null,null,"Capital Contributions Received (ITA 12(1)(x))",null,null,148080242,null,null,133232953,137121311,135599663,165474462]
[null,null,"Lease Inducements Received (ITA 12(1)(x))"]
[null,null,"Deferred Revenue (ITA 12(1)(a))"]
[null,null,"Prior Year Investment Tax Credits received",null,null,915000,null,null,915000,915000,915000,915000]
[null,null,"Depreication expense reclassed to OM&A",null,null,6637087,null,null,8022637,9990704,11577768,12753161]
[]
[]
[]
[]
[]
[]
[]
[]
[]
[null,null,"Total Additions",null,null,{"$f":"SUM(F16:F74)","v":437775281.22000003},null,null,{"$f":"SUM(I16:I74)","v":428575667.22000003},{"$f":"SUM(J16:J74)","v":449686015.22000003},{"$f":"SUM(K16:K74)","v":466911002.22000003},{"$f":"SUM(L16:L74)","v":509711283.22000003}]
[null,null,"Deductions:"]
[null,null,"Gain on disposal of assets per financial statements",401]
[null,null,"Dividends not taxable under section 83",402]
[null,null,"Capital cost allowance from Schedule 8",403,"T8",{"$f":"'T8 Sch 8 CCA Test'!AA43","v":308482770.70028847},null,null,{"$f":"+'T8 Sch 8 CCA Test'!BE43","v":314385249.13231546},{"$f":"+'T8 Sch 8 CCA Test'!CI43","v":362333317.89922893},{"$f":"+'T8 Sch 8 CCA Test'!DM43","v":327691058.36651337},{"$f":"+'T8 Sch 8 CCA Test'!EQ43","v":349410882.37462962}]
[null,null,"Terminal loss from Schedule 8",404,"T8",{"$f":"'T8 Sch 8 CCA Test'!Z43","v":0}]
[null,null,"Allowable business investment loss",406]
[null,null,"Deferred and prepaid expenses",409]
[null,null,"Scientific research expenses claimed in year",411]
[null,null,"Tax reserves end of year",413,"T13",{"$f":"'T13 Sch 13 Reserves Test'!K22","v":0}]
[null,null,"Reserves from financial statements - balance at beginning of year",414,"T13",{"$f":"'T13 Sch 13 Reserves Test'!G43","v":78928310.219999999},null,null,{"$f":"+F36","v":79591097.219999999},{"$f":"+I36","v":80196162.219999999},{"$f":"+J36","v":80848299.219999999},{"$f":"+K36","v":81342355.219999999}]
[null,null,"Contributions to deferred income plans",416]
[null,null,"Book income of joint venture or partnership",305]
[null,null,"Equity in income from subsidiary or affiliates",306]
[null,null,"Other deductions"]
[null,null,"Interest capitalized for accounting deducted for tax",395,null,4199361,null,null,6415573,9741191,13037206,18187725]
[null,null,"Capital Lease Payments",395,null,1536873,null,null,1536873,1536873,1639456,1639456]
[null,null,"Non-taxable imputed interest income on deferral and variance accounts ",395]
[null,null,null,395]
[null,null,null,395]
[null,null,null,395]
[null,null,null,395]
[null,null,null,395]
[null,null,"ARO Payments - Deductible for Tax when Paid"]
[null,null,"ITA 13(7.4) Election - Capital Contributions Received",null,null,{"$f":"+F61","v":148080242},null,null,{"$f":"+I61","v":133232953},{"$f":"+J61","v":137121311},{"$f":"+K61","v":135599663},{"$f":"+L61","v":165474462}]
[null,null,"ITA 13(7.4) Election - Apply Lease Inducement to cost of Leaseholds"]
[null,null,"Deferred Revenue - ITA 20(1)(m) reserve"]
[null,null,"Principal portion of lease payments"]
[null,null,"Lease Inducement Book Amortization credit to income"]
[null,null,"Financing fees for tax ITA 20(1)(e) and (e.1)"]
[null,null,"Pension costs capitalized for accounting, deducted for tax",null,null,7731391,null,null,8365114,8960787,9358987,9727917]
[null,null,"Current year ITCs accrued for accounting",null,null,{"$f":"F64","v":915000},null,null,{"$f":"I64","v":915000},915000,915000,915000]
[]
[]
[]
[]
[]
[]
[null,null,"Total Deductions",null,"calculated",{"$f":"SUM(F77:F112)","v":549873947.92028844},null,null,{"$f":"SUM(I77:I112)","v":544441859.35231543},{"$f":"SUM(J77:J112)","v":600804642.11922896},{"$f":"SUM(K77:K112)","v":569089669.5865134},{"$f":"SUM(L77:L112)","v":626697797.59462965}]
[]
[null,null,"NET INCOME FOR TAX PURPOSES",null,"calculated",{"$f":"SUM(F12,F75)-F113","v":47573298.353356242},null,null,{"$f":"SUM(I12,I75)-I113","v":53664226.944375992},{"$f":"SUM(J12,J75)-J113","v":30066575.36959219},{"$f":"SUM(K12,K75)-K113","v":93013076.796838403},{"$f":"SUM(L12,L75)-L113","v":92598086.525225997}]
[]
[null,null,"Charitable donations",311]
[null,null,"Taxable dividends received under section 112 or 113",320]
[null,null,"Non-capital losses of previous tax years from Schedule 4",331,"T4",{"$f":"'T4 Sch 4 Loss Cfwd Test'!I15","v":0},null,null,{"$f":"'T4 Sch 4 Loss Cfwd Test'!L15","v":0},{"$f":"'T4 Sch 4 Loss Cfwd Test'!M15","v":0},{"$f":"'T4 Sch 4 Loss Cfwd Test'!N15","v":0},{"$f":"'T4 Sch 4 Loss Cfwd Test'!O15","v":0}]
[null,null,"Net capital losses of previous tax years from Schedule 4",332,"T4",{"$f":"'T4 Sch 4 Loss Cfwd Test'!I25","v":0},null,null,{"$f":"'T4 Sch 4 Loss Cfwd Test'!L25","v":0},{"$f":"'T4 Sch 4 Loss Cfwd Test'!M25","v":0},{"$f":"'T4 Sch 4 Loss Cfwd Test'!N25","v":0},{"$f":"'T4 Sch 4 Loss Cfwd Test'!O25","v":0}]
[null,null,"Limited partnership losses of previous tax years from Schedule 4",335]
[]
[null,null,"REGULATORY TAXABLE INCOME",null,"calculated",{"$f":"IF(F115<0,F115,F115-SUM(F117:F122))","v":47573298.353356242},"T0",null,{"$f":"IF(I115<0,I115,I115-SUM(I117:I122))","v":53664226.944375992},{"$f":"IF(J115<0,J115,J115-SUM(J117:J122))","v":30066575.36959219},{"$f":"IF(K115<0,K115,K115-SUM(K117:K122))","v":93013076.796838403},{"$f":"IF(L115<0,L115,L115-SUM(L117:L122))","v":92598086.525225997}]
[]
[]
[null,null,"Summary",null,"Bridge","Test",null,null,"Test","Test","Test","Test"]
[null,null,null,null,2026,{"$f":"+F10","v":2027},null,null,{"$f":"+I10","v":2028},{"$f":"+J10","v":2029},{"$f":"+K10","v":2030},{"$f":"+L10","v":2031}]
[null,null,"Net income before taxes",null,{"$f":"+'B1 Sch 1 Taxable Income Bridge'!F8","v":154377136.37735629},{"$f":"+F12","v":159671965.05364469},null,null,{"$f":"+I12","v":169530419.07669145},{"$f":"+J12","v":181185202.26882115},{"$f":"+K12","v":195191744.16335177},{"$f":"+L12","v":209584600.89985564}]
[null,null,"Tax Adjustments",null,{"$f":"+'B1 Sch 1 Taxable Income Bridge'!F67-'B1 Sch 1 Taxable Income Bridge'!F102","v":-113521415.26037169},{"$f":"+F75-F113","v":-112098666.70028841},null,null,{"$f":"+I75-I113","v":-115866192.1323154},{"$f":"+J75-J113","v":-151118626.89922893},{"$f":"+K75-K113","v":-102178667.36651337},{"$f":"+L75-L113","v":-116986514.37462962}]
[null,null,"Regulatory taxable income",null,{"$f":"SUM(E128:E129)","v":40855721.116984606},{"$f":"SUM(F128:F129)","v":47573298.353356272},null,null,{"$f":"SUM(I128:I129)","v":53664226.944376051},{"$f":"SUM(J128:J129)","v":30066575.36959222},{"$f":"SUM(K128:K129)","v":93013076.796838403},{"$f":"SUM(L128:L129)","v":92598086.525226027}]
[]
[null,null,"Grossed-up PILs",null,{"$f":"+'B0 PILs,Tax Provision Bridge'!J33","v":14730294.008164519},{"$f":"+'T0 PILs,Tax Provision Test'!J33","v":17152277.637604635},null,null,{"$f":"+'T0 PILs,Tax Provision Test'!O33","v":19348326.721441686},{"$f":"+'T0 PILs,Tax Provision Test'!P33","v":10840329.89515909},{"$f":"+'T0 PILs,Tax Provision Test'!Q33","v":33535327.008383915},{"$f":"+'T0 PILs,Tax Provision Test'!R33","v":33385704.665557675}]

{"sheet":"T4 Sch 4 Loss Cfwd Test","index":18,"n_rows":28,"n_cols":9,"rows_kept":28,"cut":false,"hidden":false,"merged":[[26,2,26,4],[24,2,24,4],[25,2,25,4],[11,2,11,4],[0,2,0,4],[1,2,1,9],[2,2,2,9],[3,2,3,9],[10,2,10,4],[15,2,15,4],[20,2,20,4],[21,2,21,4],[14,2,14,4],[16,2,16,4]]}
[]
[]
[]
[]
[]
[]
[null,null,"Schedule 4 Loss Carry Forward - Test Year"]
[]
[null,null,"Corporation Loss Continuity and Application"]
[]
[null,null,"Non-Capital Loss Carry Forward Deduction",null,null,"Working Paper Reference","Total","Non-Distribution Portion","Utility Balance"]
[null,null,"Actual/Estimated Bridge Year Carried Forward",null,null,"B4",{"$f":"'B4 Sch 4 Loss Cfwd Bridge'!G16","v":0},null,{"$f":"G12-H12","v":0}]
[null,null,"Amount to be used in Test Year and Price Cap Years",null,null,"T1",{"$f":"IF('T1 Sch 1 Taxable Income Test'!F115<0,0,IF('T1 Sch 1 Taxable Income Test'!F115>G12,G12,'T1 Sch 1 Taxable Income Test'!F115))","v":0},null,{"$f":"G13-H13","v":0}]
[null,null,"Number of years loss until next cost of service (i.e. years the loss is to be spread over)"]
[null,null,"Amount to be used in Test Year ",null,null,"calculated",{"$f":"IF(ISERROR(G13/G14),G13,G13/G14)","v":0},null,{"$f":"G15-H15","v":0}]
[null,null,"Loss Carry Forward Generated in Test Year (if any)",null,null,"T1",{"$f":"IF('T1 Sch 1 Taxable Income Test'!F115<0,'T1 Sch 1 Taxable Income Test'!F115*-1,0)","v":0},null,{"$f":"G16-H16","v":0}]
[null,null,"Other Adjustments",null,null,null,null,null,{"$f":"G17-H17","v":0}]
[null,null,"Balance available for use in Future Years",null,null,"calculated",{"$f":"G12-G13+G16+G17","v":0},null,{"$f":"G18-H18","v":0}]
[]
[]
[null,null,"Net Capital Loss Carry Forward Deduction",null,null,null,"Total","Non-Distribution Portion","Utility Balance"]
[null,null,"Actual/Estimated Bridge Year Carried Forward",null,null,"B4",{"$f":"'B4 Sch 4 Loss Cfwd Bridge'!G23","v":0},null,{"$f":"G22-H22","v":0}]
[null,null,"Amount to be used in Test Year and Price Cap Years",null,null,null,null,null,{"$f":"G23-H23","v":0}]
[null,null,"Number of years loss until next cost of service (i.e. years the loss is to be spread over)"]
[null,null,"Amount to be used in Test Year ",null,null,"T1",{"$f":"IF(ISERROR(G23/G24),G23,G23/G24)","v":0},null,{"$f":"G25-H25","v":0}]
[null,null,"Loss Carry Forward Generated in Test Year (if any)",null,null,null,null,null,{"$f":"G26-H26","v":0}]
[null,null,"Other Adjustments",null,null,null,null,null,{"$f":"G27-H27","v":0}]
[null,null,"Balance available for use in Future Years",null,null,null,{"$f":"G22-G23+G26+G27","v":0},null,{"$f":"G28-H28","v":0}]

{"sheet":"T8 Sch 8 CCA Test","index":19,"n_rows":51,"n_cols":148,"rows_kept":51,"cut":false,"hidden":false,"merged":[[0,1,0,4],[44,1,44,35],[45,1,45,35],[1,1,1,22],[2,1,2,22],[3,1,3,22]]}
[]
[]
[]
[]
[]
[]
[null,"Schedule 8 CCA - Test Year"]
[null,null,2027,2027,2027,2027,2027,2027,2027,2027,2027,2027,2027,2027,2027,2027,2027,2027,2027,2027,2027,2027,2027,2027,2027,2027,2027,2027,null,null,null,2028,2028,2028,2028,2028,2028,2028,2028,2028,2028,2028,2028,2028,2028,2028,2028,2028,2028,2028,2028,2028,2028,2028,2028,2028,2028,2028,null,null,null,2029,2029,2029,2029,2029,2029,2029,2029,2029,2029,2029,2029,2029,2029,2029,2029,2029,2029,2029,2029,2029,2029,2029,2029,2029,2029,2029,null,null,null,2030,2030,2030,2030,2030,2030,2030,2030,2030,2030,2030,2030,2030,2030,2030,2030,2030,2030,2030,2030,2030,2030,2030,2030,2030,2030,2030,null,null,null,2031,2031,2031,2031,2031,2031,2031,2031,2031,2031,2031,2031,2031,2031,2031,2031,2031,2031,2031,2031,2031,2031,2031,2031,2031,2031,2031]
[null,"(1)\nClass","Class Description","Working Paper Reference","(2)\nUndepreciated capital\ncost (UCC) at the\nbeginning of the test year","(3)\nCost of acquisitions during\nthe year (new property must\nbe available for use, except CWIP)","(4)\nCost of acquisitions from column 3 that are designated immediate expensing property (DIEP)","(5)\nAdjustments and transfers (enter amounts that will reduce the UCC as negatives)","(6)\nAmount from column 5 that is assistance received or receivable during the year for a property, subsequent to its disposition","(7)\nAmount from column 5 that is repaid during the year for a property, subsequent to its disposition","(8)\nProceeds of dispositions","(9)\nProceeds of dispositions of the DIEP (enter amount from column 8 that relates to the DIEP reported in column 4)\n","(10)\nUCC (column 2 plus column 3 plus or minus column 5 minus column 8)","(11)\nUCC of the DIEP (enter the UCC amount that relates to the DIEP reported in column 4)\n","(12)\nImmediate expensing ","(13)\nCost of acquisitions on remainder of Class (column 3 minus\ncolumn 4 plus\ncolumn 11 minus\ncolumn 12)","(14)\nCost of acquisitions from column 13 that are accelerated investment incentive properties (AIIP) or properties included in Classes 54 to 56","(15)\nRemaining UCC (column 10 minus\ncolumn 12)\n(if negative, enter \"0\")","(16)\nProceeds of disposition available to reduce the UCC of AIIP and property included in Classes 54 to 56 (column 8 minus column 9\nplus column 6 minus column 13\nplus column 14 minus column 7) (if negative, enter \"0\")","(17) \nNet capital cost additions of AIIP and property included in Classes 54 to 56 acquired during the year (column 14 minus column 16) (if negative, enter \"0\")","Relevant factor1","(18)\nUCC adjustment for AIIP and property included in Classes 54 to 56 acquired during the year (column 17 multiplied by the relevant factor)"," (19)\nUCC adjustment for non-AIIP and property included in Classes 54 to 56 (0.5 multiplied by the result of column 13 minus column 14 minus\ncolumn 6 plus column 7 minus\ncolumn 8 plus column 9) (if negative, enter \"0\")","(20)\nCCA Rate %","(21)\nRecapture of CCA","(22)\nTerminal Loss","(23)\nCCA (for declining balance method, the result of column 15 plus column  18 minus column 19, multiplied by column  20  or a lower amount, plus column 12))","(24)\nUCC at the end of the test year (column 10 minus column  23)",null,null,null,"(1)\nClass","Class Description","Working Paper Reference","(2)\nUndepreciated capital\ncost (UCC) at the\nbeginning of the test year","(3)\nCost of acquisitions during\nthe year (new property must\nbe available for use, except CWIP)","(4)\nCost of acquisitions from column 3 that are designated immediate expensing property (DIEP)","(5)\nAdjustments and transfers (enter amounts that will reduce the UCC as negatives)","(6)\nAmount from column 5 that is assistance received or receivable during the year for a property, subsequent to its disposition","(7)\nAmount from column 5 that is repaid during the year for a property, subsequent to its disposition","(8)\nProceeds of dispositions","(9)\nProceeds of dispositions of the DIEP (enter amount from column 8 that relates to the DIEP reported in column 4)\n","(10)\nUCC (column 2 plus column 3 plus or minus column 5 minus column 8)","(11)\nUCC of the DIEP (enter the UCC amount that relates to the DIEP reported in column 4)\n","(12)\nImmediate expensing ","(13)\nCost of acquisitions on remainder of Class (column 3 minus\ncolumn 4 plus\ncolumn 11 minus\ncolumn 12)","(14)\nCost of acquisitions from column 13 that are accelerated investment incentive properties (AIIP) or properties included in Classes 54 to 56","(15)\nRemaining UCC (column 10 minus\ncolumn 12)\n(if negative, enter \"0\")","(16)\nProceeds of disposition available to reduce the UCC of AIIP and property included in Classes 54 to 56 (column 8 minus column 9\nplus column 6 minus column 13\nplus column 14 minus column 7) (if negative, enter \"0\")","(17) \nNet capital cost additions of AIIP and property included in Classes 54 to 56 acquired during the year (column 14 minus column 16) (if negative, enter \"0\")","Relevant factor1","(18)\nUCC adjustment for AIIP and property included in Classes 54 to 56 acquired during the year (column 17 multiplied by the relevant factor)"," (19)\nUCC adjustment for non-AIIP and property included in Classes 54 to 56 (0.5 multiplied by the result of column 13 minus column 14 minus\ncolumn 6 plus column 7 minus\ncolumn 8 plus column 9) (if negative, enter \"0\")","(20)\nCCA Rate %","(21)\nRecapture of CCA","(22)\nTerminal Loss","(23)\nCCA (for declining balance method, the result of column 15 plus column  18 minus column 19, multiplied by column  20  or a lower amount, plus column 12))","(24)\nUCC at the end of the test year (column 10 minus column  23)",null,null,null,"(1)\nClass","Class Description","Working Paper Reference","(2)\nUndepreciated capital\ncost (UCC) at the\nbeginning of the test year","(3)\nCost of acquisitions during\nthe year (new property must\nbe available for use, except CWIP)","(4)\nCost of acquisitions from column 3 that are designated immediate expensing property (DIEP)","(5)\nAdjustments and transfers (enter amounts that will reduce the UCC as negatives)","(6)\nAmount from column 5 that is assistance received or receivable during the year for a property, subsequent to its disposition","(7)\nAmount from column 5 that is repaid during the year for a property, subsequent to its disposition","(8)\nProceeds of dispositions","(9)\nProceeds of dispositions of the DIEP (enter amount from column 8 that relates to the DIEP reported in column 4)\n","(10)\nUCC (column 2 plus column 3 plus or minus column 5 minus column 8)","(11)\nUCC of the DIEP (enter the UCC amount that relates to the DIEP reported in column 4)\n","(12)\nImmediate expensing ","(13)\nCost of acquisitions on remainder of Class (column 3 minus\ncolumn 4 plus\ncolumn 11 minus\ncolumn 12)","(14)\nCost of acquisitions from column 13 that are accelerated investment incentive properties (AIIP) or properties included in Classes 54 to 56","(15)\nRemaining UCC (column 10 minus\ncolumn 12)\n(if negative, enter \"0\")","(16)\nProceeds of disposition available to reduce the UCC of AIIP and property included in Classes 54 to 56 (column 8 minus column 9\nplus column 6 minus column 13\nplus column 14 minus column 7) (if negative, enter \"0\")","(17) \nNet capital cost additions of AIIP and property included in Classes 54 to 56 acquired during the year (column 14 minus column 16) (if negative, enter \"0\")","Relevant factor1","(18)\nUCC adjustment for AIIP and property included in Classes 54 to 56 acquired during the year (column 17 multiplied by the relevant factor)"," (19)\nUCC adjustment for non-AIIP and property included in Classes 54 to 56 (0.5 multiplied by the result of column 13 minus column 14 minus\ncolumn 6 plus column 7 minus\ncolumn 8 plus column 9) (if negative, enter \"0\")","(20)\nCCA Rate %","(21)\nRecapture of CCA","(22)\nTerminal Loss","(23)\nCCA (for declining balance method, the result of column 15 plus column  18 minus column 19, multiplied by column  20  or a lower amount, plus column 12))","(24)\nUCC at the end of the test year (column 10 minus column  23)",null,null,null,"(1)\nClass","Class Description","Working Paper Reference","(2)\nUndepreciated capital\ncost (UCC) at the\nbeginning of the test year","(3)\nCost of acquisitions during\nthe year (new property must\nbe available for use, except CWIP)","(4)\nCost of acquisitions from column 3 that are designated immediate expensing property (DIEP)","(5)\nAdjustments and transfers (enter amounts that will reduce the UCC as negatives)","(6)\nAmount from column 5 that is assistance received or receivable during the year for a property, subsequent to its disposition","(7)\nAmount from column 5 that is repaid during the year for a property, subsequent to its disposition","(8)\nProceeds of dispositions","(9)\nProceeds of dispositions of the DIEP (enter amount from column 8 that relates to the DIEP reported in column 4)\n","(10)\nUCC (column 2 plus column 3 plus or minus column 5 minus column 8)","(11)\nUCC of the DIEP (enter the UCC amount that relates to the DIEP reported in column 4)\n","(12)\nImmediate expensing ","(13)\nCost of acquisitions on remainder of Class (column 3 minus\ncolumn 4 plus\ncolumn 11 minus\ncolumn 12)","(14)\nCost of acquisitions from column 13 that are accelerated investment incentive properties (AIIP) or properties included in Classes 54 to 56","(15)\nRemaining UCC (column 10 minus\ncolumn 12)\n(if negative, enter \"0\")","(16)\nProceeds of disposition available to reduce the UCC of AIIP and property included in Classes 54 to 56 (column 8 minus column 9\nplus column 6 minus column 13\nplus column 14 minus column 7) (if negative, enter \"0\")","(17) \nNet capital cost additions of AIIP and property included in Classes 54 to 56 acquired during the year (column 14 minus column 16) (if negative, enter \"0\")","Relevant factor1","(18)\nUCC adjustment for AIIP and property included in Classes 54 to 56 acquired during the year (column 17 multiplied by the relevant factor)"," (19)\nUCC adjustment for non-AIIP and property included in Classes 54 to 56 (0.5 multiplied by the result of column 13 minus column 14 minus\ncolumn 6 plus column 7 minus\ncolumn 8 plus column 9) (if negative, enter \"0\")","(20)\nCCA Rate %","(21)\nRecapture of CCA","(22)\nTerminal Loss","(23)\nCCA (for declining balance method, the result of column 15 plus column  18 minus column 19, multiplied by column  20  or a lower amount, plus column 12))","(24)\nUCC at the end of the test year (column 10 minus column  23)",null,null,null,"(1)\nClass","Class Description","Working Paper Reference","(2)\nUndepreciated capital\ncost (UCC) at the\nbeginning of the test year","(3)\nCost of acquisitions during\nthe year (new property must\nbe available for use, except CWIP)","(4)\nCost of acquisitions from column 3 that are designated immediate expensing property (DIEP)","(5)\nAdjustments and transfers (enter amounts that will reduce the UCC as negatives)","(6)\nAmount from column 5 that is assistance received or receivable during the year for a property, subsequent to its disposition","(7)\nAmount from column 5 that is repaid during the year for a property, subsequent to its disposition","(8)\nProceeds of dispositions","(9)\nProceeds of dispositions of the DIEP (enter amount from column 8 that relates to the DIEP reported in column 4)\n","(10)\nUCC (column 2 plus column 3 plus or minus column 5 minus column 8)","(11)\nUCC of the DIEP (enter the UCC amount that relates to the DIEP reported in column 4)\n","(12)\nImmediate expensing ","(13)\nCost of acquisitions on remainder of Class (column 3 minus\ncolumn 4 plus\ncolumn 11 minus\ncolumn 12)","(14)\nCost of acquisitions from column 13 that are accelerated investment incentive properties (AIIP) or properties included in Classes 54 to 56","(15)\nRemaining UCC (column 10 minus\ncolumn 12)\n(if negative, enter \"0\")","(16)\nProceeds of disposition available to reduce the UCC of AIIP and property included in Classes 54 to 56 (column 8 minus column 9\nplus column 6 minus column 13\nplus column 14 minus column 7) (if negative, enter \"0\")","(17) \nNet capital cost additions of AIIP and property included in Classes 54 to 56 acquired during the year (column 14 minus column 16) (if negative, enter \"0\")","Relevant factor1","(18)\nUCC adjustment for AIIP and property included in Classes 54 to 56 acquired during the year (column 17 multiplied by the relevant factor)"," (19)\nUCC adjustment for non-AIIP and property included in Classes 54 to 56 (0.5 multiplied by the result of column 13 minus column 14 minus\ncolumn 6 plus column 7 minus\ncolumn 8 plus column 9) (if negative, enter \"0\")","(20)\nCCA Rate %","(21)\nRecapture of CCA","(22)\nTerminal Loss","(23)\nCCA (for declining balance method, the result of column 15 plus column  18 minus column 19, multiplied by column  20  or a lower amount, plus column 12))","(24)\nUCC at the end of the test year (column 10 minus column  23)"]
[null,{"$f":"IF(ISBLANK('B8 Sch 8 CCA Bridge'!B10), \"\", 'B8 Sch 8 CCA Bridge'!B10)","v":1},{"$f":"IF(ISBLANK('B8 Sch 8 CCA Bridge'!C10), \"\", 'B8 Sch 8 CCA Bridge'!C10)","v":"Buildings, Distribution System (acq'd post 1987)"},"B8",{"$f":"IF(ISBLANK('B8 Sch 8 CCA Bridge'!AB10), \"\", 'B8 Sch 8 CCA Bridge'!AB10)","v":620673955.84652746},15943944,null,null,null,null,null,null,{"$f":"IFERROR(E10+F10+H10-K10,0)","v":636617899.84652746},null,null,{"$f":"+F10-G10+N10-O10","v":15943944},{"$f":"+P10","v":15943944},{"$f":"IF((M10-O10)<0,0,M10-O10)","v":636617899.84652746},{"$f":"IF((K10-L10+I10-P10+Q10-J10)<0,0,(K10-L10+I10-P10+Q10-J10))","v":0},{"$f":"IF((Q10-S10)<0,0,(Q10-S10))","v":15943944},0.5,{"$f":"T10*U10","v":7971972},{"$f":"IF((0.5*(P10-Q10-I10+J10-K10+L10))<0,0,(0.5*(P10-Q10-I10+J10-K10+L10)))","v":0},0.04,null,null,{"$f":"IF(OR(R10<=0,Z10>0),0,(R10+V10-W10)*X10)","v":25783594.873861101},{"$f":"IF(M10<0,0,M10-Z10-AA10)","v":610834304.97266638},null,null,null,{"$f":"+B10","v":1},{"$f":"+C10","v":"Buildings, Distribution System (acq'd post 1987)"},null,{"$f":"+AB10","v":610834304.97266638},6196093,null,null,null,null,null,null,{"$f":"IFERROR(AI10+AJ10+AL10-AO10,0)","v":617030397.97266638},null,null,{"$f":"+AJ10-AK10+AR10-AS10","v":6196093},{"$f":"+AT10","v":6196093},{"$f":"IF((AQ10-AS10)<0,0,AQ10-AS10)","v":617030397.97266638},{"$f":"IF((AO10-AP10+AM10-AT10+AU10-AN10)<0,0,(AO10-AP10+AM10-AT10+AU10-AN10))","v":0},{"$f":"IF((AU10-AW10)<0,0,(AU10-AW10))","v":6196093},0.5,{"$f":"AX10*AY10","v":3098046.5},{"$f":"IF((0.5*(AT10-AU10-AM10+AN10-AO10+AP10))<0,0,(0.5*(AT10-AU10-AM10+AN10-AO10+AP10)))","v":0},0.04,null,null,{"$f":"IF(OR(AV10<=0,BD10>0),0,(AV10+AZ10-BA10)*BB10)","v":24805137.778906655},{"$f":"IF(AQ10<0,0,AQ10-BD10-BE10)","v":592225260.19375968},null,null,null,{"$f":"+AF10","v":1},{"$f":"+AG10","v":"Buildings, Distribution System (acq'd post 1987)"},null,{"$f":"+BF10","v":592225260.19375968},8307839,null,null,null,null,null,null,{"$f":"IFERROR(BM10+BN10+BP10-BS10,0)","v":600533099.19375968},null,null,{"$f":"+BN10-BO10+BV10-BW10","v":8307839},{"$f":"+BX10","v":8307839},{"$f":"IF((BU10-BW10)<0,0,BU10-BW10)","v":600533099.19375968},{"$f":"IF((BS10-BT10+BQ10-BX10+BY10-BR10)<0,0,(BS10-BT10+BQ10-BX10+BY10-BR10))","v":0},{"$f":"IF((BY10-CA10)<0,0,(BY10-CA10))","v":8307839},0.5,{"$f":"CB10*CC10","v":4153919.5},{"$f":"IF((0.5*(BX10-BY10-BQ10+BR10-BS10+BT10))<0,0,(0.5*(BX10-BY10-BQ10+BR10-BS10+BT10)))","v":0},0.04,null,null,{"$f":"IF(OR(BZ10<=0,CH10>0),0,(BZ10+CD10-CE10)*CF10)","v":24187480.747750387},{"$f":"IF(BU10<0,0,BU10-CH10-CI10)","v":576345618.44600928},null,null,null,{"$f":"+BJ10","v":1},{"$f":"+BK10","v":"Buildings, Distribution System (acq'd post 1987)"},null,{"$f":"+CJ10","v":576345618.44600928},26225284,null,null,null,null,null,null,{"$f":"IFERROR(CQ10+CR10+CT10-CW10,0)","v":602570902.44600928},null,null,{"$f":"+CR10-CS10+CZ10-DA10","v":26225284},{"$f":"+DB10","v":26225284},{"$f":"IF((CY10-DA10)<0,0,CY10-DA10)","v":602570902.44600928},{"$f":"IF((CW10-CX10+CU10-DB10+DC10-CV10)<0,0,(CW10-CX10+CU10-DB10+DC10-CV10))","v":0},{"$f":"IF((DC10-DE10)<0,0,(DC10-DE10))","v":26225284},0,{"$f":"DF10*DG10","v":0},{"$f":"IF((0.5*(DB10-DC10-CU10+CV10-CW10+CX10))<0,0,(0.5*(DB10-DC10-CU10+CV10-CW10+CX10)))","v":0},0.04,null,null,{"$f":"IF(OR(DD10<=0,DL10>0),0,(DD10+DH10-DI10)*DJ10)","v":24102836.097840372},{"$f":"IF(CY10<0,0,CY10-DL10-DM10)","v":578468066.34816885},null,null,null,{"$f":"+CN10","v":1},{"$f":"+CO10","v":"Buildings, Distribution System (acq'd post 1987)"},null,{"$f":"+DN10","v":578468066.34816885},8959291,null,null,null,null,null,null,{"$f":"IFERROR(DU10+DV10+DX10-EA10,0)","v":587427357.34816885},null,null,{"$f":"+DV10-DW10+ED10-EE10","v":8959291},{"$f":"+EF10","v":8959291},{"$f":"IF((EC10-EE10)<0,0,EC10-EE10)","v":587427357.34816885},{"$f":"IF((EA10-EB10+DY10-EF10+EG10-DZ10)<0,0,(EA10-EB10+DY10-EF10+EG10-DZ10))","v":0},{"$f":"IF((EG10-EI10)<0,0,(EG10-EI10))","v":8959291},0,{"$f":"EJ10*EK10","v":0},{"$f":"IF((0.5*(EF10-EG10-DY10+DZ10-EA10+EB10))<0,0,(0.5*(EF10-EG10-DY10+DZ10-EA10+EB10)))","v":0},0.04,null,null,{"$f":"IF(OR(EH10<=0,EP10>0),0,(EH10+EL10-EM10)*EN10)","v":23497094.293926753},{"$f":"IF(EC10<0,0,EC10-EP10-EQ10)","v":563930263.05424213}]
[null,{"$f":"IF(ISBLANK('B8 Sch 8 CCA Bridge'!B11), \"\", 'B8 Sch 8 CCA Bridge'!B11)","v":"1b"},{"$f":"IF(ISBLANK('B8 Sch 8 CCA Bridge'!C11), \"\", 'B8 Sch 8 CCA Bridge'!C11)","v":"Non-Residential Buildings [Reg. 1100(1)(a.1) election]"},"B8",{"$f":"IF(ISBLANK('B8 Sch 8 CCA Bridge'!AB11), \"\", 'B8 Sch 8 CCA Bridge'!AB11)","v":62852423.985275999},null,null,null,null,null,null,null,{"$f":"IFERROR(E11+F11+H11-K11,\"\")","v":62852423.985275999},null,null,{"$f":"+F11-G11+N11-O11","v":0},null,{"$f":"IF((M11-O11)<0,0,M11-O11)","v":62852423.985275999},{"$f":"IF((K11-L11+I11-P11+Q11-J11)<0,0,(K11-L11+I11-P11+Q11-J11))","v":0},{"$f":"IF((Q11-S11)<0,0,(Q11-S11))","v":0},0.5,{"$f":"T11*U11","v":0},{"$f":"IF((0.5*(P11-Q11-I11+J11-K11+L11))<0,0,(0.5*(P11-Q11-I11+J11-K11+L11)))","v":0},0.06,null,null,{"$f":"IF(OR(R11<=0,Z11>0),0,(R11+V11-W11)*X11)","v":3771145.4391165599},{"$f":"IF(M11<0,0,M11-Z11-AA11)","v":59081278.546159439},null,null,null,{"$f":"+B11","v":"1b"},{"$f":"+C11","v":"Non-Residential Buildings [Reg. 1100(1)(a.1) election]"},null,{"$f":"+AB11","v":59081278.546159439},null,null,null,null,null,null,null,{"$f":"IFERROR(AI11+AJ11+AL11-AO11,\"\")","v":59081278.546159439},null,null,{"$f":"+AJ11-AK11+AR11-AS11","v":0},null,{"$f":"IF((AQ11-AS11)<0,0,AQ11-AS11)","v":59081278.546159439},{"$f":"IF((AO11-AP11+AM11-AT11+AU11-AN11)<0,0,(AO11-AP11+AM11-AT11+AU11-AN11))","v":0},{"$f":"IF((AU11-AW11)<0,0,(AU11-AW11))","v":0},0.5,{"$f":"AX11*AY11","v":0},{"$f":"IF((0.5*(AT11-AU11-AM11+AN11-AO11+AP11))<0,0,(0.5*(AT11-AU11-AM11+AN11-AO11+AP11)))","v":0},0.06,null,null,{"$f":"IF(OR(AV11<=0,BD11>0),0,(AV11+AZ11-BA11)*BB11)","v":3544876.7127695661},{"$f":"IF(AQ11<0,0,AQ11-BD11-BE11)","v":55536401.833389871},null,null,null,{"$f":"+AF11","v":"1b"},{"$f":"+AG11","v":"Non-Residential Buildings [Reg. 1100(1)(a.1) election]"},null,{"$f":"+BF11","v":55536401.833389871},null,null,null,null,null,null,null,{"$f":"IFERROR(BM11+BN11+BP11-BS11,\"\")","v":55536401.833389871},null,null,{"$f":"+BN11-BO11+BV11-BW11","v":0},null,{"$f":"IF((BU11-BW11)<0,0,BU11-BW11)","v":55536401.833389871},{"$f":"IF((BS11-BT11+BQ11-BX11+BY11-BR11)<0,0,(BS11-BT11+BQ11-BX11+BY11-BR11))","v":0},{"$f":"IF((BY11-CA11)<0,0,(BY11-CA11))","v":0},0.5,{"$f":"CB11*CC11","v":0},{"$f":"IF((0.5*(BX11-BY11-BQ11+BR11-BS11+BT11))<0,0,(0.5*(BX11-BY11-BQ11+BR11-BS11+BT11)))","v":0},0.06,null,null,{"$f":"IF(OR(BZ11<=0,CH11>0),0,(BZ11+CD11-CE11)*CF11)","v":3332184.1100033922},{"$f":"IF(BU11<0,0,BU11-CH11-CI11)","v":52204217.723386481},null,null,null,{"$f":"+BJ11","v":"1b"},{"$f":"+BK11","v":"Non-Residential Buildings [Reg. 1100(1)(a.1) election]"},null,{"$f":"+CJ11","v":52204217.723386481},null,null,null,null,null,null,null,{"$f":"IFERROR(CQ11+CR11+CT11-CW11,\"\")","v":52204217.723386481},null,null,{"$f":"+CR11-CS11+CZ11-DA11","v":0},null,{"$f":"IF((CY11-DA11)<0,0,CY11-DA11)","v":52204217.723386481},{"$f":"IF((CW11-CX11+CU11-DB11+DC11-CV11)<0,0,(CW11-CX11+CU11-DB11+DC11-CV11))","v":0},{"$f":"IF((DC11-DE11)<0,0,(DC11-DE11))","v":0},0,{"$f":"DF11*DG11","v":0},{"$f":"IF((0.5*(DB11-DC11-CU11+CV11-CW11+CX11))<0,0,(0.5*(DB11-DC11-CU11+CV11-CW11+CX11)))","v":0},0.06,null,null,{"$f":"IF(OR(DD11<=0,DL11>0),0,(DD11+DH11-DI11)*DJ11)","v":3132253.0634031887},{"$f":"IF(CY11<0,0,CY11-DL11-DM11)","v":49071964.659983292},null,null,null,{"$f":"+CN11","v":"1b"},{"$f":"+CO11","v":"Non-Residential Buildings [Reg. 1100(1)(a.1) election]"},null,{"$f":"+DN11","v":49071964.659983292},null,null,null,null,null,null,null,{"$f":"IFERROR(DU11+DV11+DX11-EA11,\"\")","v":49071964.659983292},null,null,{"$f":"+DV11-DW11+ED11-EE11","v":0},null,{"$f":"IF((EC11-EE11)<0,0,EC11-EE11)","v":49071964.659983292},{"$f":"IF((EA11-EB11+DY11-EF11+EG11-DZ11)<0,0,(EA11-EB11+DY11-EF11+EG11-DZ11))","v":0},{"$f":"IF((EG11-EI11)<0,0,(EG11-EI11))","v":0},0,{"$f":"EJ11*EK11","v":0},{"$f":"IF((0.5*(EF11-EG11-DY11+DZ11-EA11+EB11))<0,0,(0.5*(EF11-EG11-DY11+DZ11-EA11+EB11)))","v":0},0.06,null,null,{"$f":"IF(OR(EH11<=0,EP11>0),0,(EH11+EL11-EM11)*EN11)","v":2944317.8795989975},{"$f":"IF(EC11<0,0,EC11-EP11-EQ11)","v":46127646.780384295}]
[null,{"$f":"IF(ISBLANK('B8 Sch 8 CCA Bridge'!B12), \"\", 'B8 Sch 8 CCA Bridge'!B12)","v":2},{"$f":"IF(ISBLANK('B8 Sch 8 CCA Bridge'!C12), \"\", 'B8 Sch 8 CCA Bridge'!C12)","v":"Distribution System (acq'd pre 1988)"},"B8",{"$f":"IF(ISBLANK('B8 Sch 8 CCA Bridge'!AB12), \"\", 'B8 Sch 8 CCA Bridge'!AB12)","v":56331150.680732369},null,null,null,null,null,null,null,56331150.680732369,null,null,0,null,56331150.680732369,0,0,0.5,0,0,0.06,null,null,3379869.0408439422,52951281.639888428,null,null,null,2,"Distribution System (acq'd pre 1988)",null,52951281.639888428,null,null,null,null,null,null,null,52951281.639888428,null,null,0,null,52951281.639888428,0,0,null,0,0,0.06,null,null,3177076.8983933055,49774204.741495125,null,null,null,2,"Distribution System (acq'd pre 1988)",null,49774204.741495125,null,null,null,null,null,null,null,49774204.741495125,null,null,0,null,49774204.741495125,0,0,0.5,0,0,0.06,null,null,2986452.2844897076,46787752.457005419,null,null,null,2,"Distribution System (acq'd pre 1988)",null,46787752.457005419,null,null,null,null,null,null,null,46787752.457005419,null,null,0,null,46787752.457005419,0,0,null,0,0,0.06,null,null,2807265.1474203249,43980487.309585094,null,null,null,2,"Distribution System (acq'd pre 1988)",null,43980487.309585094,null,null,null,null,null,null,null,43980487.309585094,null,null,0,null,43980487.309585094,0,0,null,0,0,0.06,null,null,2638829.2385751056,41341658.071009986]
[null,{"$f":"IF(ISBLANK('B8 Sch 8 CCA Bridge'!B13), \"\", 'B8 Sch 8 CCA Bridge'!B13)","v":3},{"$f":"IF(ISBLANK('B8 Sch 8 CCA Bridge'!C13), \"\", 'B8 Sch 8 CCA Bridge'!C13)","v":"Buildings (acq'd pre 1988)"},"B8",{"$f":"IF(ISBLANK('B8 Sch 8 CCA Bridge'!AB13), \"\", 'B8 Sch 8 CCA Bridge'!AB13)","v":1814299.0900100002},null,null,null,null,null,null,null,1814299.0900100002,null,null,0,null,1814299.0900100002,0,0,0.5,0,0,0.05,null,null,90714.954500500011,1723584.1355095,null,null,null,3,"Buildings (acq'd pre 1988)",null,1723584.1355095,null,null,null,null,null,null,null,1723584.1355095,null,null,0,null,1723584.1355095,0,0,null,0,0,0.05,null,null,86179.206775475002,1637404.928734025,null,null,null,3,"Buildings (acq'd pre 1988)",null,1637404.928734025,null,null,null,null,null,null,null,1637404.928734025,null,null,0,null,1637404.928734025,0,0,0.5,0,0,0.05,null,null,81870.246436701258,1555534.6822973238,null,null,null,3,"Buildings (acq'd pre 1988)",null,1555534.6822973238,null,null,null,null,null,null,null,1555534.6822973238,null,null,0,null,1555534.6822973238,0,0,null,0,0,0.05,null,null,77776.734114866194,1477757.9481824576,null,null,null,3,"Buildings (acq'd pre 1988)",null,1477757.9481824576,null,null,null,null,null,null,null,1477757.9481824576,null,null,0,null,1477757.9481824576,0,0,null,0,0,0.05,null,null,73887.897409122888,1403870.0507733347]
[null,{"$f":"IF(ISBLANK('B8 Sch 8 CCA Bridge'!B14), \"\", 'B8 Sch 8 CCA Bridge'!B14)","v":6},{"$f":"IF(ISBLANK('B8 Sch 8 CCA Bridge'!C14), \"\", 'B8 Sch 8 CCA Bridge'!C14)","v":"Certain Buildings; Fences"},"B8",{"$f":"IF(ISBLANK('B8 Sch 8 CCA Bridge'!AB14), \"\", 'B8 Sch 8 CCA Bridge'!AB14)","v":3312},null,null,null,null,null,null,null,3312,null,null,0,null,3312,0,0,0.5,0,0,0.1,null,null,331.20000000000005,2980.8,null,null,null,6,"Certain Buildings; Fences",null,2980.8,null,null,null,null,null,null,null,2980.8,null,null,0,null,2980.8,0,0,0,0,0,0.1,null,null,298.08000000000004,2682.7200000000003,null,null,null,6,"Certain Buildings; Fences",null,2682.7200000000003,null,null,null,null,null,null,null,2682.7200000000003,null,null,0,null,2682.7200000000003,0,0,0.5,0,0,0.1,null,null,268.27200000000005,2414.4480000000003,null,null,null,6,"Certain Buildings; Fences",null,2414.4480000000003,null,null,null,null,null,null,null,2414.4480000000003,null,null,0,null,2414.4480000000003,0,0,0,0,0,0.1,null,null,241.44480000000004,2173.0032000000001,null,null,null,6,"Certain Buildings; Fences",null,2173.0032000000001,null,null,null,null,null,null,null,2173.0032000000001,null,null,0,null,2173.0032000000001,0,0,0,0,0,0.1,null,null,217.30032000000003,1955.7028800000001]
[null,{"$f":"IF(ISBLANK('B8 Sch 8 CCA Bridge'!B15), \"\", 'B8 Sch 8 CCA Bridge'!B15)","v":8},{"$f":"IF(ISBLANK('B8 Sch 8 CCA Bridge'!C15), \"\", 'B8 Sch 8 CCA Bridge'!C15)","v":"General Office Equipment, Furniture, Fixtures"},"B8",{"$f":"IF(ISBLANK('B8 Sch 8 CCA Bridge'!AB15), \"\", 'B8 Sch 8 CCA Bridge'!AB15)","v":11717373.833199998},2727806,null,null,null,null,null,null,14445179.833199998,null,null,2727806,{"$f":"+P15","v":2727806},14445179.833199998,0,2727806,0.5,1363903,0,0.2,null,null,3161816.5666399999,11283363.266559999,null,null,null,8,"General Office Equipment, Furniture, Fixtures",null,11283363.266559999,2659968,null,null,null,null,null,null,13943331.266559999,null,null,2659968,{"$f":"+AT15","v":2659968},13943331.266559999,0,2659968,0.5,1329984,0,0.2,null,null,3054663.0533119999,10888668.213248,null,null,null,8,"General Office Equipment, Furniture, Fixtures",null,10888668.213248,2748793,null,null,null,null,null,null,13637461.213248,null,null,2748793,{"$f":"+BX15","v":2748793},13637461.213248,0,2748793,0.5,1374396.5,0,0.2,null,null,3002371.5426496002,10635089.670598399,null,null,null,8,"General Office Equipment, Furniture, Fixtures",null,10635089.670598399,2572744.0998,null,null,null,null,null,null,13207833.770398399,null,null,2572744.0998,{"$f":"+DB15","v":2572744.0998},13207833.770398399,0,2572744.0998,0,0,0,0.2,null,null,2641566.75407968,10566267.01631872,null,null,null,8,"General Office Equipment, Furniture, Fixtures",null,10566267.01631872,2533075,null,null,null,null,null,null,13099342.01631872,null,null,2533075,{"$f":"+EF15","v":2533075},13099342.01631872,0,2533075,0,0,0,0.2,null,null,2619868.403263744,10479473.613054976]
[null,{"$f":"IF(ISBLANK('B8 Sch 8 CCA Bridge'!B16), \"\", 'B8 Sch 8 CCA Bridge'!B16)","v":10},{"$f":"IF(ISBLANK('B8 Sch 8 CCA Bridge'!C16), \"\", 'B8 Sch 8 CCA Bridge'!C16)","v":"Motor Vehicles, Fleet"},"B8",{"$f":"IF(ISBLANK('B8 Sch 8 CCA Bridge'!AB16), \"\", 'B8 Sch 8 CCA Bridge'!AB16)","v":13989945.607419997},15937368,null,null,null,null,676790,null,29250523.607419997,null,null,15937368,{"$f":"+P16","v":15937368},29250523.607419997,676790,15260578,0.5,7630289,0,0.3,null,null,{"$f":"IF(OR(R16<=0,Z16>0),0,(R16+V16-W16)*X16)","v":11064243.782225998},18186279.825194001,null,null,null,10,"Motor Vehicles, Fleet",null,18186279.825194001,23911599,null,null,null,null,676790,null,41421088.825194001,null,null,23911599,{"$f":"+AT16","v":23911599},41421088.825194001,676790,23234809,0.5,11617404.5,0,0.3,null,null,{"$f":"IF(OR(AV16<=0,BD16>0),0,(AV16+AZ16-BA16)*BB16)","v":15911547.997558199},25509540.827635802,null,null,null,10,"Motor Vehicles, Fleet",null,25509540.827635802,19455659,null,null,null,null,676790,null,44288409.827635802,null,null,19455659,{"$f":"+BX16","v":19455659},44288409.827635802,676790,18778869,0.5,9389434.5,0,0.3,null,null,{"$f":"IF(OR(BZ16<=0,CH16>0),0,(BZ16+CD16-CE16)*CF16)","v":16103353.298290741},28185056.529345062,null,null,null,10,"Motor Vehicles, Fleet",null,28185056.529345062,18782672.971799996,null,null,null,null,676790,null,46290939.501145057,null,null,18782672.971799996,{"$f":"+DB16","v":18782672.971799996},46290939.501145057,676790,18105882.971799996,0,0,0,0.3,null,null,{"$f":"IF(OR(DD16<=0,DL16>0),0,(DD16+DH16-DI16)*DJ16)","v":13887281.850343516},32403657.650801539,null,null,null,10,"Motor Vehicles, Fleet",null,32403657.650801539,18733672,null,null,null,null,676790,null,50460539.650801539,null,null,18733672,{"$f":"+EF16","v":18733672},50460539.650801539,676790,18056882,0,0,0,0.3,null,null,{"$f":"IF(OR(EH16<=0,EP16>0),0,(EH16+EL16-EM16)*EN16)","v":15138161.895240461},35322377.755561076]
[null,{"$f":"IF(ISBLANK('B8 Sch 8 CCA Bridge'!B17), \"\", 'B8 Sch 8 CCA Bridge'!B17)","v":10.1},{"$f":"IF(ISBLANK('B8 Sch 8 CCA Bridge'!C17), \"\", 'B8 Sch 8 CCA Bridge'!C17)","v":"Certain Automobiles"},"B8",{"$f":"IF(ISBLANK('B8 Sch 8 CCA Bridge'!AB17), \"\", 'B8 Sch 8 CCA Bridge'!AB17)","v":202.34535999999986},null,null,null,null,null,null,null,202.34535999999986,null,null,0,null,202.34535999999986,0,0,0.5,0,0,0.3,null,null,60.703607999999953,141.64175199999991,null,null,null,10.1,"Certain Automobiles",null,141.64175199999991,null,null,null,null,null,null,null,141.64175199999991,null,null,0,null,141.64175199999991,0,0,0.5,0,0,0.3,null,null,{"$f":"IF(OR(AV17<=0,BD17>0),0,(AV17+AZ17-BA17)*BB17)","v":42.492525599999972},99.149226399999947,null,null,null,10.1,"Certain Automobiles",null,99.149226399999947,null,null,null,null,null,null,null,99.149226399999947,null,null,0,null,99.149226399999947,0,0,0.5,0,0,0.3,null,null,{"$f":"IF(OR(BZ17<=0,CH17>0),0,(BZ17+CD17-CE17)*CF17)","v":29.744767919999983},69.40445847999996,null,null,null,10.1,"Certain Automobiles",null,69.40445847999996,null,null,null,null,null,null,null,69.40445847999996,null,null,0,null,69.40445847999996,0,0,0,0,0,0.3,null,null,{"$f":"IF(OR(DD17<=0,DL17>0),0,(DD17+DH17-DI17)*DJ17)","v":20.821337543999988},48.583120935999972,null,null,null,10.1,"Certain Automobiles",null,48.583120935999972,null,null,null,null,null,null,null,48.583120935999972,null,null,0,null,48.583120935999972,0,0,0,0,0,0.3,null,null,{"$f":"IF(OR(EH17<=0,EP17>0),0,(EH17+EL17-EM17)*EN17)","v":14.57493628079999},34.008184655199983]
[null,{"$f":"IF(ISBLANK('B8 Sch 8 CCA Bridge'!B18), \"\", 'B8 Sch 8 CCA Bridge'!B18)","v":12},{"$f":"IF(ISBLANK('B8 Sch 8 CCA Bridge'!C18), \"\", 'B8 Sch 8 CCA Bridge'!C18)","v":"Computer Application Software (Non-Systems)"},"B8",{"$f":"IF(ISBLANK('B8 Sch 8 CCA Bridge'!AB18), \"\", 'B8 Sch 8 CCA Bridge'!AB18)","v":0},41242771,null,null,null,null,null,null,41242771,null,null,41242771,{"$f":"+P18","v":41242771},41242771,0,41242771,null,0,0,1,null,null,41242771,0,null,null,null,12,"Computer Application Software (Non-Systems)",null,0,25490099,null,null,null,null,null,null,25490099,null,null,25490099,{"$f":"+AT18","v":25490099},25490099,0,25490099,null,0,0,1,null,null,25490099,0,null,null,null,12,"Computer Application Software (Non-Systems)",null,0,50478914,null,null,null,null,null,null,50478914,null,null,50478914,{"$f":"+BX18","v":50478914},50478914,0,50478914,null,0,0,1,null,null,50478914,0,null,null,null,12,"Computer Application Software (Non-Systems)",null,0,16149914,null,null,null,null,null,null,16149914,null,null,16149914,{"$f":"+DB18","v":16149914},16149914,0,16149914,0,0,0,1,null,null,16149914,0,null,null,null,12,"Computer Application Software (Non-Systems)",null,0,15735892,null,null,null,null,null,null,15735892,null,null,15735892,{"$f":"+EF18","v":15735892},15735892,0,15735892,0,0,0,1,null,null,15735892,0]
[null,"13 1",{"$f":"IF(ISBLANK('B8 Sch 8 CCA Bridge'!C19), \"\", 'B8 Sch 8 CCA Bridge'!C19)","v":"Lease # 1"},"B8",{"$f":"IF(ISBLANK('B8 Sch 8 CCA Bridge'!AB19), \"\", 'B8 Sch 8 CCA Bridge'!AB19)","v":473169},null,null,null,null,null,null,null,473169,null,null,0,null,473169,0,0,null,0,0,"NA",null,null,36882,436287,null,null,null,"13 1","Lease # 1",null,436287,null,null,null,null,null,null,null,436287,null,null,0,null,436287,0,0,null,0,0,"NA",null,null,36882,399405,null,null,null,"13 1","Lease # 1",null,399405,null,null,null,null,null,null,null,399405,null,null,0,null,399405,0,0,null,0,0,"NA",null,null,36882,362523,null,null,null,"13 1","Lease # 1",null,362523,null,null,null,null,null,null,null,362523,null,null,0,null,362523,0,0,0,0,0,"NA",null,null,36882,325641,null,null,null,"13 1","Lease # 1",null,325641,null,null,null,null,null,null,null,325641,null,null,0,null,325641,0,0,0,0,0,"NA",null,null,36882,288759]
[null,"13 2",{"$f":"IF(ISBLANK('B8 Sch 8 CCA Bridge'!C20), \"\", 'B8 Sch 8 CCA Bridge'!C20)","v":"Lease # 2"},"B8",{"$f":"IF(ISBLANK('B8 Sch 8 CCA Bridge'!AB20), \"\", 'B8 Sch 8 CCA Bridge'!AB20)","v":106157},null,null,null,null,null,null,null,106157,null,null,0,null,106157,0,0,null,0,0,"NA",null,null,32143,74014,null,null,null,"13 2","Lease # 2",null,74014,null,null,null,null,null,null,null,74014,null,null,0,null,74014,0,0,null,0,0,"NA",null,null,32143,41871,null,null,null,"13 2","Lease # 2",null,41871,null,null,null,null,null,null,null,41871,null,null,0,null,41871,0,0,null,0,0,"NA",null,null,32143,9728,null,null,null,"13 2","Lease # 2",null,9728,null,null,null,null,null,null,null,9728,null,null,0,null,9728,0,0,0,0,0,"NA",null,null,9728,0,null,null,null,"13 2","Lease # 2",null,0,null,null,null,null,null,null,null,0,null,null,0,null,0,0,0,0,0,0,"NA",null,null,0,0]
[null,"13 3",{"$f":"IF(ISBLANK('B8 Sch 8 CCA Bridge'!C21), \"\", 'B8 Sch 8 CCA Bridge'!C21)","v":"Lease # 3"},"B8",{"$f":"IF(ISBLANK('B8 Sch 8 CCA Bridge'!AB21), \"\", 'B8 Sch 8 CCA Bridge'!AB21)","v":0.29999999998835847},null,null,null,null,null,null,null,0.29999999998835847,null,null,0,null,0.29999999998835847,0,0,null,0,0,"NA",null,null,0,0.29999999998835847,null,null,null,"13 3","Lease # 3",null,0.29999999998835847,null,null,null,null,null,null,null,0.29999999998835847,null,null,0,null,0.29999999998835847,0,0,null,0,0,"NA",null,null,0,0.29999999998835847,null,null,null,"13 3","Lease # 3",null,0.29999999998835847,null,null,null,null,null,null,null,0.29999999998835847,null,null,0,null,0.29999999998835847,0,0,null,0,0,"NA",null,null,0,0.29999999998835847,null,null,null,"13 3","Lease # 3",null,0.29999999998835847,null,null,null,null,null,null,null,0.29999999998835847,null,null,0,null,0.29999999998835847,0,0,0,0,0,"NA",null,null,0,0.29999999998835847,null,null,null,"13 3","Lease # 3",null,0.29999999998835847,null,null,null,null,null,null,null,0.29999999998835847,null,null,0,null,0.29999999998835847,0,0,0,0,0,"NA",null,null,0,0.29999999998835847]
[null,"13 4",{"$f":"IF(ISBLANK('B8 Sch 8 CCA Bridge'!C22), \"\", 'B8 Sch 8 CCA Bridge'!C22)","v":"Lease # 4"},"B8",{"$f":"IF(ISBLANK('B8 Sch 8 CCA Bridge'!AB22), \"\", 'B8 Sch 8 CCA Bridge'!AB22)","v":7551},null,null,null,null,null,null,null,7551,null,null,0,null,7551,0,0,null,0,0,"NA",null,null,7551,0,null,null,null,"13 4","Lease # 4",null,0,null,null,null,null,null,null,null,0,null,null,0,null,0,0,0,null,0,0,"NA",null,null,0,0,null,null,null,"13 4","Lease # 4",null,0,null,null,null,null,null,null,null,0,null,null,0,null,0,0,0,null,0,0,"NA",null,null,0,0,null,null,null,"13 4","Lease # 4",null,0,null,null,null,null,null,null,null,0,null,null,0,null,0,0,0,0,0,0,"NA",null,null,0,0,null,null,null,"13 4","Lease # 4",null,0,null,null,null,null,null,null,null,0,null,null,0,null,0,0,0,0,0,0,"NA",null,null,0,0]
[null,{"$f":"IF(ISBLANK('B8 Sch 8 CCA Bridge'!B23), \"\", 'B8 Sch 8 CCA Bridge'!B23)","v":14},{"$f":"IF(ISBLANK('B8 Sch 8 CCA Bridge'!C23), \"\", 'B8 Sch 8 CCA Bridge'!C23)","v":"Limited Period Patents, Franchises, Concessions or Licences"},"B8",{"$f":"IF(ISBLANK('B8 Sch 8 CCA Bridge'!AB23), \"\", 'B8 Sch 8 CCA Bridge'!AB23)","v":38207609.89621783},25000034,null,null,null,null,null,null,63207643.89621783,null,null,25000034,{"$f":"+P23","v":25000034},63207643.89621783,0,25000034,null,0,0,"NA",null,null,4100852.3251616298,59106791.571056202,null,null,null,14,"Limited Period Patents, Franchises, Concessions or Licences",null,59106791.571056202,null,null,null,null,null,null,null,59106791.571056202,null,null,0,null,59106791.571056202,0,0,null,0,0,"NA",null,null,4735161,54371630.571056202,null,null,null,14,"Limited Period Patents, Franchises, Concessions or Licences",null,54371630.571056202,null,null,null,null,null,null,null,54371630.571056202,null,null,0,null,54371630.571056202,0,0,0.5,0,0,"NA",null,null,4731394.1811758019,49640236.389880404,null,null,null,14,"Limited Period Patents, Franchises, Concessions or Licences",null,49640236.389880404,null,null,null,null,null,null,null,49640236.389880404,null,null,0,null,49640236.389880404,0,0,0,0,0,"NA",null,null,4731394,44908842.389880404,null,null,null,14,"Limited Period Patents, Franchises, Concessions or Licences",null,44908842.389880404,50916033,null,null,null,null,null,null,95824875.389880404,null,null,50916033,{"$f":"+EF23","v":50916033},95824875.389880404,0,50916033,0,0,0,"NA",null,null,5753202.2474032398,90071673.14247717]
[null,{"$f":"IF(ISBLANK('B8 Sch 8 CCA Bridge'!B24), \"\", 'B8 Sch 8 CCA Bridge'!B24)","v":14.1},"Eligible Capital Property (acq'd pre Jan 1, 2017)","B8",{"$f":"IF(ISBLANK('B8 Sch 8 CCA Bridge'!AB24), \"\", 'B8 Sch 8 CCA Bridge'!AB24)","v":11608711.661391573},null,null,null,null,null,null,null,11608711.661391573,null,null,0,null,{"$f":"IF((M24-O24)<0,0,M24-O24)","v":11608711.661391573},{"$f":"IF((K24-L24+I24-P24+Q24-J24)<0,0,(K24-L24+I24-P24+Q24-J24))","v":0},0,null,0,0,7.0000000000000007E-2,null,null,812609.81629741017,10796101.845094163,null,null,null,14.1,"Eligible Capital Property (acq'd pre Jan 1, 2017)",null,10796101.845094163,null,null,null,null,null,null,null,10796101.845094163,null,null,0,null,{"$f":"IF((AQ24-AS24)<0,0,AQ24-AS24)","v":10796101.845094163},{"$f":"IF((AO24-AP24+AM24-AT24+AU24-AN24)<0,0,(AO24-AP24+AM24-AT24+AU24-AN24))","v":0},0,0.5,0,0,7.0000000000000007E-2,null,null,{"$f":"IF(OR(AV24<=0,BD24>0),0,(AV24+AZ24-BA24)*BB24)","v":755727.12915659149},10040374.715937572,null,null,null,14.1,"Eligible Capital Property (acq'd pre Jan 1, 2017)",null,10040374.715937572,null,null,null,null,null,null,null,10040374.715937572,null,null,0,null,{"$f":"IF((BU24-BW24)<0,0,BU24-BW24)","v":10040374.715937572},{"$f":"IF((BS24-BT24+BQ24-BX24+BY24-BR24)<0,0,(BS24-BT24+BQ24-BX24+BY24-BR24))","v":0},0,null,0,0,7.0000000000000007E-2,null,null,{"$f":"IF(OR(BZ24<=0,CH24>0),0,(BZ24+CD24-CE24)*CF24)","v":702826.23011563008},9337548.4858219419,null,null,null,14.1,"Eligible Capital Property (acq'd pre Jan 1, 2017)",null,9337548.4858219419,null,null,null,null,null,null,null,9337548.4858219419,null,null,0,null,{"$f":"IF((CY24-DA24)<0,0,CY24-DA24)","v":9337548.4858219419},{"$f":"IF((CW24-CX24+CU24-DB24+DC24-CV24)<0,0,(CW24-CX24+CU24-DB24+DC24-CV24))","v":0},0,null,0,0,7.0000000000000007E-2,null,null,{"$f":"IF(OR(DD24<=0,DL24>0),0,(DD24+DH24-DI24)*DJ24)","v":653628.394007536},8683920.0918144062,null,null,null,14.1,"Eligible Capital Property (acq'd pre Jan 1, 2017)",null,8683920.0918144062,null,null,null,null,null,null,null,8683920.0918144062,null,null,0,null,{"$f":"IF((EC24-EE24)<0,0,EC24-EE24)","v":8683920.0918144062},{"$f":"IF((EA24-EB24+DY24-EF24+EG24-DZ24)<0,0,(EA24-EB24+DY24-EF24+EG24-DZ24))","v":0},0,null,0,0,7.0000000000000007E-2,null,null,{"$f":"IF(OR(EH24<=0,EP24>0),0,(EH24+EL24-EM24)*EN24)","v":607874.40642700845},8076045.6853873981]
[null,{"$f":"IF(ISBLANK('B8 Sch 8 CCA Bridge'!B25), \"\", 'B8 Sch 8 CCA Bridge'!B25)","v":14.1},"Eligible Capital Property (acq'd post Jan 1, 2017)","B8",{"$f":"IF(ISBLANK('B8 Sch 8 CCA Bridge'!AB25), \"\", 'B8 Sch 8 CCA Bridge'!AB25)","v":5153050.3566765813},140937,null,null,null,null,null,null,5293987.3566765813,null,null,140937,{"$f":"+P25","v":140937},5293987.3566765813,0,140937,0.5,70468.5,0,0.05,null,null,268222.79283382907,5025764.563842752,null,null,null,14.1,"Eligible Capital Property (acq'd post Jan 1, 2017)",null,5025764.563842752,146315,null,null,null,null,null,null,5172079.563842752,null,null,146315,{"$f":"+AT25","v":146315},{"$f":"IF((AQ25-AS25)<0,0,AQ25-AS25)","v":5172079.563842752},{"$f":"IF((AO25-AP25+AM25-AT25+AU25-AN25)<0,0,(AO25-AP25+AM25-AT25+AU25-AN25))","v":0},146315,0.5,73157.5,0,0.05,null,null,262261.85319213761,4909817.7106506145,null,null,null,14.1,"Eligible Capital Property (acq'd post Jan 1, 2017)",null,4909817.7106506145,146530,null,null,null,null,null,null,5056347.7106506145,null,null,146530,{"$f":"+BX25","v":146530},{"$f":"IF((BU25-BW25)<0,0,BU25-BW25)","v":5056347.7106506145},{"$f":"IF((BS25-BT25+BQ25-BX25+BY25-BR25)<0,0,(BS25-BT25+BQ25-BX25+BY25-BR25))","v":0},146530,0.5,73265,0,0.05,null,null,256480.63553253072,4799867.0751180835,null,null,null,14.1,"Eligible Capital Property (acq'd post Jan 1, 2017)",null,4799867.0751180835,149147.65680000003,null,null,null,null,null,null,4949014.7319180835,null,null,149147.65680000003,{"$f":"+DB25","v":149147.65680000003},{"$f":"IF((CY25-DA25)<0,0,CY25-DA25)","v":4949014.7319180835},{"$f":"IF((CW25-CX25+CU25-DB25+DC25-CV25)<0,0,(CW25-CX25+CU25-DB25+DC25-CV25))","v":0},149147.65680000003,0,0,0,0.05,null,null,247450.73659590419,4701563.995322179,null,null,null,14.1,"Eligible Capital Property (acq'd post Jan 1, 2017)",null,4701563.995322179,151447,null,null,null,null,null,null,4853010.995322179,null,null,151447,{"$f":"+EF25","v":151447},{"$f":"IF((EC25-EE25)<0,0,EC25-EE25)","v":4853010.995322179},{"$f":"IF((EA25-EB25+DY25-EF25+EG25-DZ25)<0,0,(EA25-EB25+DY25-EF25+EG25-DZ25))","v":0},151447,0,0,0,0.05,null,null,242650.54976610898,4610360.4455560697]
[null,{"$f":"IF(ISBLANK('B8 Sch 8 CCA Bridge'!B26), \"\", 'B8 Sch 8 CCA Bridge'!B26)","v":17},{"$f":"IF(ISBLANK('B8 Sch 8 CCA Bridge'!C26), \"\", 'B8 Sch 8 CCA Bridge'!C26)","v":"Elec. Generation Equip. (Non-Bldng, acq'd post Feb 27/00); Roads, Lots, Storage"},"B8",{"$f":"IF(ISBLANK('B8 Sch 8 CCA Bridge'!AB26), \"\", 'B8 Sch 8 CCA Bridge'!AB26)","v":441911.11511199997},null,null,null,null,null,null,null,441911.11511199997,null,null,0,{"$f":"+P26","v":0},441911.11511199997,0,0,0.5,0,0,0.08,null,null,35352.889208959998,406558.22590303997,null,null,null,17,"Elec. Generation Equip. (Non-Bldng, acq'd post Feb 27/00); Roads, Lots, Storage",null,406558.22590303997,null,null,null,null,null,null,null,406558.22590303997,null,null,0,null,406558.22590303997,0,0,0.5,0,0,0.08,null,null,32524.658072243197,374033.56783079676,null,null,null,17,"Elec. Generation Equip. (Non-Bldng, acq'd post Feb 27/00); Roads, Lots, Storage",null,374033.56783079676,null,null,null,null,null,null,null,374033.56783079676,null,null,0,null,374033.56783079676,0,0,0.5,0,0,0.08,null,null,29922.68542646374,344110.88240433304,null,null,null,17,"Elec. Generation Equip. (Non-Bldng, acq'd post Feb 27/00); Roads, Lots, Storage",null,344110.88240433304,null,null,null,null,null,null,null,344110.88240433304,null,null,0,null,344110.88240433304,0,0,0,0,0,0.08,null,null,27528.870592346644,316582.01181198639,null,null,null,17,"Elec. Generation Equip. (Non-Bldng, acq'd post Feb 27/00); Roads, Lots, Storage",null,316582.01181198639,null,null,null,null,null,null,null,316582.01181198639,null,null,0,null,316582.01181198639,0,0,0,0,0,0.08,null,null,25326.56094495891,291255.45086702751]
[null,{"$f":"IF(ISBLANK('B8 Sch 8 CCA Bridge'!B27), \"\", 'B8 Sch 8 CCA Bridge'!B27)","v":42},{"$f":"IF(ISBLANK('B8 Sch 8 CCA Bridge'!C27), \"\", 'B8 Sch 8 CCA Bridge'!C27)","v":"Fibre Optic Cable"},"B8",{"$f":"IF(ISBLANK('B8 Sch 8 CCA Bridge'!AB27), \"\", 'B8 Sch 8 CCA Bridge'!AB27)","v":48.4},null,null,null,null,null,null,null,48.4,null,null,0,null,48.4,0,0,0.5,0,0,0.12,null,null,5.8079999999999998,42.591999999999999,null,null,null,42,"Fibre Optic Cable",null,42.591999999999999,null,null,null,null,null,null,null,42.591999999999999,null,null,0,null,42.591999999999999,0,0,0.5,0,0,0.12,null,null,5.11104,37.480959999999996,null,null,null,42,"Fibre Optic Cable",null,37.480959999999996,null,null,null,null,null,null,null,37.480959999999996,null,null,0,null,37.480959999999996,0,0,0.5,0,0,0.12,null,null,4.4977151999999991,32.983244799999994,null,null,null,42,"Fibre Optic Cable",null,32.983244799999994,null,null,null,null,null,null,null,32.983244799999994,null,null,0,null,32.983244799999994,0,0,0,0,0,0.12,null,null,3.9579893759999991,29.025255423999994,null,null,null,42,"Fibre Optic Cable",null,29.025255423999994,null,null,null,null,null,null,null,29.025255423999994,null,null,0,null,29.025255423999994,0,0,0,0,0,0.12,null,null,3.4830306508799991,25.542224773119994]
[null,{"$f":"IF(ISBLANK('B8 Sch 8 CCA Bridge'!B28), \"\", 'B8 Sch 8 CCA Bridge'!B28)","v":43.1},{"$f":"IF(ISBLANK('B8 Sch 8 CCA Bridge'!C28), \"\", 'B8 Sch 8 CCA Bridge'!C28)","v":"Certain Clean Energy/Energy-Efficient Generation Equipment"},"B8",{"$f":"IF(ISBLANK('B8 Sch 8 CCA Bridge'!AB28), \"\", 'B8 Sch 8 CCA Bridge'!AB28)","v":2062.1999999999998},null,null,null,null,null,null,null,2062.1999999999998,null,null,0,null,2062.1999999999998,0,0,0.5,0,0,0.3,null,null,618.66,1443.54,null,null,null,43.1,"Certain Clean Energy/Energy-Efficient Generation Equipment",null,1443.54,null,null,null,null,null,null,null,1443.54,null,null,0,null,1443.54,0,0,1.5,0,0,0.3,null,null,433.06199999999995,1010.4780000000001,null,null,null,43.1,"Certain Clean Energy/Energy-Efficient Generation Equipment",null,1010.4780000000001,null,null,null,null,null,null,null,1010.4780000000001,null,null,0,null,1010.4780000000001,0,0,0.5,0,0,0.3,null,null,303.14339999999999,707.33460000000014,null,null,null,43.1,"Certain Clean Energy/Energy-Efficient Generation Equipment",null,707.33460000000014,null,null,null,null,null,null,null,707.33460000000014,null,null,0,null,707.33460000000014,0,0,1.5,0,0,0.3,null,null,212.20038000000002,495.13422000000014,null,null,null,43.1,"Certain Clean Energy/Energy-Efficient Generation Equipment",null,495.13422000000014,null,null,null,null,null,null,null,495.13422000000014,null,null,0,null,495.13422000000014,0,0,1.5,0,0,0.3,null,null,148.54026600000003,346.59395400000011]
[null,{"$f":"IF(ISBLANK('B8 Sch 8 CCA Bridge'!B29), \"\", 'B8 Sch 8 CCA Bridge'!B29)","v":43.2},{"$f":"IF(ISBLANK('B8 Sch 8 CCA Bridge'!C29), \"\", 'B8 Sch 8 CCA Bridge'!C29)","v":"Certain Clean Energy/Energy-Efficient Generation Equipment"},"B8",{"$f":"IF(ISBLANK('B8 Sch 8 CCA Bridge'!AB29), \"\", 'B8 Sch 8 CCA Bridge'!AB29)","v":16383.224999999977},null,null,null,null,null,null,null,16383.224999999977,null,null,0,null,16383.224999999977,0,0,0.5,0,0,0.5,null,null,8191.6124999999884,8191.6124999999884,null,null,null,43.2,"Certain Clean Energy/Energy-Efficient Generation Equipment",null,8191.6124999999884,null,null,null,null,null,null,null,8191.6124999999884,null,null,0,null,8191.6124999999884,0,0,0.5,0,0,0.5,null,null,4095.8062499999942,4095.8062499999942,null,null,null,43.2,"Certain Clean Energy/Energy-Efficient Generation Equipment",null,4095.8062499999942,null,null,null,null,null,null,null,4095.8062499999942,null,null,0,null,4095.8062499999942,0,0,0.5,0,0,0.5,null,null,2047.9031249999971,2047.9031249999971,null,null,null,43.2,"Certain Clean Energy/Energy-Efficient Generation Equipment",null,2047.9031249999971,null,null,null,null,null,null,null,2047.9031249999971,null,null,0,null,2047.9031249999971,0,0,0.5,0,0,0.5,null,null,1023.9515624999985,1023.9515624999985,null,null,null,43.2,"Certain Clean Energy/Energy-Efficient Generation Equipment",null,1023.9515624999985,null,null,null,null,null,null,null,1023.9515624999985,null,null,0,null,1023.9515624999985,0,0,0.5,0,0,0.5,null,null,511.97578124999927,511.97578124999927]
[null,{"$f":"IF(ISBLANK('B8 Sch 8 CCA Bridge'!B30), \"\", 'B8 Sch 8 CCA Bridge'!B30)","v":45},{"$f":"IF(ISBLANK('B8 Sch 8 CCA Bridge'!C30), \"\", 'B8 Sch 8 CCA Bridge'!C30)","v":"Computers & System Software (acq'd post Mar 22/04 and pre Mar 19/07)"},"B8",{"$f":"IF(ISBLANK('B8 Sch 8 CCA Bridge'!AB30), \"\", 'B8 Sch 8 CCA Bridge'!AB30)","v":1491.8015199999993},null,null,null,null,null,null,null,1491.8015199999993,null,null,0,null,1491.8015199999993,0,0,0.5,0,0,0.45,null,null,671.3106839999997,820.4908359999996,null,null,null,45,"Computers & System Software (acq'd post Mar 22/04 and pre Mar 19/07)",null,820.4908359999996,null,null,null,null,null,null,null,820.4908359999996,null,null,0,null,820.4908359999996,0,0,null,0,0,0.45,null,null,369.22087619999985,451.26995979999975,null,null,null,45,"Computers & System Software (acq'd post Mar 22/04 and pre Mar 19/07)",null,451.26995979999975,null,null,null,null,null,null,null,451.26995979999975,null,null,0,null,451.26995979999975,0,0,null,0,0,0.45,null,null,203.0714819099999,248.19847788999985,null,null,null,45,"Computers & System Software (acq'd post Mar 22/04 and pre Mar 19/07)",null,248.19847788999985,null,null,null,null,null,null,null,248.19847788999985,null,null,0,null,248.19847788999985,0,0,null,0,0,0.45,null,null,111.68931505049993,136.50916283949994,null,null,null,45,"Computers & System Software (acq'd post Mar 22/04 and pre Mar 19/07)",null,136.50916283949994,null,null,null,null,null,null,null,136.50916283949994,null,null,0,null,136.50916283949994,0,0,null,0,0,0.45,null,null,61.42912327777497,75.080039561724959]
[null,{"$f":"IF(ISBLANK('B8 Sch 8 CCA Bridge'!B31), \"\", 'B8 Sch 8 CCA Bridge'!B31)","v":46},{"$f":"IF(ISBLANK('B8 Sch 8 CCA Bridge'!C31), \"\", 'B8 Sch 8 CCA Bridge'!C31)","v":"Data Network Infrastructure Equipment (acq'd post Mar 22/04)"},"B8",{"$f":"IF(ISBLANK('B8 Sch 8 CCA Bridge'!AB31), \"\", 'B8 Sch 8 CCA Bridge'!AB31)","v":0},null,null,null,null,null,null,null,0,null,null,0,null,0,0,0,0.5,0,0,0.3,null,null,0,0,null,null,null,46,"Data Network Infrastructure Equipment (acq'd post Mar 22/04)",null,0,null,null,null,null,null,null,null,0,null,null,0,null,0,0,0,0.5,0,0,0.3,null,null,0,0,null,null,null,46,"Data Network Infrastructure Equipment (acq'd post Mar 22/04)",null,0,null,null,null,null,null,null,null,0,null,null,0,null,0,0,0,0.5,0,0,0.3,null,null,0,0,null,null,null,46,"Data Network Infrastructure Equipment (acq'd post Mar 22/04)",null,0,null,null,null,null,null,null,null,0,null,null,0,null,0,0,0,0,0,0,0.3,null,null,0,0,null,null,null,46,"Data Network Infrastructure Equipment (acq'd post Mar 22/04)",null,0,null,null,null,null,null,null,null,0,null,null,0,null,0,0,0,0,0,0,0.3,null,null,0,0]
[null,{"$f":"IF(ISBLANK('B8 Sch 8 CCA Bridge'!B32), \"\", 'B8 Sch 8 CCA Bridge'!B32)","v":47},{"$f":"IF(ISBLANK('B8 Sch 8 CCA Bridge'!C32), \"\", 'B8 Sch 8 CCA Bridge'!C32)","v":"Distribution System (acq'd post Feb 22/05)"},"B8",{"$f":"IF(ISBLANK('B8 Sch 8 CCA Bridge'!AB32), \"\", 'B8 Sch 8 CCA Bridge'!AB32)","v":2105418691.3277795},322748054,null,null,null,null,16878,null,2428149867.3277798,null,null,322748054,{"$f":"+P32","v":322748054},2428149867.3277798,16878,322731176,0.5,161365588,0,0.08,null,null,207161236.42622238,2220988630.9015574,null,null,null,47,"Distribution System (acq'd post Feb 22/05)",null,2220988630.9015574,401756745,null,null,null,null,16878,null,2622728497.9015574,null,null,401756745,{"$f":"+AT32","v":401756745},2622728497.9015574,16878,401739867,0.5,200869933.5,0,0.08,null,null,225887874.5121246,2396840623.3894329,null,null,null,47,"Distribution System (acq'd post Feb 22/05)",null,2396840623.3894329,480077356,null,null,null,null,16878,null,2876901101.3894329,null,null,480077356,{"$f":"+BX32","v":480077356},2876901101.3894329,16878,480060478,0.5,240030239,0,0.08,null,null,249354507.23115465,2627546594.1582785,null,null,null,47,"Distribution System (acq'd post Feb 22/05)",null,2627546594.1582785,547884664.36984909,null,null,null,null,16878,null,3175414380.5281277,null,null,547884664.36984909,{"$f":"+DB32","v":547884664.36984909},3175414380.5281277,16878,547867786.36984909,0,0,0,0.08,null,null,254033150.44225022,2921381230.0858774,null,null,null,47,"Distribution System (acq'd post Feb 22/05)",null,2921381230.0858774,507417640,null,null,null,null,16878,null,3428781992.0858774,null,null,507417640,{"$f":"+EF32","v":507417640},3428781992.0858774,16878,507400762,0,0,0,0.08,null,null,274302559.36687022,3154479432.719007]
[null,{"$f":"IF(ISBLANK('B8 Sch 8 CCA Bridge'!B33), \"\", 'B8 Sch 8 CCA Bridge'!B33)","v":50},{"$f":"IF(ISBLANK('B8 Sch 8 CCA Bridge'!C33), \"\", 'B8 Sch 8 CCA Bridge'!C33)","v":"General Purpose Computer Hardware & Software (acq'd post Mar 18/07)"},"B8",{"$f":"IF(ISBLANK('B8 Sch 8 CCA Bridge'!AB33), \"\", 'B8 Sch 8 CCA Bridge'!AB33)","v":698481.69742574915},8577333,null,null,null,null,null,null,9275814.6974257492,null,null,8577333,8577333,9275814.6974257492,0,8577333,0.5,4288666.5,0,0.55000000000000004,null,null,7460464.6585841626,1815350.0388415866,null,null,null,50,"General Purpose Computer Hardware & Software (acq'd post Mar 18/07)",null,1815350.0388415866,6696986,null,null,null,null,null,null,8512336.0388415866,null,null,6696986,{"$f":"+AT33","v":6696986},8512336.0388415866,0,6696986,0.5,3348493,0,0.55000000000000004,null,null,6523455.971362873,1988880.0674787136,null,null,null,50,"General Purpose Computer Hardware & Software (acq'd post Mar 18/07)",null,1988880.0674787136,7137841,null,null,null,null,null,null,9126721.0674787126,null,null,7137841,{"$f":"+BX33","v":7137841},9126721.0674787126,0,7137841,0.5,3568920.5,0,0.55000000000000004,null,null,6982602.8621132923,2144118.2053654203,null,null,null,50,"General Purpose Computer Hardware & Software (acq'd post Mar 18/07)",null,2144118.2053654203,7181399.7261999985,null,null,null,null,null,null,9325517.9315654188,null,null,7181399.7261999985,{"$f":"+DB33","v":7181399.7261999985},9325517.9315654188,0,7181399.7261999985,0,0,0,0.55000000000000004,null,null,5129034.8623609804,4196483.0692044385,null,null,null,50,"General Purpose Computer Hardware & Software (acq'd post Mar 18/07)",null,4196483.0692044385,6309246,null,null,null,null,null,null,10505729.069204438,null,null,6309246,{"$f":"+EF33","v":6309246},10505729.069204438,0,6309246,0,0,0,0.55000000000000004,null,null,5778150.9880624413,4727578.0811419971]
[null,{"$f":"IF(ISBLANK('B8 Sch 8 CCA Bridge'!B34), \"\", 'B8 Sch 8 CCA Bridge'!B34)","v":95},{"$f":"IF(ISBLANK('B8 Sch 8 CCA Bridge'!C34), \"\", 'B8 Sch 8 CCA Bridge'!C34)","v":"CWIP"},"B8",{"$f":"IF(ISBLANK('B8 Sch 8 CCA Bridge'!AB34), \"\", 'B8 Sch 8 CCA Bridge'!AB34)","v":92905697.874201},null,null,15816116.880336022,null,null,null,null,108721814.75453702,null,null,0,null,108721814.75453702,0,0,0.5,0,0,0,null,null,0,108721814.75453702,null,null,null,95,"CWIP",null,108721814.75453702,null,null,76883600,null,null,null,null,185605414.75453702,null,null,0,null,185605414.75453702,0,0,0.5,0,0,0,null,null,0,185605414.75453702,null,null,null,95,"CWIP",null,185605414.75453702,null,null,69758120,null,null,null,null,255363534.75453702,null,null,0,null,255363534.75453702,0,0,0.5,0,0,0,null,null,0,255363534.75453702,null,null,null,95,"CWIP",null,255363534.75453702,null,null,74289433,null,null,null,null,329652967.75453699,null,null,0,null,329652967.75453699,0,0,0,0,0,0,null,null,0,329652967.75453699,null,null,null,95,"CWIP",null,329652967.75453699,null,null,122437236,null,null,null,null,452090203.75453699,null,null,0,null,452090203.75453699,0,0,0,0,0,0,null,null,0,452090203.75453699]
[null,{"$f":"IF(ISBLANK('B8 Sch 8 CCA Bridge'!B35), \"\", 'B8 Sch 8 CCA Bridge'!B35)","v":54},{"$f":"IF(ISBLANK('B8 Sch 8 CCA Bridge'!C35), \"\", 'B8 Sch 8 CCA Bridge'!C35)","v":"Zero-emission vehicles"},"B8",{"$f":"IF(ISBLANK('B8 Sch 8 CCA Bridge'!AB35), \"\", 'B8 Sch 8 CCA Bridge'!AB35)","v":211402.8},null,null,null,null,null,null,null,211402.8,null,null,0,null,211402.8,0,0,null,0,0,0.3,null,null,63420.84,147981.96,null,null,null,54,"Zero-emission vehicles",null,147981.96,null,null,null,null,null,null,null,147981.96,null,null,0,null,147981.96,0,0,null,0,0,0.3,null,null,44394.587999999996,103587.372,null,null,null,54,"Zero-emission vehicles",null,103587.372,null,null,null,null,null,null,null,103587.372,null,null,0,null,103587.372,0,0,0.5,0,0,0.3,null,null,31076.211599999999,72511.160400000008,null,null,null,54,"Zero-emission vehicles",null,72511.160400000008,null,null,null,null,null,null,null,72511.160400000008,null,null,0,null,72511.160400000008,0,0,null,0,0,0.3,null,null,21753.348120000002,50757.812280000006,null,null,null,54,"Zero-emission vehicles",null,50757.812280000006,null,null,null,null,null,null,null,50757.812280000006,null,null,0,null,50757.812280000006,0,0,null,0,0,0.3,null,null,15227.343684000001,35530.468596000006]
[null,{"$f":"IF(ISBLANK('B8 Sch 8 CCA Bridge'!B36), \"\", 'B8 Sch 8 CCA Bridge'!B36)","v":""},{"$f":"IF(ISBLANK('B8 Sch 8 CCA Bridge'!C36), \"\", 'B8 Sch 8 CCA Bridge'!C36)","v":""},"B8",{"$f":"IF(ISBLANK('B8 Sch 8 CCA Bridge'!AB36), \"\", 'B8 Sch 8 CCA Bridge'!AB36)","v":0},null,null,null,null,null,null,null,0,null,null,0,null,0,0,0,null,0,0,null,null,null,0,0,null,null,null,{"$f":"IF(ISBLANK('B8 Sch 8 CCA Bridge'!AF36), \"\", 'B8 Sch 8 CCA Bridge'!AF36)","v":""},{"$f":"IF(ISBLANK('B8 Sch 8 CCA Bridge'!AG36), \"\", 'B8 Sch 8 CCA Bridge'!AG36)","v":""},null,{"$f":"IF(ISBLANK('B8 Sch 8 CCA Bridge'!BF36), \"\", 'B8 Sch 8 CCA Bridge'!BF36)","v":""},null,null,null,null,null,null,null,0,null,null,0,null,0,0,0,null,0,0,null,null,null,0,0,null,null,null,{"$f":"IF(ISBLANK('B8 Sch 8 CCA Bridge'!BJ36), \"\", 'B8 Sch 8 CCA Bridge'!BJ36)","v":""},{"$f":"IF(ISBLANK('B8 Sch 8 CCA Bridge'!BK36), \"\", 'B8 Sch 8 CCA Bridge'!BK36)","v":""},null,{"$f":"IF(ISBLANK('B8 Sch 8 CCA Bridge'!CJ36), \"\", 'B8 Sch 8 CCA Bridge'!CJ36)","v":""},null,null,null,null,null,null,null,0,null,null,0,null,0,0,0,null,0,0,null,null,null,0,0,null,null,null,{"$f":"IF(ISBLANK('B8 Sch 8 CCA Bridge'!CN36), \"\", 'B8 Sch 8 CCA Bridge'!CN36)","v":""},{"$f":"IF(ISBLANK('B8 Sch 8 CCA Bridge'!CO36), \"\", 'B8 Sch 8 CCA Bridge'!CO36)","v":""},null,{"$f":"IF(ISBLANK('B8 Sch 8 CCA Bridge'!DN36), \"\", 'B8 Sch 8 CCA Bridge'!DN36)","v":""},null,null,null,null,null,null,null,0,null,null,0,null,0,0,0,null,0,0,null,null,null,0,0,null,null,null,{"$f":"IF(ISBLANK('B8 Sch 8 CCA Bridge'!DR36), \"\", 'B8 Sch 8 CCA Bridge'!DR36)","v":""},{"$f":"IF(ISBLANK('B8 Sch 8 CCA Bridge'!DS36), \"\", 'B8 Sch 8 CCA Bridge'!DS36)","v":""},null,{"$f":"IF(ISBLANK('B8 Sch 8 CCA Bridge'!ER36), \"\", 'B8 Sch 8 CCA Bridge'!ER36)","v":""},null,null,null,null,null,null,null,0,null,null,0,null,0,0,0,null,0,0,null,null,null,0,0]
[null,{"$f":"IF(ISBLANK('B8 Sch 8 CCA Bridge'!B37), \"\", 'B8 Sch 8 CCA Bridge'!B37)","v":""},{"$f":"IF(ISBLANK('B8 Sch 8 CCA Bridge'!C37), \"\", 'B8 Sch 8 CCA Bridge'!C37)","v":""},"B8",{"$f":"IF(ISBLANK('B8 Sch 8 CCA Bridge'!AB37), \"\", 'B8 Sch 8 CCA Bridge'!AB37)","v":0},null,null,null,null,null,null,null,0,null,null,0,null,0,0,0,null,0,0,null,null,null,0,0,null,null,null,{"$f":"IF(ISBLANK('B8 Sch 8 CCA Bridge'!AF37), \"\", 'B8 Sch 8 CCA Bridge'!AF37)","v":""},{"$f":"IF(ISBLANK('B8 Sch 8 CCA Bridge'!AG37), \"\", 'B8 Sch 8 CCA Bridge'!AG37)","v":""},null,{"$f":"IF(ISBLANK('B8 Sch 8 CCA Bridge'!BF37), \"\", 'B8 Sch 8 CCA Bridge'!BF37)","v":""},null,null,null,null,null,null,null,0,null,null,0,null,0,0,0,null,0,0,null,null,null,0,0,null,null,null,{"$f":"IF(ISBLANK('B8 Sch 8 CCA Bridge'!BJ37), \"\", 'B8 Sch 8 CCA Bridge'!BJ37)","v":""},{"$f":"IF(ISBLANK('B8 Sch 8 CCA Bridge'!BK37), \"\", 'B8 Sch 8 CCA Bridge'!BK37)","v":""},null,{"$f":"IF(ISBLANK('B8 Sch 8 CCA Bridge'!CJ37), \"\", 'B8 Sch 8 CCA Bridge'!CJ37)","v":""},null,null,null,null,null,null,null,0,null,null,0,null,0,0,0,null,0,0,null,null,null,0,0,null,null,null,{"$f":"IF(ISBLANK('B8 Sch 8 CCA Bridge'!CN37), \"\", 'B8 Sch 8 CCA Bridge'!CN37)","v":""},{"$f":"IF(ISBLANK('B8 Sch 8 CCA Bridge'!CO37), \"\", 'B8 Sch 8 CCA Bridge'!CO37)","v":""},null,{"$f":"IF(ISBLANK('B8 Sch 8 CCA Bridge'!DN37), \"\", 'B8 Sch 8 CCA Bridge'!DN37)","v":""},null,null,null,null,null,null,null,0,null,null,0,null,0,0,0,null,0,0,null,null,null,0,0,null,null,null,{"$f":"IF(ISBLANK('B8 Sch 8 CCA Bridge'!DR37), \"\", 'B8 Sch 8 CCA Bridge'!DR37)","v":""},{"$f":"IF(ISBLANK('B8 Sch 8 CCA Bridge'!DS37), \"\", 'B8 Sch 8 CCA Bridge'!DS37)","v":""},null,{"$f":"IF(ISBLANK('B8 Sch 8 CCA Bridge'!ER37), \"\", 'B8 Sch 8 CCA Bridge'!ER37)","v":""},null,null,null,null,null,null,null,0,null,null,0,null,0,0,0,null,0,0,null,null,null,0,0]
[null,{"$f":"IF(ISBLANK('B8 Sch 8 CCA Bridge'!B38), \"\", 'B8 Sch 8 CCA Bridge'!B38)","v":""},{"$f":"IF(ISBLANK('B8 Sch 8 CCA Bridge'!C38), \"\", 'B8 Sch 8 CCA Bridge'!C38)","v":""},"B8",{"$f":"IF(ISBLANK('B8 Sch 8 CCA Bridge'!AB38), \"\", 'B8 Sch 8 CCA Bridge'!AB38)","v":0},null,null,null,null,null,null,null,0,null,null,0,null,0,0,0,null,0,0,null,null,null,0,0,null,null,null,{"$f":"IF(ISBLANK('B8 Sch 8 CCA Bridge'!AF38), \"\", 'B8 Sch 8 CCA Bridge'!AF38)","v":""},{"$f":"IF(ISBLANK('B8 Sch 8 CCA Bridge'!AG38), \"\", 'B8 Sch 8 CCA Bridge'!AG38)","v":""},null,{"$f":"IF(ISBLANK('B8 Sch 8 CCA Bridge'!BF38), \"\", 'B8 Sch 8 CCA Bridge'!BF38)","v":""},null,null,null,null,null,null,null,0,null,null,0,null,0,0,0,null,0,0,null,null,null,0,0,null,null,null,{"$f":"IF(ISBLANK('B8 Sch 8 CCA Bridge'!BJ38), \"\", 'B8 Sch 8 CCA Bridge'!BJ38)","v":""},{"$f":"IF(ISBLANK('B8 Sch 8 CCA Bridge'!BK38), \"\", 'B8 Sch 8 CCA Bridge'!BK38)","v":""},null,{"$f":"IF(ISBLANK('B8 Sch 8 CCA Bridge'!CJ38), \"\", 'B8 Sch 8 CCA Bridge'!CJ38)","v":""},null,null,null,null,null,null,null,0,null,null,0,null,0,0,0,null,0,0,null,null,null,0,0,null,null,null,{"$f":"IF(ISBLANK('B8 Sch 8 CCA Bridge'!CN38), \"\", 'B8 Sch 8 CCA Bridge'!CN38)","v":""},{"$f":"IF(ISBLANK('B8 Sch 8 CCA Bridge'!CO38), \"\", 'B8 Sch 8 CCA Bridge'!CO38)","v":""},null,{"$f":"IF(ISBLANK('B8 Sch 8 CCA Bridge'!DN38), \"\", 'B8 Sch 8 CCA Bridge'!DN38)","v":""},null,null,null,null,null,null,null,0,null,null,0,null,0,0,0,null,0,0,null,null,null,0,0,null,null,null,{"$f":"IF(ISBLANK('B8 Sch 8 CCA Bridge'!DR38), \"\", 'B8 Sch 8 CCA Bridge'!DR38)","v":""},{"$f":"IF(ISBLANK('B8 Sch 8 CCA Bridge'!DS38), \"\", 'B8 Sch 8 CCA Bridge'!DS38)","v":""},null,{"$f":"IF(ISBLANK('B8 Sch 8 CCA Bridge'!ER38), \"\", 'B8 Sch 8 CCA Bridge'!ER38)","v":""},null,null,null,null,null,null,null,0,null,null,0,null,0,0,0,null,0,0,null,null,null,0,0]
[null,{"$f":"IF(ISBLANK('B8 Sch 8 CCA Bridge'!B39), \"\", 'B8 Sch 8 CCA Bridge'!B39)","v":""},{"$f":"IF(ISBLANK('B8 Sch 8 CCA Bridge'!C39), \"\", 'B8 Sch 8 CCA Bridge'!C39)","v":""},"B8",{"$f":"IF(ISBLANK('B8 Sch 8 CCA Bridge'!AB39), \"\", 'B8 Sch 8 CCA Bridge'!AB39)","v":0},null,null,null,null,null,null,null,0,null,null,0,null,0,0,0,null,0,0,null,null,null,0,0,null,null,null,{"$f":"IF(ISBLANK('B8 Sch 8 CCA Bridge'!AF39), \"\", 'B8 Sch 8 CCA Bridge'!AF39)","v":""},{"$f":"IF(ISBLANK('B8 Sch 8 CCA Bridge'!AG39), \"\", 'B8 Sch 8 CCA Bridge'!AG39)","v":""},null,{"$f":"IF(ISBLANK('B8 Sch 8 CCA Bridge'!BF39), \"\", 'B8 Sch 8 CCA Bridge'!BF39)","v":""},null,null,null,null,null,null,null,0,null,null,0,null,0,0,0,null,0,0,null,null,null,0,0,null,null,null,{"$f":"IF(ISBLANK('B8 Sch 8 CCA Bridge'!BJ39), \"\", 'B8 Sch 8 CCA Bridge'!BJ39)","v":""},{"$f":"IF(ISBLANK('B8 Sch 8 CCA Bridge'!BK39), \"\", 'B8 Sch 8 CCA Bridge'!BK39)","v":""},null,{"$f":"IF(ISBLANK('B8 Sch 8 CCA Bridge'!CJ39), \"\", 'B8 Sch 8 CCA Bridge'!CJ39)","v":""},null,null,null,null,null,null,null,0,null,null,0,null,0,0,0,null,0,0,null,null,null,0,0,null,null,null,{"$f":"IF(ISBLANK('B8 Sch 8 CCA Bridge'!CN39), \"\", 'B8 Sch 8 CCA Bridge'!CN39)","v":""},{"$f":"IF(ISBLANK('B8 Sch 8 CCA Bridge'!CO39), \"\", 'B8 Sch 8 CCA Bridge'!CO39)","v":""},null,{"$f":"IF(ISBLANK('B8 Sch 8 CCA Bridge'!DN39), \"\", 'B8 Sch 8 CCA Bridge'!DN39)","v":""},null,null,null,null,null,null,null,0,null,null,0,null,0,0,0,null,0,0,null,null,null,0,0,null,null,null,{"$f":"IF(ISBLANK('B8 Sch 8 CCA Bridge'!DR39), \"\", 'B8 Sch 8 CCA Bridge'!DR39)","v":""},{"$f":"IF(ISBLANK('B8 Sch 8 CCA Bridge'!DS39), \"\", 'B8 Sch 8 CCA Bridge'!DS39)","v":""},null,{"$f":"IF(ISBLANK('B8 Sch 8 CCA Bridge'!ER39), \"\", 'B8 Sch 8 CCA Bridge'!ER39)","v":""},null,null,null,null,null,null,null,0,null,null,0,null,0,0,0,null,0,0,null,null,null,0,0]
[null,{"$f":"IF(ISBLANK('B8 Sch 8 CCA Bridge'!B40), \"\", 'B8 Sch 8 CCA Bridge'!B40)","v":""},{"$f":"IF(ISBLANK('B8 Sch 8 CCA Bridge'!C40), \"\", 'B8 Sch 8 CCA Bridge'!C40)","v":""},"B8",{"$f":"IF(ISBLANK('B8 Sch 8 CCA Bridge'!AB40), \"\", 'B8 Sch 8 CCA Bridge'!AB40)","v":0},null,null,null,null,null,null,null,0,null,null,0,null,0,0,0,null,0,0,null,null,null,0,0,null,null,null,{"$f":"IF(ISBLANK('B8 Sch 8 CCA Bridge'!AF40), \"\", 'B8 Sch 8 CCA Bridge'!AF40)","v":""},{"$f":"IF(ISBLANK('B8 Sch 8 CCA Bridge'!AG40), \"\", 'B8 Sch 8 CCA Bridge'!AG40)","v":""},null,{"$f":"IF(ISBLANK('B8 Sch 8 CCA Bridge'!BF40), \"\", 'B8 Sch 8 CCA Bridge'!BF40)","v":""},null,null,null,null,null,null,null,0,null,null,0,null,0,0,0,null,0,0,null,null,null,0,0,null,null,null,{"$f":"IF(ISBLANK('B8 Sch 8 CCA Bridge'!BJ40), \"\", 'B8 Sch 8 CCA Bridge'!BJ40)","v":""},{"$f":"IF(ISBLANK('B8 Sch 8 CCA Bridge'!BK40), \"\", 'B8 Sch 8 CCA Bridge'!BK40)","v":""},null,{"$f":"IF(ISBLANK('B8 Sch 8 CCA Bridge'!CJ40), \"\", 'B8 Sch 8 CCA Bridge'!CJ40)","v":""},null,null,null,null,null,null,null,0,null,null,0,null,0,0,0,null,0,0,null,null,null,0,0,null,null,null,{"$f":"IF(ISBLANK('B8 Sch 8 CCA Bridge'!CN40), \"\", 'B8 Sch 8 CCA Bridge'!CN40)","v":""},{"$f":"IF(ISBLANK('B8 Sch 8 CCA Bridge'!CO40), \"\", 'B8 Sch 8 CCA Bridge'!CO40)","v":""},null,{"$f":"IF(ISBLANK('B8 Sch 8 CCA Bridge'!DN40), \"\", 'B8 Sch 8 CCA Bridge'!DN40)","v":""},null,null,null,null,null,null,null,0,null,null,0,null,0,0,0,null,0,0,null,null,null,0,0,null,null,null,{"$f":"IF(ISBLANK('B8 Sch 8 CCA Bridge'!DR40), \"\", 'B8 Sch 8 CCA Bridge'!DR40)","v":""},{"$f":"IF(ISBLANK('B8 Sch 8 CCA Bridge'!DS40), \"\", 'B8 Sch 8 CCA Bridge'!DS40)","v":""},null,{"$f":"IF(ISBLANK('B8 Sch 8 CCA Bridge'!ER40), \"\", 'B8 Sch 8 CCA Bridge'!ER40)","v":""},null,null,null,null,null,null,null,0,null,null,0,null,0,0,0,null,0,0,null,null,null,0,0]
[null,{"$f":"IF(ISBLANK('B8 Sch 8 CCA Bridge'!B41), \"\", 'B8 Sch 8 CCA Bridge'!B41)","v":""},{"$f":"IF(ISBLANK('B8 Sch 8 CCA Bridge'!C41), \"\", 'B8 Sch 8 CCA Bridge'!C41)","v":""},"B8",{"$f":"IF(ISBLANK('B8 Sch 8 CCA Bridge'!AB41), \"\", 'B8 Sch 8 CCA Bridge'!AB41)","v":0},null,null,null,null,null,null,null,0,null,null,0,null,0,0,0,null,0,0,null,null,null,0,{"$f":"IF(M41<0,0,M41-Z41-AA41)","v":0},null,null,null,{"$f":"IF(ISBLANK('B8 Sch 8 CCA Bridge'!AF41), \"\", 'B8 Sch 8 CCA Bridge'!AF41)","v":""},{"$f":"IF(ISBLANK('B8 Sch 8 CCA Bridge'!AG41), \"\", 'B8 Sch 8 CCA Bridge'!AG41)","v":""},null,{"$f":"IF(ISBLANK('B8 Sch 8 CCA Bridge'!BF41), \"\", 'B8 Sch 8 CCA Bridge'!BF41)","v":""},null,null,null,null,null,null,null,0,null,null,0,null,0,0,0,null,0,0,null,null,null,0,{"$f":"IF(AQ41<0,0,AQ41-BD41-BE41)","v":0},null,null,null,{"$f":"IF(ISBLANK('B8 Sch 8 CCA Bridge'!BJ41), \"\", 'B8 Sch 8 CCA Bridge'!BJ41)","v":""},{"$f":"IF(ISBLANK('B8 Sch 8 CCA Bridge'!BK41), \"\", 'B8 Sch 8 CCA Bridge'!BK41)","v":""},null,{"$f":"IF(ISBLANK('B8 Sch 8 CCA Bridge'!CJ41), \"\", 'B8 Sch 8 CCA Bridge'!CJ41)","v":""},null,null,null,null,null,null,null,0,null,null,0,null,0,0,0,null,0,0,null,null,null,0,{"$f":"IF(BU41<0,0,BU41-CH41-CI41)","v":0},null,null,null,{"$f":"IF(ISBLANK('B8 Sch 8 CCA Bridge'!CN41), \"\", 'B8 Sch 8 CCA Bridge'!CN41)","v":""},{"$f":"IF(ISBLANK('B8 Sch 8 CCA Bridge'!CO41), \"\", 'B8 Sch 8 CCA Bridge'!CO41)","v":""},null,{"$f":"IF(ISBLANK('B8 Sch 8 CCA Bridge'!DN41), \"\", 'B8 Sch 8 CCA Bridge'!DN41)","v":""},null,null,null,null,null,null,null,0,null,null,0,null,0,0,0,null,0,0,null,null,null,0,{"$f":"IF(CY41<0,0,CY41-DL41-DM41)","v":0},null,null,null,{"$f":"IF(ISBLANK('B8 Sch 8 CCA Bridge'!DR41), \"\", 'B8 Sch 8 CCA Bridge'!DR41)","v":""},{"$f":"IF(ISBLANK('B8 Sch 8 CCA Bridge'!DS41), \"\", 'B8 Sch 8 CCA Bridge'!DS41)","v":""},null,{"$f":"IF(ISBLANK('B8 Sch 8 CCA Bridge'!ER41), \"\", 'B8 Sch 8 CCA Bridge'!ER41)","v":""},null,null,null,null,null,null,null,0,null,null,0,null,0,0,0,null,0,0,null,null,null,0,{"$f":"IF(EC41<0,0,EC41-EP41-EQ41)","v":0}]
[null,{"$f":"IF(ISBLANK('B8 Sch 8 CCA Bridge'!B42), \"\", 'B8 Sch 8 CCA Bridge'!B42)","v":""},{"$f":"IF(ISBLANK('B8 Sch 8 CCA Bridge'!C42), \"\", 'B8 Sch 8 CCA Bridge'!C42)","v":""},"B8",{"$f":"IF(ISBLANK('B8 Sch 8 CCA Bridge'!AB42), \"\", 'B8 Sch 8 CCA Bridge'!AB42)","v":0},null,null,null,null,null,null,null,{"$f":"IFERROR(E42+F42+H42-K42,\"\")","v":0},null,null,0,null,0,0,0,null,0,0,null,null,null,0,0,null,null,null,{"$f":"IF(ISBLANK('B8 Sch 8 CCA Bridge'!AF42), \"\", 'B8 Sch 8 CCA Bridge'!AF42)","v":""},{"$f":"IF(ISBLANK('B8 Sch 8 CCA Bridge'!AG42), \"\", 'B8 Sch 8 CCA Bridge'!AG42)","v":""},null,{"$f":"IF(ISBLANK('B8 Sch 8 CCA Bridge'!BF42), \"\", 'B8 Sch 8 CCA Bridge'!BF42)","v":""},null,null,null,null,null,null,null,0,null,null,0,null,0,0,0,null,0,0,null,null,null,0,{"$f":"IF(AQ42<0,0,AQ42-BD42-BE42)","v":0},null,null,null,{"$f":"IF(ISBLANK('B8 Sch 8 CCA Bridge'!BJ42), \"\", 'B8 Sch 8 CCA Bridge'!BJ42)","v":""},{"$f":"IF(ISBLANK('B8 Sch 8 CCA Bridge'!BK42), \"\", 'B8 Sch 8 CCA Bridge'!BK42)","v":""},null,{"$f":"IF(ISBLANK('B8 Sch 8 CCA Bridge'!CJ42), \"\", 'B8 Sch 8 CCA Bridge'!CJ42)","v":""},null,null,null,null,null,null,null,0,null,null,0,null,0,0,0,null,0,0,null,null,null,0,{"$f":"IF(BU42<0,0,BU42-CH42-CI42)","v":0},null,null,null,{"$f":"IF(ISBLANK('B8 Sch 8 CCA Bridge'!CN42), \"\", 'B8 Sch 8 CCA Bridge'!CN42)","v":""},{"$f":"IF(ISBLANK('B8 Sch 8 CCA Bridge'!CO42), \"\", 'B8 Sch 8 CCA Bridge'!CO42)","v":""},null,{"$f":"IF(ISBLANK('B8 Sch 8 CCA Bridge'!DN42), \"\", 'B8 Sch 8 CCA Bridge'!DN42)","v":""},null,null,null,null,null,null,null,0,null,null,0,null,0,0,0,null,0,0,null,null,null,0,{"$f":"IF(CY42<0,0,CY42-DL42-DM42)","v":0},null,null,null,{"$f":"IF(ISBLANK('B8 Sch 8 CCA Bridge'!DR42), \"\", 'B8 Sch 8 CCA Bridge'!DR42)","v":""},{"$f":"IF(ISBLANK('B8 Sch 8 CCA Bridge'!DS42), \"\", 'B8 Sch 8 CCA Bridge'!DS42)","v":""},null,{"$f":"IF(ISBLANK('B8 Sch 8 CCA Bridge'!ER42), \"\", 'B8 Sch 8 CCA Bridge'!ER42)","v":""},null,null,null,null,null,null,null,0,null,null,0,null,0,0,0,null,0,0,null,null,null,0,{"$f":"IF(EC42<0,0,EC42-EP42-EQ42)","v":0}]
[null,null,"TOTALS",null,{"$f":"SUM(E10:E42)","v":3022635083.0438499},{"$f":"SUM(F10:F42)","v":432318247},{"$f":"SUM(G10:G42)","v":0},{"$f":"SUM(H10:H42)","v":15816116.880336022},{"$f":"SUM(I10:I42)","v":0},0,{"$f":"SUM(K10:K42)","v":693668},{"$f":"SUM(L10:L42)","v":0},{"$f":"SUM(M10:M42)","v":3470075778.9241867},0,0,432318247,{"$f":"SUM(Q10:Q42)","v":432318247},3470075778.9241867,693668,431624579,null,{"$f":"SUM(V10:V42)","v":182690887},0,null,{"$f":"SUM(Y10:Y42)","v":0},{"$f":"SUM(Z10:Z42)","v":0},{"$f":"SUM(AA10:AA42)","v":308482770.70028847},{"$f":"SUM(AB10:AB42)","v":3161593008.2238979},null,null,null,null,"TOTALS",null,{"$f":"SUM(AI10:AI42)","v":3161593008.2238979},{"$f":"SUM(AJ10:AJ42)","v":466857805},{"$f":"SUM(AK10:AK42)","v":0},{"$f":"SUM(AL10:AL42)","v":76883600},{"$f":"SUM(AM10:AM42)","v":0},0,{"$f":"SUM(AO10:AO42)","v":693668},{"$f":"SUM(AP10:AP42)","v":0},{"$f":"SUM(AQ10:AQ42)","v":3704640745.2238979},0,0,466857805,{"$f":"SUM(AU10:AU42)","v":466857805},{"$f":"SUM(AV10:AV42)","v":3704640745.2238979},693668,466164137,null,{"$f":"SUM(AZ10:AZ42)","v":220337019},0,null,{"$f":"SUM(BC10:BC42)","v":0},{"$f":"SUM(BD10:BD42)","v":0},{"$f":"SUM(BE10:BE42)","v":314385249.13231546},{"$f":"SUM(BF10:BF42)","v":3390255496.0915828},null,null,null,null,"TOTALS",null,{"$f":"SUM(BM10:BM42)","v":3390255496.0915828},{"$f":"SUM(BN10:BN42)","v":568352932},{"$f":"SUM(BO10:BO42)","v":0},{"$f":"SUM(BP10:BP42)","v":69758120},{"$f":"SUM(BQ10:BQ42)","v":0},0,{"$f":"SUM(BS10:BS42)","v":693668},{"$f":"SUM(BT10:BT42)","v":0},{"$f":"SUM(BU10:BU42)","v":4027672880.0915828},0,0,568352932,{"$f":"SUM(BY10:BY42)","v":568352932},{"$f":"SUM(BZ10:BZ42)","v":4027672880.0915828},693668,567659264,null,{"$f":"SUM(CD10:CD42)","v":258590175},0,null,{"$f":"SUM(CG10:CG42)","v":0},{"$f":"SUM(CH10:CH42)","v":0},{"$f":"SUM(CI10:CI42)","v":362333317.89922893},{"$f":"SUM(CJ10:CJ42)","v":3665339562.1923537},null,null,null,null,"TOTALS",null,{"$f":"SUM(CQ10:CQ42)","v":3665339562.1923537},{"$f":"SUM(CR10:CR42)","v":618945826.82444906},{"$f":"SUM(CS10:CS42)","v":0},{"$f":"SUM(CT10:CT42)","v":74289433},{"$f":"SUM(CU10:CU42)","v":0},0,{"$f":"SUM(CW10:CW42)","v":693668},{"$f":"SUM(CX10:CX42)","v":0},{"$f":"SUM(CY10:CY42)","v":4357881154.0168028},0,0,618945826.82444906,{"$f":"SUM(DC10:DC42)","v":618945826.82444906},{"$f":"SUM(DD10:DD42)","v":4357881154.0168028},693668,618252158.82444906,null,{"$f":"SUM(DH10:DH42)","v":0},0,null,{"$f":"SUM(DK10:DK42)","v":0},{"$f":"SUM(DL10:DL42)","v":0},{"$f":"SUM(DM10:DM42)","v":327691058.36651337},{"$f":"SUM(DN10:DN42)","v":4030190095.6502895},null,null,null,null,"TOTALS",null,{"$f":"SUM(DU10:DU42)","v":4030190095.6502895},{"$f":"SUM(DV10:DV42)","v":610756296},{"$f":"SUM(DW10:DW42)","v":0},{"$f":"SUM(DX10:DX42)","v":122437236},{"$f":"SUM(DY10:DY42)","v":0},0,{"$f":"SUM(EA10:EA42)","v":693668},{"$f":"SUM(EB10:EB42)","v":0},{"$f":"SUM(EC10:EC42)","v":4762689959.6502886},0,0,610756296,{"$f":"SUM(EG10:EG42)","v":610756296},{"$f":"SUM(EH10:EH42)","v":4762689959.6502886},693668,610062628,null,{"$f":"SUM(EL10:EL42)","v":0},0,null,{"$f":"SUM(EO10:EO42)","v":0},{"$f":"SUM(EP10:EP42)","v":0},{"$f":"SUM(EQ10:EQ42)","v":349410882.37462962},{"$f":"SUM(ER10:ER42)","v":4413279077.2756605}]
[]
[null,"For additional details and guidance on calculating amounts in Schedule 8, refer to the notes to the Canada Revenue Agency published Schedule 8 - Capital Cost Allowance (CCA) (2018 and later tax years):"]
[null,"https://www.canada.ca/content/dam/cra-arc/formspubs/pbg/t2sch8/t2sch8-19e.pdf"]
[]
[]
[]
[null,"1. Please note that Subsection 1100(2) of the Income Tax Regulations provide undepreciated capital cost adjustment factors of eligible zero-emission vehicles and equipment under Class 53, Class 54, Class 55 and Class 56, "]
[null,"    please assess the applicability of these adjustments and incorporate them in the PILs model as applicable."]

{"sheet":"T13 Sch 13 Reserves Test","index":20,"n_rows":44,"n_cols":66,"rows_kept":44,"cut":false,"hidden":false,"merged":[[9,60,9,61],[13,56,13,65],[9,21,9,22],[13,17,13,26],[9,34,9,35],[13,30,13,39],[9,47,9,48],[13,43,13,52],[13,4,13,13],[9,8,9,9],[1,2,1,10],[2,2,2,10],[3,2,3,10]]}
[]
[]
[]
[]
[]
[]
[null,null,"Schedule 13 Tax Reserves - Test Year"]
[]
[null,null,"Continuity of Reserves",2027,2027,2027,2027,2027,2027,2027,2027,2027,2027,2027,null,null,2028,2028,2028,2028,2028,2028,2028,2028,2028,2028,2028,null,null,2029,2029,2029,2029,2029,2029,2029,2029,2029,2029,2029,null,null,2030,2030,2030,2030,2030,2030,2030,2030,2030,2030,2030,null,null,2031,2031,2031,2031,2031,2031,2031,2031,2031,2031,2031]
[null,null,null,null,null,null,null,null,"Test Year Adjustments",null,null,null,null,null,null,null,null,null,null,null,null,"Test Year Adjustments",null,null,null,null,null,null,null,null,null,null,null,null,"Test Year Adjustments",null,null,null,null,null,null,null,null,null,null,null,null,"Test Year Adjustments",null,null,null,null,null,null,null,null,null,null,null,null,"Test Year Adjustments"]
[null,null,"Description","Working Paper Reference","Bridge Year","Eliminate Amounts Not Relevant for Test Year","Adjusted Utility Balance",null,"Additions","Disposals"," Balance for Test Year",null,"Change During the Year","Disallowed Expenses",null,"Description","Working Paper Reference","Opening","Eliminate Amounts Not Relevant for Test Year","Adjusted Utility Balance",null,"Additions","Disposals"," Balance for Test Year",null,"Change During the Year","Disallowed Expenses",null,"Description","Working Paper Reference","Opening","Eliminate Amounts Not Relevant for Test Year","Adjusted Utility Balance",null,"Additions","Disposals"," Balance for Test Year",null,"Change During the Year","Disallowed Expenses",null,"Description","Working Paper Reference","Opening","Eliminate Amounts Not Relevant for Test Year","Adjusted Utility Balance",null,"Additions","Disposals"," Balance for Test Year",null,"Change During the Year","Disallowed Expenses",null,"Description","Working Paper Reference","Opening","Eliminate Amounts Not Relevant for Test Year","Adjusted Utility Balance",null,"Additions","Disposals"," Balance for Test Year",null,"Change During the Year","Disallowed Expenses"]
[]
[null,null,"Capital Gains Reserves ss.40(1)","B13",{"$f":"'B13 Sch 13 Reserves Bridge'!K13","v":0},null,{"$f":"SUM(E13:F13)","v":0},null,null,null,{"$f":"G13+I13-J13","v":0},null,{"$f":"+K13-G13","v":0},null,null,"Capital Gains Reserves ss.40(1)",null,null,null,{"$f":"SUM(R13:S13)","v":0},null,null,null,{"$f":"T13+V13-W13","v":0},null,{"$f":"+X13-T13","v":0},null,null,"Capital Gains Reserves ss.40(1)",null,null,null,{"$f":"SUM(AE13:AF13)","v":0},null,null,null,{"$f":"AG13+AI13-AJ13","v":0},null,{"$f":"+AK13-AG13","v":0},null,null,"Capital Gains Reserves ss.40(1)",null,null,null,{"$f":"SUM(AR13:AS13)","v":0},null,null,null,{"$f":"AT13+AV13-AW13","v":0},null,{"$f":"+AX13-AT13","v":0},null,null,"Capital Gains Reserves ss.40(1)",null,null,null,{"$f":"SUM(BE13:BF13)","v":0},null,null,null,{"$f":"BG13+BI13-BJ13","v":0},null,{"$f":"+BK13-BG13","v":0}]
[null,null,"Tax Reserves Not Deducted for accounting purposes",null,null,null,null,null,null,null,null,null,null,null,null,"Tax Reserves Not Deducted for accounting purposes",null,null,null,null,null,null,null,null,null,null,null,null,"Tax Reserves Not Deducted for accounting purposes",null,null,null,null,null,null,null,null,null,null,null,null,"Tax Reserves Not Deducted for accounting purposes",null,null,null,null,null,null,null,null,null,null,null,null,"Tax Reserves Not Deducted for accounting purposes"]
[null,null,"Reserve for doubtful accounts ss. 20(1)(l)","B13",{"$f":"'B13 Sch 13 Reserves Bridge'!K15","v":0},null,{"$f":"SUM(E15:F15)","v":0},null,null,null,{"$f":"G15+I15-J15","v":0},null,{"$f":"+K15-G15","v":0},null,null,"Reserve for doubtful accounts ss. 20(1)(l)",null,null,null,{"$f":"SUM(R15:S15)","v":0},null,null,null,{"$f":"T15+V15-W15","v":0},null,{"$f":"+X15-T15","v":0},null,null,"Reserve for doubtful accounts ss. 20(1)(l)",null,null,null,{"$f":"SUM(AE15:AF15)","v":0},null,null,null,{"$f":"AG15+AI15-AJ15","v":0},null,{"$f":"+AK15-AG15","v":0},null,null,"Reserve for doubtful accounts ss. 20(1)(l)",null,null,null,{"$f":"SUM(AR15:AS15)","v":0},null,null,null,{"$f":"AT15+AV15-AW15","v":0},null,{"$f":"+AX15-AT15","v":0},null,null,"Reserve for doubtful accounts ss. 20(1)(l)",null,null,null,{"$f":"SUM(BE15:BF15)","v":0},null,null,null,{"$f":"BG15+BI15-BJ15","v":0},null,{"$f":"+BK15-BG15","v":0}]
[null,null,"Reserve for goods and services not delivered ss. 20(1)(m)","B13",{"$f":"'B13 Sch 13 Reserves Bridge'!K16","v":0},null,0,null,null,null,0,null,0,null,null,"Reserve for goods and services not delivered ss. 20(1)(m)",null,null,null,0,null,null,null,0,null,0,null,null,"Reserve for goods and services not delivered ss. 20(1)(m)",null,null,null,0,null,null,null,0,null,0,null,null,"Reserve for goods and services not delivered ss. 20(1)(m)",null,null,null,0,null,null,null,0,null,0,null,null,"Reserve for goods and services not delivered ss. 20(1)(m)",null,null,null,0,null,null,null,0,null,0]
[null,null,"Reserve for unpaid amounts ss. 20(1)(n)","B13",{"$f":"'B13 Sch 13 Reserves Bridge'!K17","v":0},null,0,null,null,null,0,null,0,null,null,"Reserve for unpaid amounts ss. 20(1)(n)",null,null,null,0,null,null,null,0,null,0,null,null,"Reserve for unpaid amounts ss. 20(1)(n)",null,null,null,0,null,null,null,0,null,0,null,null,"Reserve for unpaid amounts ss. 20(1)(n)",null,null,null,0,null,null,null,0,null,0,null,null,"Reserve for unpaid amounts ss. 20(1)(n)",null,null,null,0,null,null,null,0,null,0]
[null,null,"Debt & Share Issue Expenses ss. 20(1)(e)","B13",{"$f":"'B13 Sch 13 Reserves Bridge'!K18","v":0},null,0,null,null,null,0,null,0,null,null,"Debt & Share Issue Expenses ss. 20(1)(e)",null,null,null,0,null,null,null,0,null,0,null,null,"Debt & Share Issue Expenses ss. 20(1)(e)",null,null,null,0,null,null,null,0,null,0,null,null,"Debt & Share Issue Expenses ss. 20(1)(e)",null,null,null,0,null,null,null,0,null,0,null,null,"Debt & Share Issue Expenses ss. 20(1)(e)",null,null,null,0,null,null,null,0,null,0]
[null,null,"Other tax reserves","B13",{"$f":"'B13 Sch 13 Reserves Bridge'!K19","v":0},null,0,null,null,null,0,null,0,null,null,"Other tax reserves",null,null,null,0,null,null,null,0,null,0,null,null,"Other tax reserves",null,null,null,0,null,null,null,0,null,0,null,null,"Other tax reserves",null,null,null,0,null,null,null,0,null,0,null,null,"Other tax reserves",null,null,null,0,null,null,null,0,null,0]
[null,null,null,null,{"$f":"'B13 Sch 13 Reserves Bridge'!K20","v":0},null,0,null,null,null,0,null,0,null,null,null,null,null,null,0,null,null,null,0,null,0,null,null,null,null,null,null,0,null,null,null,0,null,0,null,null,null,null,null,null,0,null,null,null,0,null,0,null,null,null,null,null,null,0,null,null,null,0,null,0]
[null,null,null,null,{"$f":"'B13 Sch 13 Reserves Bridge'!K21","v":0},null,0,null,null,null,0,null,0,null,null,null,null,null,null,0,null,null,null,0,null,0,null,null,null,null,null,null,0,null,null,null,0,null,0,null,null,null,null,null,null,0,null,null,null,0,null,0,null,null,null,null,null,null,0,null,null,null,0,null,0]
[null,null,"Total",null,{"$f":"SUM(E15:E21)","v":0},0,0,"T1",0,0,0,"T1",0,{"$f":"SUM(N15:N21)","v":0},null,"Total",null,{"$f":"SUM(R15:R21)","v":0},0,0,"T1",{"$f":"SUM(V15:V21)","v":0},0,0,"T1",{"$f":"SUM(Z15:Z21)","v":0},{"$f":"SUM(AA15:AA21)","v":0},null,"Total",null,{"$f":"SUM(AE15:AE21)","v":0},0,0,"T1",{"$f":"SUM(AI15:AI21)","v":0},0,0,"T1",{"$f":"SUM(AM15:AM21)","v":0},{"$f":"SUM(AN15:AN21)","v":0},null,"Total",null,{"$f":"SUM(AR15:AR21)","v":0},0,0,"T1",{"$f":"SUM(AV15:AV21)","v":0},0,0,"T1",{"$f":"SUM(AZ15:AZ21)","v":0},{"$f":"SUM(BA15:BA21)","v":0},null,"Total",null,{"$f":"SUM(BE15:BE21)","v":0},0,0,"T1",{"$f":"SUM(BI15:BI21)","v":0},0,0,"T1",{"$f":"SUM(BM15:BM21)","v":0},{"$f":"SUM(BN15:BN21)","v":0}]
[null,null,null,null,0,null,null,null,null,null,null,null,null,null,null,null,null,0,null,null,null,null,null,null,null,null,null,null,null,null,0,null,null,null,null,null,null,null,null,null,null,null,null,0,null,null,null,null,null,null,null,null,null,null,null,null,0]
[null,null,"Financial Statement Reserves (not deductible for Tax Purposes)",null,null,null,null,null,null,null,null,null,null,null,null,"Financial Statement Reserves (not deductible for Tax Purposes)",null,null,null,null,null,null,null,null,null,null,null,null,"Financial Statement Reserves (not deductible for Tax Purposes)",null,null,null,null,null,null,null,null,null,null,null,null,"Financial Statement Reserves (not deductible for Tax Purposes)",null,null,null,null,null,null,null,null,null,null,null,null,"Financial Statement Reserves (not deductible for Tax Purposes)"]
[null,null,"General Reserve for Inventory Obsolescence (non-specific)","B13",{"$f":"'B13 Sch 13 Reserves Bridge'!K25","v":0},null,{"$f":"SUM(E25:F25)","v":0},null,null,null,{"$f":"G25+I25-J25","v":0},null,{"$f":"+K25-G25","v":0},null,null,"General Reserve for Inventory Obsolescence (non-specific)",null,null,null,{"$f":"SUM(R25:S25)","v":0},null,null,null,{"$f":"T25+V25-W25","v":0},null,{"$f":"+X25-T25","v":0},null,null,"General Reserve for Inventory Obsolescence (non-specific)",null,null,null,{"$f":"SUM(AE25:AF25)","v":0},null,null,null,{"$f":"AG25+AI25-AJ25","v":0},null,{"$f":"+AK25-AG25","v":0},null,null,"General Reserve for Inventory Obsolescence (non-specific)",null,null,null,{"$f":"SUM(AR25:AS25)","v":0},null,null,null,{"$f":"AT25+AV25-AW25","v":0},null,{"$f":"+AX25-AT25","v":0},null,null,"General Reserve for Inventory Obsolescence (non-specific)",null,null,null,{"$f":"SUM(BE25:BF25)","v":0},null,null,null,{"$f":"BG25+BI25-BJ25","v":0},null,{"$f":"+BK25-BG25","v":0}]
[null,null,"General reserve for bad debts","B13",{"$f":"'B13 Sch 13 Reserves Bridge'!K26","v":2183193.2200000002},null,2183193.2200000002,null,null,null,2183193.2200000002,null,0,null,null,"General reserve for bad debts",null,{"$f":"K26","v":2183193.2200000002},null,2183193.2200000002,null,null,null,2183193.2200000002,null,0,null,null,"General reserve for bad debts",null,{"$f":"X26","v":2183193.2200000002},null,2183193.2200000002,null,null,null,2183193.2200000002,null,0,null,null,"General reserve for bad debts",null,{"$f":"AK26","v":2183193.2200000002},null,2183193.2200000002,null,null,null,2183193.2200000002,null,0,null,null,"General reserve for bad debts",null,{"$f":"AX26","v":2183193.2200000002},null,2183193.2200000002,null,null,null,2183193.2200000002,null,0]
[null,null,"Accrued Employee Future Benefits:","B13",{"$f":"'B13 Sch 13 Reserves Bridge'!K27","v":0},null,0,null,null,null,0,null,0,null,null,"Accrued Employee Future Benefits:",null,null,null,0,null,null,null,0,null,0,null,null,"Accrued Employee Future Benefits:",null,null,null,0,null,null,null,0,null,0,null,null,"Accrued Employee Future Benefits:",null,null,null,0,null,null,null,0,null,0,null,null,"Accrued Employee Future Benefits:",null,null,null,0,null,null,null,0,null,0]
[null,null,"- Medical and Life Insurance","B13",{"$f":"'B13 Sch 13 Reserves Bridge'!K28","v":0},null,0,null,null,null,0,null,0,null,null,"- Medical and Life Insurance",null,null,null,0,null,null,null,0,null,0,null,null,"- Medical and Life Insurance",null,null,null,0,null,null,null,0,null,0,null,null,"- Medical and Life Insurance",null,null,null,0,null,null,null,0,null,0,null,null,"- Medical and Life Insurance",null,null,null,0,null,null,null,0,null,0]
[null,null,"-Short & Long-term Disability","B13",{"$f":"'B13 Sch 13 Reserves Bridge'!K29","v":0},null,0,null,null,null,0,null,0,null,null,"-Short & Long-term Disability",null,null,null,0,null,null,null,0,null,0,null,null,"-Short & Long-term Disability",null,null,null,0,null,null,null,0,null,0,null,null,"-Short & Long-term Disability",null,null,null,0,null,null,null,0,null,0,null,null,"-Short & Long-term Disability",null,null,null,0,null,null,null,0,null,0]
[null,null," -Accmulated Sick Leave","B13",{"$f":"'B13 Sch 13 Reserves Bridge'!K30","v":0},null,0,null,null,null,0,null,0,null,null," -Accmulated Sick Leave",null,null,null,0,null,null,null,0,null,0,null,null," -Accmulated Sick Leave",null,null,null,0,null,null,null,0,null,0,null,null," -Accmulated Sick Leave",null,null,null,0,null,null,null,0,null,0,null,null," -Accmulated Sick Leave",null,null,null,0,null,null,null,0,null,0]
[null,null,"- Termination Cost","B13",{"$f":"'B13 Sch 13 Reserves Bridge'!K31","v":0},null,0,null,null,null,0,null,0,null,null,"- Termination Cost",null,null,null,0,null,null,null,0,null,0,null,null,"- Termination Cost",null,null,null,0,null,null,null,0,null,0,null,null,"- Termination Cost",null,null,null,0,null,null,null,0,null,0,null,null,"- Termination Cost",null,null,null,0,null,null,null,0,null,0]
[null,null,"- Other Post-Employment Benefits","B13",{"$f":"'B13 Sch 13 Reserves Bridge'!K32","v":75831573},null,75831573,null,600926,null,76432499,null,600926,null,null,"- Other Post-Employment Benefits",null,{"$f":"K32","v":76432499},null,76432499,null,539015,null,76971514,null,539015,null,null,"- Other Post-Employment Benefits",null,{"$f":"X32","v":76971514},null,76971514,null,475886,null,77447400,null,475886,null,null,"- Other Post-Employment Benefits",null,{"$f":"AK32","v":77447400},null,77447400,null,411601,null,77859001,null,411601,null,null,"- Other Post-Employment Benefits",null,{"$f":"AX32","v":77859001},null,77859001,null,346248,null,78205249,null,346248]
[null,null,"Provision for Environmental Costs","B13",{"$f":"'B13 Sch 13 Reserves Bridge'!K33","v":913544},null,913544,null,61861,null,975405,null,61861,null,null,"Provision for Environmental Costs",null,{"$f":"K33","v":975405},null,975405,null,66050,null,1041455,null,66050,null,null,"Provision for Environmental Costs",null,{"$f":"X33","v":1041455},null,1041455,null,176251,null,1217706,null,176251,null,null,"Provision for Environmental Costs",null,{"$f":"AK33","v":1217706},null,1217706,null,82455,null,1300161,null,82455,null,null,"Provision for Environmental Costs",null,{"$f":"AX33","v":1300161},null,1300161,null,88042,null,1388203,null,88042]
[null,null,"Restructuring Costs","B13",{"$f":"'B13 Sch 13 Reserves Bridge'!K34","v":0},null,0,null,null,null,0,null,0,null,null,"Restructuring Costs",null,null,null,0,null,null,null,0,null,0,null,null,"Restructuring Costs",null,null,null,0,null,null,null,0,null,0,null,null,"Restructuring Costs",null,null,null,0,null,null,null,0,null,0,null,null,"Restructuring Costs",null,null,null,0,null,null,null,0,null,0]
[null,null,"Accrued Contingent Litigation Costs","B13",{"$f":"'B13 Sch 13 Reserves Bridge'!K35","v":0},null,0,null,null,null,0,null,0,null,null,"Accrued Contingent Litigation Costs",null,null,null,0,null,null,null,0,null,0,null,null,"Accrued Contingent Litigation Costs",null,null,null,0,null,null,null,0,null,0,null,null,"Accrued Contingent Litigation Costs",null,null,null,0,null,null,null,0,null,0,null,null,"Accrued Contingent Litigation Costs",null,null,null,0,null,null,null,0,null,0]
[null,null,"Accrued Self-Insurance Costs","B13",{"$f":"'B13 Sch 13 Reserves Bridge'!K36","v":0},null,0,null,null,null,0,null,0,null,null,"Accrued Self-Insurance Costs",null,null,null,0,null,null,null,0,null,0,null,null,"Accrued Self-Insurance Costs",null,null,null,0,null,null,null,0,null,0,null,null,"Accrued Self-Insurance Costs",null,null,null,0,null,null,null,0,null,0,null,null,"Accrued Self-Insurance Costs",null,null,null,0,null,null,null,0,null,0]
[null,null,"Other Contingent Liabilities","B13",{"$f":"'B13 Sch 13 Reserves Bridge'!K37","v":0},null,0,null,null,null,0,null,0,null,null,"Other Contingent Liabilities",null,null,null,0,null,null,null,0,null,0,null,null,"Other Contingent Liabilities",null,null,null,0,null,null,null,0,null,0,null,null,"Other Contingent Liabilities",null,null,null,0,null,null,null,0,null,0,null,null,"Other Contingent Liabilities",null,null,null,0,null,null,null,0,null,0]
[null,null,"Bonuses Accrued and Not Paid Within 180 Days of Year-End ss. 78(4)","B13",{"$f":"'B13 Sch 13 Reserves Bridge'!K38","v":0},null,0,null,null,null,0,null,0,null,null,"Bonuses Accrued and Not Paid Within 180 Days of Year-End ss. 78(4)",null,null,null,0,null,null,null,0,null,0,null,null,"Bonuses Accrued and Not Paid Within 180 Days of Year-End ss. 78(4)",null,null,null,0,null,null,null,0,null,0,null,null,"Bonuses Accrued and Not Paid Within 180 Days of Year-End ss. 78(4)",null,null,null,0,null,null,null,0,null,0,null,null,"Bonuses Accrued and Not Paid Within 180 Days of Year-End ss. 78(4)",null,null,null,0,null,null,null,0,null,0]
[null,null,"Unpaid Amounts to Related Person and Not Paid Within 3 Taxation Years ss. 78(1)","B13",{"$f":"'B13 Sch 13 Reserves Bridge'!K39","v":0},null,0,null,null,null,0,null,0,null,null,"Unpaid Amounts to Related Person and Not Paid Within 3 Taxation Years ss. 78(1)",null,null,null,0,null,null,null,0,null,0,null,null,"Unpaid Amounts to Related Person and Not Paid Within 3 Taxation Years ss. 78(1)",null,null,null,0,null,null,null,0,null,0,null,null,"Unpaid Amounts to Related Person and Not Paid Within 3 Taxation Years ss. 78(1)",null,null,null,0,null,null,null,0,null,0,null,null,"Unpaid Amounts to Related Person and Not Paid Within 3 Taxation Years ss. 78(1)",null,null,null,0,null,null,null,0,null,0]
[null,null,"Other","B13",{"$f":"'B13 Sch 13 Reserves Bridge'!K40","v":0},null,0,null,null,null,0,null,0,null,null,"Other",null,null,null,0,null,null,null,0,null,0,null,null,"Other",null,null,null,0,null,null,null,0,null,0,null,null,"Other",null,null,null,0,null,null,null,0,null,0,null,null,"Other",null,null,null,0,null,null,null,0,null,0]
[null,null,null,null,{"$f":"'B13 Sch 13 Reserves Bridge'!K41","v":0},null,0,null,null,null,0,null,0,null,null,null,null,null,null,0,null,null,null,0,null,0,null,null,null,null,null,null,0,null,null,null,0,null,0,null,null,null,null,null,null,0,null,null,null,0,null,0,null,null,null,null,null,null,0,null,null,null,0,null,0]
[null,null,null,null,{"$f":"'B13 Sch 13 Reserves Bridge'!K42","v":0},null,0,null,null,null,0,null,0,null,null,null,null,null,null,0,null,null,null,0,null,0,null,null,null,null,null,null,0,null,null,null,0,null,0,null,null,null,null,null,null,0,null,null,null,0,null,0,null,null,null,null,null,null,0,null,null,null,0,null,0]
[null,null,"Total ",null,{"$f":"SUM(E25:E42)","v":78928310.219999999},0,78928310.219999999,"T1",662787,0,79591097.219999999,"T1",662787,0,null,"Total ",null,{"$f":"SUM(R25:R42)","v":79591097.219999999},0,79591097.219999999,"T1",{"$f":"SUM(V25:V42)","v":605065},0,80196162.219999999,"T1",{"$f":"SUM(Z25:Z42)","v":605065},0,null,"Total ",null,{"$f":"SUM(AE25:AE42)","v":80196162.219999999},0,80196162.219999999,"T1",{"$f":"SUM(AI25:AI42)","v":652137},0,80848299.219999999,"T1",{"$f":"SUM(AM25:AM42)","v":652137},0,null,"Total ",null,{"$f":"SUM(AR25:AR42)","v":80848299.219999999},0,80848299.219999999,"T1",{"$f":"SUM(AV25:AV42)","v":494056},0,81342355.219999999,"T1",{"$f":"SUM(AZ25:AZ42)","v":494056},0,null,"Total ",null,{"$f":"SUM(BE25:BE42)","v":81342355.219999999},0,81342355.219999999,"T1",{"$f":"SUM(BI25:BI42)","v":434290},0,81776645.219999999,"T1",{"$f":"SUM(BM25:BM42)","v":434290},0]
[null,null,null,null,0]